Workbook

Sheet Main
B10: 2019-10-04
B12: Sheet No. | C12: Template Name | D12: Summary
B13: 1 | C13: Future Intra | D13: For Intraday trading in F&O segment
B14: 2 | C14: Cash Intra | D14: For Intraday trading in cash market segment
B15: 3 | C15: Mid-cap Intra | D15: For Intraday trading in Mid-cap stocks
B16: 4 | C16: Bulk Deals | D16: Reveals Bulk Deals carried on NSE & BSE
B17: 5 | C17: Call Tracker
K27: `

Sheet Future Intra
M5: Back to Main Page
A6: FOR INTRA DAY TRADING | L6: =Main!B10 -> 2019-10-04
A9: Sr.no | B9: Sector | C9: Scrip | D9: CLOSE RATE | E9: Pivot Point | F9: Supports | I9: Resistances
B10: Sector | D10: Point | E10: Point | F10: S1 | G10: S2 | H10: S3 | I10: R1 | J10: R2 | K10: R3 | L10: HIGH | M10: LOW | N10: OI | O10: % Change in OI
A11: 1 | B11: Index | C11: BANKNIFTY | D11: 28570.85 | E11: 28619.75 | F11: 28319.70 | G11: 28068.55 | H11: 27768.50 | I11: 28870.90 | J11: 29170.95 | K11: 29422.10 | L11: 28919.8 | M11: 28368.6 | N11: 1665380 | O11: 5.16%
A12: 2 | B12: Index | C12: NIFTY | D12: 11361.80 | E12: 11364.03 | F12: 11310.07 | G12: 11258.33 | H12: 11204.37 | I12: 11415.77 | J12: 11469.73 | K12: 11521.47 | L12: 11418 | M12: 11312.3 | N12: 16781550 | O12: 2.33%
A13: 3 | B13: Index | C13: NIFTYIT | D13: 15361.00 | E13: 15373.67 | F13: 15287.33 | G13: 15213.67 | H13: 15127.33 | I13: 15447.33 | J13: 15533.67 | K13: 15607.33 | L13: 15460 | M13: 15300 | N13: 11000 | O13: 4.27%
A14: 4 | B14: Cement | C14: ACC | D14: 1556.50 | E14: 1565.13 | F14: 1537.87 | G14: 1519.23 | H14: 1491.97 | I14: 1583.77 | J14: 1611.03 | K14: 1629.67 | L14: 1592.4 | M14: 1546.5 | N14: 2182800 | O14: 8.58%
A15: 5 | B15: Others | C15: ADANIENT | D15: 144.10 | E15: 143.73 | F15: 141.92 | G15: 139.73 | H15: 137.92 | I15: 145.92 | J15: 147.73 | K15: 149.92 | L15: 145.55 | M15: 141.55 | N15: 25780000 | O15: 1.34%
A16: 6 | B16: Others | C16: ADANIPORTS | D16: 406.35 | E16: 405.50 | F16: 402.45 | G16: 398.55 | H16: 395.50 | I16: 409.40 | J16: 412.45 | K16: 416.35 | L16: 408.55 | M16: 401.6 | N16: 11812500 | O16: 4.93%
A17: 7 | B17: Power | C17: ADANIPOWER | D17: 61.50 | E17: 61.57 | F17: 60.78 | G17: 60.07 | H17: 59.28 | I17: 62.28 | J17: 63.07 | K17: 63.78 | L17: 62.35 | M17: 60.85 | N17: 90900000 | O17: 0.13%
A18: 8 | B18: Automobile | C18: AMARAJABAT | D18: 713.50 | E18: 708.77 | F18: 699.68 | G18: 685.87 | H18: 676.78 | I18: 722.58 | J18: 731.67 | K18: 745.48 | L18: 717.85 | M18: 694.95 | N18: 1639400 | O18: -1.72%
A19: 9 | B19: Cement | C19: AMBUJACEM | D19: 197.60 | E19: 198.25 | F19: 194.50 | G19: 191.40 | H19: 187.65 | I19: 201.35 | J19: 205.10 | K19: 208.20 | L19: 202 | M19: 195.15 | N19: 24525000 | O19: -0.34%
A20: 10 | B20: Others | C20: APOLLOHOSP | D20: 1386.10 | E20: 1378.05 | F20: 1365.50 | G20: 1344.90 | H20: 1332.35 | I20: 1398.65 | J20: 1411.20 | K20: 1431.80 | L20: 1390.6 | M20: 1357.45 | N20: 1861500 | O20: 1.47%
A21: 11 | B21: Automobile | C21: APOLLOTYRE | D21: 169.20 | E21: 169.67 | F21: 166.53 | G21: 163.87 | H21: 160.73 | I21: 172.33 | J21: 175.47 | K21: 178.13 | L21: 172.8 | M21: 167 | N21: 7710000 | O21: 1.18%
A22: 13 | B22: Automobile | C22: ASHOKLEY | D22: 68.00 | E22: 67.12 | F22: 65.73 | G22: 63.47 | H22: 62.08 | I22: 69.38 | J22: 70.77 | K22: 73.03 | L22: 68.5 | M22: 64.85 | N22: 72018000 | O22: 0.85%
A23: 14 | B23: FMCG | C23: ASIANPAINT | D23: 1752.80 | E23: 1754.00 | F23: 1737.30 | G23: 1721.80 | H23: 1705.10 | I23: 1769.50 | J23: 1786.20 | K23: 1801.70 | L23: 1770.7 | M23: 1738.5 | N23: 8409000 | O23: -0.43%
A24: 15 | B24: Pharma | C24: AUROPHARMA | D24: 583.80 | E24: 578.30 | F24: 569.05 | G24: 554.30 | H24: 545.05 | I24: 593.05 | J24: 602.30 | K24: 617.05 | L24: 587.55 | M24: 563.55 | N24: 15259000 | O24: 0.20%
A25: 16 | B25: Banking | C25: AXISBANK | D25: 673.05 | E25: 667.75 | F25: 656.50 | G25: 639.95 | H25: 628.70 | I25: 684.30 | J25: 695.55 | K25: 712.10 | L25: 679 | M25: 651.2 | N25: 66142800 | O25: 3.50%
A26: 17 | B26: Automobile | C26: BAJAJ-AUTO | D26: 2915.50 | E26: 2923.70 | F26: 2893.45 | G26: 2871.40 | H26: 2841.15 | I26: 2945.75 | J26: 2976.00 | K26: 2998.05 | L26: 2953.95 | M26: 2901.65 | N26: 2058500 | O26: -3.03%
A27: 18 | B27: Finance | C27: BAJAJFINSV | D27: 8500.75 | E27: 8476.02 | F27: 8413.28 | G27: 8325.82 | H27: 8263.08 | I27: 8563.48 | J27: 8626.22 | K27: 8713.68 | L27: 8538.75 | M27: 8388.55 | N27: 1018125 | O27: -0.18%
A28: 19 | B28: Finance | C28: BAJFINANCE | D28: 3988.05 | E28: 3991.97 | F28: 3953.93 | G28: 3919.82 | H28: 3881.78 | I28: 4026.08 | J28: 4064.12 | K28: 4098.23 | L28: 4030 | M28: 3957.85 | N28: 6386500 | O28: 3.05%
A29: 20 | B29: Automobile | C29: BALKRISIND | D29: 766.55 | E29: 764.52 | F29: 752.13 | G29: 737.72 | H29: 725.33 | I29: 778.93 | J29: 791.32 | K29: 805.73 | L29: 776.9 | M29: 750.1 | N29: 1660000 | O29: 2.47%
A30: 21 | B30: Banking | C30: BANKBARODA | D30: 91.50 | E30: 91.70 | F30: 89.70 | G30: 87.90 | H30: 85.90 | I30: 93.50 | J30: 95.50 | K30: 97.30 | L30: 93.7 | M30: 89.9 | N30: 63427500 | O30: 1.82%
A31: 22 | B31: Banking | C31: BANKINDIA | D31: 61.40 | E31: 60.53 | F31: 58.72 | G31: 56.03 | H31: 54.22 | I31: 63.22 | J31: 65.03 | K31: 67.72 | L31: 62.35 | M31: 57.85 | N31: 26304000 | O31: -5.50%
A32: 23 | B32: FMCG | C32: BATAINDIA | D32: 1693.20 | E32: 1705.33 | F32: 1667.87 | G32: 1642.53 | H32: 1605.07 | I32: 1730.67 | J32: 1768.13 | K32: 1793.47 | L32: 1742.8 | M32: 1680 | N32: 2395800 | O32: 2.49%
A33: 24 | B33: Capital_Goods | C33: BEL | D33: 105.60 | E33: 105.73 | F33: 104.07 | G33: 102.53 | H33: 100.87 | I33: 107.27 | J33: 108.93 | K33: 110.47 | L33: 107.4 | M33: 104.2 | N33: 20982000 | O33: 3.16%
A34: 25 | B34: FMCG | C34: BERGEPAINT | D34: 428.20 | E34: 428.18 | F34: 424.37 | G34: 420.53 | H34: 416.72 | I34: 432.02 | J34: 435.83 | K34: 439.67 | L34: 432 | M34: 424.35 | N34: 4411000 | O34: 1.93%
A35: 26 | B35: Automobile | C35: BHARATFORG | D35: 440.55 | E35: 441.35 | F35: 434.70 | G35: 428.85 | H35: 422.20 | I35: 447.20 | J35: 453.85 | K35: 459.70 | L35: 448 | M35: 435.5 | N35: 7844400 | O35: 1.92%
A36: 27 | B36: Telecom | C36: BHARTIARTL | D36: 346.95 | E36: 348.87 | F36: 341.08 | G36: 335.22 | H36: 327.43 | I36: 354.73 | J36: 362.52 | K36: 368.38 | L36: 356.65 | M36: 343 | N36: 39400386 | O36: -0.71%
A37: 28 | B37: Capital_Goods | C37: BHEL | D37: 47.50 | E37: 47.42 | F37: 46.18 | G37: 44.87 | H37: 43.63 | I37: 48.73 | J37: 49.97 | K37: 51.28 | L37: 48.65 | M37: 46.1 | N37: 47085000 | O37: 1.03%
A38: 29 | B38: Pharma | C38: BIOCON | D38: 232.80 | E38: 229.37 | F38: 225.03 | G38: 217.27 | H38: 212.93 | I38: 237.13 | J38: 241.47 | K38: 249.23 | L38: 233.7 | M38: 221.6 | N38: 11588400 | O38: -5.27%
A39: 30 | B39: Automobile | C39: BOSCHLTD | D39: 13606.95 | E39: 13522.30 | F39: 13384.60 | G39: 13162.25 | H39: 13024.55 | I39: 13744.65 | J39: 13882.35 | K39: 14104.70 | L39: 13660 | M39: 13299.95 | N39: 147630 | O39: -0.89%
A40: 31 | B40: Oil_Gas | C40: BPCL | D40: 533.40 | E40: 523.48 | F40: 506.37 | G40: 479.33 | H40: 462.22 | I40: 550.52 | J40: 567.63 | K40: 594.67 | L40: 540.6 | M40: 496.45 | N40: 22701600 | O40: 6.10%
A41: 32 | B41: FMCG | C41: BRITANNIA | D41: 2913.75 | E41: 2908.25 | F41: 2880.30 | G41: 2846.85 | H41: 2818.90 | I41: 2941.70 | J41: 2969.65 | K41: 3003.10 | L41: 2936.2 | M41: 2874.8 | N41: 2205600 | O41: -0.74%
A42: 34 | B42: Pharma | C42: CADILAHC | D42: 235.30 | E42: 234.12 | F42: 231.43 | G42: 227.57 | H42: 224.88 | I42: 237.98 | J42: 240.67 | K42: 244.53 | L42: 236.8 | M42: 230.25 | N42: 9232000 | O42: -0.35%
A43: 35 | B43: Banking | C43: CANBK | D43: 182.35 | E43: 181.08 | F43: 177.27 | G43: 172.18 | H43: 168.37 | I43: 186.17 | J43: 189.98 | K43: 195.07 | L43: 184.9 | M43: 176 | N43: 12288000 | O43: -2.60%
A44: 36 | B44: Oil_Gas | C44: CASTROLIND | D44: 134.50 | E44: 135.15 | F44: 132.90 | G44: 131.30 | H44: 129.05 | I44: 136.75 | J44: 139.00 | K44: 140.60 | L44: 137.4 | M44: 133.55 | N44: 5786800 | O44: -0.70%
A45: 37 | B45: Textile | C45: CENTURYTEX | D45: 893.80 | E45: 896.98 | F45: 882.87 | G45: 871.93 | H45: 857.82 | I45: 907.92 | J45: 922.03 | K45: 932.97 | L45: 911.1 | M45: 886.05 | N45: 3289800 | O45: 1.27%
A46: 38 | B46: Power | C46: CESC | D46: 752.20 | E46: 747.98 | F46: 740.37 | G46: 728.53 | H46: 720.92 | I46: 759.82 | J46: 767.43 | K46: 779.27 | L46: 755.6 | M46: 736.15 | N46: 1620800 | O46: -2.92%
A47: 39 | B47: Finance | C47: CHOLAFIN | D47: 291.90 | E47: 293.28 | F47: 285.27 | G47: 278.63 | H47: 270.62 | I47: 299.92 | J47: 307.93 | K47: 314.57 | L47: 301.3 | M47: 286.65 | N47: 2822500 | O47: 0.09%
A48: 40 | B48: Pharma | C48: CIPLA | D48: 420.80 | E48: 418.08 | F48: 411.87 | G48: 402.93 | H48: 396.72 | I48: 427.02 | J48: 433.23 | K48: 442.17 | L48: 424.3 | M48: 409.15 | N48: 14335000 | O48: 2.58%
A49: 41 | B49: Others | C49: COALINDIA | D49: 188.05 | E49: 189.18 | F49: 185.17 | G49: 182.28 | H49: 178.27 | I49: 192.07 | J49: 196.08 | K49: 198.97 | L49: 193.2 | M49: 186.3 | N49: 35629000 | O49: -2.30%
A50: 42 | B50: FMCG | C50: COLPAL | D50: 1496.05 | E50: 1498.68 | F50: 1485.37 | G50: 1474.68 | H50: 1461.37 | I50: 1509.37 | J50: 1522.68 | K50: 1533.37 | L50: 1512 | M50: 1488 | N50: 1477000 | O50: 1.93%
A51: 43 | B51: Others | C51: CONCOR | D51: 636.45 | E51: 636.43 | F51: 626.02 | G51: 615.58 | H51: 605.17 | I51: 646.87 | J51: 657.28 | K51: 667.72 | L51: 646.85 | M51: 626 | N51: 4779654 | O51: 2.55%
A52: 44 | B52: Capital_Goods | C52: CUMMINSIND | D52: 563.20 | E52: 566.82 | F52: 555.68 | G52: 548.17 | H52: 537.03 | I52: 574.33 | J52: 585.47 | K52: 592.98 | L52: 577.95 | M52: 559.3 | N52: 1544900 | O52: 0.73%
A53: 45 | B53: FMCG | C53: DABUR | D53: 436.65 | E53: 437.63 | F53: 433.57 | G53: 430.48 | H53: 426.42 | I53: 440.72 | J53: 444.78 | K53: 447.87 | L53: 441.7 | M53: 434.55 | N53: 11495000 | O53: 1.59%
A54: 47 | B54: Media | C54: DISHTV | D54: 17.90 | E54: 17.53 | F54: 16.62 | G54: 15.33 | H54: 14.42 | I54: 18.82 | J54: 19.73 | K54: 21.02 | L54: 18.45 | M54: 16.25 | N54: 94388000 | O54: -2.33%
A55: 48 | B55: Pharma | C55: DIVISLAB | D55: 1639.00 | E55: 1632.50 | F55: 1610.50 | G55: 1582.00 | H55: 1560.00 | I55: 1661.00 | J55: 1683.00 | K55: 1711.50 | L55: 1654.5 | M55: 1604 | N55: 2509200 | O55: -1.40%
A56: 49 | B56: Realty | C56: DLF | D56: 150.85 | E56: 149.60 | F56: 146.25 | G56: 141.65 | H56: 138.30 | I56: 154.20 | J56: 157.55 | K56: 162.15 | L56: 152.95 | M56: 145 | N56: 41563200 | O56: 1.12%
A57: 50 | B57: Pharma | C57: DRREDDY | D57: 2690.90 | E57: 2683.48 | F57: 2664.47 | G57: 2638.03 | H57: 2619.02 | I57: 2709.92 | J57: 2728.93 | K57: 2755.37 | L57: 2702.5 | M57: 2657.05 | N57: 3751000 | O57: -0.73%
A58: 51 | B58: Automobile | C58: EICHERMOT | D58: 18386.00 | E58: 18219.27 | F58: 18004.13 | G58: 17622.27 | H58: 17407.13 | I58: 18601.13 | J58: 18816.27 | K58: 19198.13 | L58: 18434.4 | M58: 17837.4 | N58: 331100 | O58: -5.61%
A59: 53 | B59: Finance | C59: EQUITAS | D59: 102.95 | E59: 102.57 | F59: 101.03 | G59: 99.12 | H59: 97.58 | I59: 104.48 | J59: 106.02 | K59: 107.93 | L59: 104.1 | M59: 100.65 | N59: 12120000 | O59: -1.66%
A60: 54 | B60: Automobile | C60: ESCORTS | D60: 622.10 | E60: 613.73 | F60: 600.07 | G60: 578.03 | H60: 564.37 | I60: 635.77 | J60: 649.43 | K60: 671.47 | L60: 627.4 | M60: 591.7 | N60: 5148000 | O60: -1.39%
A61: 55 | B61: Automobile | C61: EXIDEIND | D61: 197.05 | E61: 196.93 | F61: 193.52 | G61: 189.98 | H61: 186.57 | I61: 200.47 | J61: 203.88 | K61: 207.42 | L61: 200.35 | M61: 193.4 | N61: 9309600 | O61: -0.26%
A62: 56 | B62: Banking | C62: FEDERALBNK | D62: 89.35 | E62: 88.40 | F62: 86.80 | G62: 84.25 | H62: 82.65 | I62: 90.95 | J62: 92.55 | K62: 95.10 | L62: 90 | M62: 85.85 | N62: 42273000 | O62: -0.20%
A63: 57 | B63: Oil_Gas | C63: GAIL | D63: 132.25 | E63: 132.68 | F63: 130.97 | G63: 129.68 | H63: 127.97 | I63: 133.97 | J63: 135.68 | K63: 136.97 | L63: 134.4 | M63: 131.4 | N63: 42474642 | O63: 5.48%
A64: 58 | B64: Pharma | C64: GLENMARK | D64: 321.50 | E64: 320.72 | F64: 315.88 | G64: 310.27 | H64: 305.43 | I64: 326.33 | J64: 331.17 | K64: 336.78 | L64: 325.55 | M64: 315.1 | N64: 5720000 | O64: 1.82%
A65: 59 | B65: Infrastructure | C65: GMRINFRA | D65: 17.00 | E65: 16.85 | F65: 16.65 | G65: 16.30 | H65: 16.10 | I65: 17.20 | J65: 17.40 | K65: 17.75 | L65: 17.05 | M65: 16.5 | N65: 148095000 | O65: -1.38%
A66: 60 | B66: FMCG | C66: GODREJCP | D66: 661.60 | E66: 670.12 | F66: 649.28 | G66: 636.97 | H66: 616.13 | I66: 682.43 | J66: 703.27 | K66: 715.58 | L66: 690.95 | M66: 657.8 | N66: 6449600 | O66: 9.39%
A67: 61 | B67: Cement | C67: GRASIM | D67: 683.40 | E67: 685.72 | F67: 670.73 | G67: 658.07 | H67: 643.08 | I67: 698.38 | J67: 713.37 | K67: 726.03 | L67: 700.7 | M67: 673.05 | N67: 17971500 | O67: 1.35%
A68: 62 | B68: Others | C68: HAVELLS | D68: 706.30 | E68: 707.88 | F68: 700.12 | G68: 693.93 | H68: 686.17 | I68: 714.07 | J68: 721.83 | K68: 728.02 | L68: 715.65 | M68: 701.7 | N68: 5218000 | O68: 0.48%
A69: 63 | B69: Technology | C69: HCLTECH | D69: 1078.40 | E69: 1076.68 | F69: 1061.37 | G69: 1044.33 | H69: 1029.02 | I69: 1093.72 | J69: 1109.03 | K69: 1126.07 | L69: 1092 | M69: 1059.65 | N69: 10537800 | O69: -2.94%
A70: 64 | B70: Finance | C70: HDFC | D70: 1985.60 | E70: 1987.17 | F70: 1962.08 | G70: 1938.57 | H70: 1913.48 | I70: 2010.68 | J70: 2035.77 | K70: 2059.28 | L70: 2012.25 | M70: 1963.65 | N70: 38267500 | O70: -0.26%
A71: 65 | B71: Banking | C71: HDFCBANK | D71: 1229.20 | E71: 1232.87 | F71: 1216.98 | G71: 1204.77 | H71: 1188.88 | I71: 1245.08 | J71: 1260.97 | K71: 1273.18 | L71: 1248.75 | M71: 1220.65 | N71: 40737500 | O71: 2.47%
A72: 66 | B72: Automobile | C72: HEROMOTOCO | D72: 2682.70 | E72: 2700.92 | F72: 2656.03 | G72: 2629.37 | H72: 2584.48 | I72: 2727.58 | J72: 2772.47 | K72: 2799.13 | L72: 2745.8 | M72: 2674.25 | N72: 2921600 | O72: 4.81%
A73: 67 | B73: Technology | C73: HEXAWARE | D73: 371.10 | E73: 372.57 | F73: 367.93 | G73: 364.77 | H73: 360.13 | I73: 375.73 | J73: 380.37 | K73: 383.53 | L73: 377.2 | M73: 369.4 | N73: 2160000 | O73: -2.17%
A74: 68 | B74: Metals | C74: HINDALCO | D74: 183.75 | E74: 184.80 | F74: 180.10 | G74: 176.45 | H74: 171.75 | I74: 188.45 | J74: 193.15 | K74: 196.80 | L74: 189.5 | M74: 181.15 | N74: 34275500 | O74: 6.79%
A75: 69 | B75: Oil_Gas | C75: HINDPETRO | D75: 325.00 | E75: 322.13 | F75: 314.87 | G75: 304.73 | H75: 297.47 | I75: 332.27 | J75: 339.53 | K75: 349.67 | L75: 329.4 | M75: 312 | N75: 19712700 | O75: 4.77%
A76: 70 | B76: FMCG | C76: HINDUNILVR | D76: 1970.25 | E76: 1977.15 | F76: 1959.40 | G76: 1948.55 | H76: 1930.80 | I76: 1988.00 | J76: 2005.75 | K76: 2016.60 | L76: 1994.9 | M76: 1966.3 | N76: 8592300 | O76: 3.32%
A77: 72 | B77: Finance | C77: IBULHSGFIN | D77: 255.85 | E77: 264.38 | F77: 235.57 | G77: 215.28 | H77: 186.47 | I77: 284.67 | J77: 313.48 | K77: 333.77 | L77: 293.2 | M77: 244.1 | N77: 19551200 | O77: -0.85%
A78: 73 | B78: Banking | C78: ICICIBANK | D78: 429.50 | E78: 430.27 | F78: 424.08 | G78: 418.67 | H78: 412.48 | I78: 435.68 | J78: 441.87 | K78: 447.28 | L78: 436.45 | M78: 424.85 | N78: 84793500 | O78: -1.23%
A79: 74 | B79: Finance | C79: ICICIPRULI | D79: 467.50 | E79: 466.15 | F79: 461.70 | G79: 455.90 | H79: 451.45 | I79: 471.95 | J79: 476.40 | K79: 482.20 | L79: 470.6 | M79: 460.35 | N79: 5607000 | O79: 0.00%
A80: 76 | B80: Telecom | C80: IDEA | D80: 5.10 | E80: 5.17 | F80: 4.93 | G80: 4.77 | H80: 4.53 | I80: 5.33 | J80: 5.57 | K80: 5.73 | L80: 5.4 | M80: 5 | N80: 541716000 | O80: -4.69%
A81: 77 | B81: Banking | C81: IDFCFIRSTB | D81: 35.50 | E81: 35.17 | F81: 34.28 | G81: 33.07 | H81: 32.18 | I81: 36.38 | J81: 37.27 | K81: 38.48 | L81: 36.05 | M81: 33.95 | N81: 233748000 | O81: 2.10%
A82: 78 | B82: Oil_Gas | C82: IGL | D82: 354.30 | E82: 352.77 | F82: 349.53 | G82: 344.77 | H82: 341.53 | I82: 357.53 | J82: 360.77 | K82: 365.53 | L82: 356 | M82: 348 | N82: 3245000 | O82: -0.84%
A83: 79 | B83: Others | C83: INDIGO | D83: 1825.05 | E83: 1818.35 | F83: 1786.85 | G83: 1748.65 | H83: 1717.15 | I83: 1856.55 | J83: 1888.05 | K83: 1926.25 | L83: 1849.85 | M83: 1780.15 | N83: 2514000 | O83: -4.12%
A84: 80 | B84: Banking | C84: INDUSINDBK | D84: 1264.60 | E84: 1269.88 | F84: 1222.77 | G84: 1180.93 | H84: 1133.82 | I84: 1311.72 | J84: 1358.83 | K84: 1400.67 | L84: 1317 | M84: 1228.05 | N84: 15077600 | O84: 7.73%
A85: 81 | B85: Telecom | C85: INFRATEL | D85: 248.40 | E85: 248.83 | F85: 246.07 | G85: 243.73 | H85: 240.97 | I85: 251.17 | J85: 253.93 | K85: 256.27 | L85: 251.6 | M85: 246.5 | N85: 7086000 | O85: 0.51%
A86: 82 | B86: Technology | C86: INFY | D86: 782.20 | E86: 785.22 | F86: 777.98 | G86: 773.77 | H86: 766.53 | I86: 789.43 | J86: 796.67 | K86: 800.88 | L86: 792.45 | M86: 781 | N86: 46746000 | O86: 0.04%
A87: 83 | B87: Oil_Gas | C87: IOC | D87: 152.75 | E87: 152.40 | F87: 150.00 | G87: 147.25 | H87: 144.85 | I87: 155.15 | J87: 157.55 | K87: 160.30 | L87: 154.8 | M87: 149.65 | N87: 52629500 | O87: 3.55%
A88: 84 | B88: FMCG | C88: ITC | D88: 262.25 | E88: 260.63 | F88: 258.52 | G88: 254.78 | H88: 252.67 | I88: 264.37 | J88: 266.48 | K88: 270.22 | L88: 262.75 | M88: 256.9 | N88: 105127200 | O88: -2.43%
A89: 85 | B89: Metals | C89: JINDALSTEL | D89: 96.40 | E89: 97.10 | F89: 94.10 | G89: 91.80 | H89: 88.80 | I89: 99.40 | J89: 102.40 | K89: 104.70 | L89: 100.1 | M89: 94.8 | N89: 35494400 | O89: 3.58%
A90: 86 | B90: Metals | C90: JSWSTEEL | D90: 222.65 | E90: 222.90 | F90: 219.00 | G90: 215.35 | H90: 211.45 | I90: 226.55 | J90: 230.45 | K90: 234.10 | L90: 226.8 | M90: 219.25 | N90: 55344000 | O90: -0.09%
A91: 87 | B91: Others | C91: JUBLFOOD | D91: 1323.70 | E91: 1326.90 | F91: 1306.80 | G91: 1289.90 | H91: 1269.80 | I91: 1343.80 | J91: 1363.90 | K91: 1380.80 | L91: 1347 | M91: 1310 | N91: 2130500 | O91: 2.82%
A92: 88 | B92: Others | C92: JUSTDIAL | D92: 661.70 | E92: 668.88 | F92: 645.57 | G92: 629.43 | H92: 606.12 | I92: 685.02 | J92: 708.33 | K92: 724.47 | L92: 692.2 | M92: 652.75 | N92: 2128000 | O92: 13.26%
A93: 90 | B93: Banking | C93: KOTAKBANK | D93: 1627.05 | E93: 1631.85 | F93: 1613.60 | G93: 1600.15 | H93: 1581.90 | I93: 1645.30 | J93: 1663.55 | K93: 1677.00 | L93: 1650.1 | M93: 1618.4 | N93: 8074400 | O93: 1.83%
A94: 91 | B94: Finance | C94: L&TFH | D94: 82.50 | E94: 83.42 | F94: 80.48 | G94: 78.47 | H94: 75.53 | I94: 85.43 | J94: 88.37 | K94: 90.38 | L94: 86.35 | M94: 81.4 | N94: 41152500 | O94: 5.60%
A95: 92 | B95: Finance | C95: LICHSGFIN | D95: 382.35 | E95: 383.05 | F95: 374.15 | G95: 365.95 | H95: 357.05 | I95: 391.25 | J95: 400.15 | K95: 408.35 | L95: 391.95 | M95: 374.85 | N95: 10355400 | O95: -3.65%
A96: 93 | B96: Capital_Goods | C96: LT | D96: 1462.75 | E96: 1458.30 | F96: 1433.00 | G96: 1403.25 | H96: 1377.95 | I96: 1488.05 | J96: 1513.35 | K96: 1543.10 | L96: 1483.6 | M96: 1428.55 | N96: 13072500 | O96: -0.15%
A97: 94 | B97: Pharma | C97: LUPIN | D97: 702.85 | E97: 696.83 | F97: 685.07 | G97: 667.28 | H97: 655.52 | I97: 714.62 | J97: 726.38 | K97: 744.17 | L97: 708.6 | M97: 679.05 | N97: 7723800 | O97: -1.01%
A98: 95 | B98: Automobile | C98: M&M | D98: 564.40 | E98: 560.15 | F98: 553.75 | G98: 543.10 | H98: 536.70 | I98: 570.80 | J98: 577.20 | K98: 587.85 | L98: 566.55 | M98: 549.5 | N98: 22035000 | O98: -0.58%
A99: 96 | B99: Finance | C99: M&MFIN | D99: 327.20 | E99: 324.55 | F99: 320.65 | G99: 314.10 | H99: 310.20 | I99: 331.10 | J99: 335.00 | K99: 341.55 | L99: 328.45 | M99: 318 | N99: 14753750 | O99: 0.03%
A100: 97 | B100: Finance | C100: MANAPPURAM | D100: 134.40 | E100: 134.70 | F100: 132.60 | G100: 130.80 | H100: 128.70 | I100: 136.50 | J100: 138.60 | K100: 140.40 | L100: 136.8 | M100: 132.9 | N100: 14370000 | O100: 17.69%
A101: 98 | B101: FMCG | C101: MARICO | D101: 385.40 | E101: 384.53 | F101: 382.77 | G101: 380.13 | H101: 378.37 | I101: 387.17 | J101: 388.93 | K101: 391.57 | L101: 386.3 | M101: 381.9 | N101: 11788400 | O101: 0.58%
A102: 99 | B102: Automobile | C102: MARUTI | D102: 6791.80 | E102: 6781.72 | F102: 6722.08 | G102: 6652.37 | H102: 6592.73 | I102: 6851.43 | J102: 6911.07 | K102: 6980.78 | L102: 6841.35 | M102: 6712 | N102: 2431425 | O102: -0.22%
A103: 100 | B103: FMCG | C103: MCDOWELL-N | D103: 624.60 | E103: 629.28 | F103: 617.57 | G103: 610.53 | H103: 598.82 | I103: 636.32 | J103: 648.03 | K103: 655.07 | L103: 641 | M103: 622.25 | N103: 11060000 | O103: 5.06%
A104: 102 | B104: Finance | C104: MFSL | D104: 419.60 | E104: 421.52 | F104: 413.53 | G104: 407.47 | H104: 399.48 | I104: 427.58 | J104: 435.57 | K104: 441.63 | L104: 429.5 | M104: 415.45 | N104: 2967600 | O104: -3.85%
A105: 103 | B105: Oil_Gas | C105: MGL | D105: 896.60 | E105: 893.67 | F105: 882.93 | G105: 869.27 | H105: 858.53 | I105: 907.33 | J105: 918.07 | K105: 931.73 | L105: 904.4 | M105: 880 | N105: 1595400 | O105: -3.62%
A106: 104 | B106: Technology | C106: MINDTREE | D106: 720.70 | E106: 720.82 | F106: 710.38 | G106: 700.07 | H106: 689.63 | I106: 731.13 | J106: 741.57 | K106: 751.88 | L106: 731.25 | M106: 710.5 | N106: 1292400 | O106: 3.21%
A107: 105 | B107: Automobile | C107: MOTHERSUMI | D107: 99.75 | E107: 101.33 | F107: 97.62 | G107: 95.48 | H107: 91.77 | I107: 103.47 | J107: 107.18 | K107: 109.32 | L107: 105.05 | M107: 99.2 | N107: 30284100 | O107: 6.30%
A108: 106 | B108: Automobile | C108: MRF | D108: 61924.10 | E108: 62028.82 | F108: 61558.68 | G108: 61193.27 | H108: 60723.13 | I108: 62394.23 | J108: 62864.37 | K108: 63229.78 | L108: 62498.95 | M108: 61663.4 | N108: 20330 | O108: -0.83%
A109: 107 | B109: Finance | C109: MUTHOOTFIN | D109: 670.35 | E109: 674.58 | F109: 661.67 | G109: 652.98 | H109: 640.07 | I109: 683.27 | J109: 696.18 | K109: 704.87 | L109: 687.5 | M109: 665.9 | N109: 1557000 | O109: 5.27%
A110: 108 | B110: Metals | C110: NATIONALUM | D110: 44.55 | E110: 44.35 | F110: 43.55 | G110: 42.55 | H110: 41.75 | I110: 45.35 | J110: 46.15 | K110: 47.15 | L110: 45.15 | M110: 43.35 | N110: 33190000 | O110: 5.77%
A111: 109 | B111: Infrastructure | C111: NBCC | D111: 34.20 | E111: 34.42 | F111: 33.63 | G111: 33.07 | H111: 32.28 | I111: 34.98 | J111: 35.77 | K111: 36.33 | L111: 35.2 | M111: 33.85 | N111: 28832000 | O111: 3.01%
A112: 110 | B112: Infrastructure | C112: NCC | D112: 53.10 | E112: 53.18 | F112: 51.62 | G112: 50.13 | H112: 48.57 | I112: 54.67 | J112: 56.23 | K112: 57.72 | L112: 54.75 | M112: 51.7 | N112: 45184000 | O112: 0.02%
A113: 111 | B113: FMCG | C113: NESTLEIND | D113: 13747.40 | E113: 13719.92 | F113: 13649.83 | G113: 13552.27 | H113: 13482.18 | I113: 13817.48 | J113: 13887.57 | K113: 13985.13 | L113: 13790 | M113: 13622.35 | N113: 553750 | O113: -0.35%
A114: 112 | B114: Technology | C114: NIITTECH | D114: 1370.20 | E114: 1367.98 | F114: 1348.57 | G114: 1326.93 | H114: 1307.52 | I114: 1389.62 | J114: 1409.03 | K114: 1430.67 | L114: 1387.4 | M114: 1346.35 | N114: 740250 | O114: -6.27%
A115: 113 | B115: Metals | C115: NMDC | D115: 98.00 | E115: 96.75 | F115: 95.10 | G115: 92.20 | H115: 90.55 | I115: 99.65 | J115: 101.30 | K115: 104.20 | L115: 98.4 | M115: 93.85 | N115: 26592000 | O115: 1.26%
A116: 114 | B116: Power | C116: NTPC | D116: 117.10 | E116: 116.28 | F116: 115.12 | G116: 113.13 | H116: 111.97 | I116: 118.27 | J116: 119.43 | K116: 121.42 | L116: 117.45 | M116: 114.3 | N116: 63820800 | O116: -1.65%
A117: 116 | B117: Oil_Gas | C117: OIL | D117: 145.30 | E117: 144.18 | F117: 142.62 | G117: 139.93 | H117: 138.37 | I117: 146.87 | J117: 148.43 | K117: 151.12 | L117: 145.75 | M117: 141.5 | N117: 9595377 | O117: -0.07%
A118: 117 | B118: Oil_Gas | C118: ONGC | D118: 129.10 | E118: 128.55 | F118: 126.70 | G118: 124.30 | H118: 122.45 | I118: 130.95 | J118: 132.80 | K118: 135.20 | L118: 130.4 | M118: 126.15 | N118: 64601250 | O118: 1.06%
A119: 118 | B119: Textile | C119: PAGEIND | D119: 21601.25 | E119: 21646.18 | F119: 21387.07 | G119: 21172.88 | H119: 20913.77 | I119: 21860.37 | J119: 22119.48 | K119: 22333.67 | L119: 21905.3 | M119: 21432 | N119: 193150 | O119: -0.76%
A120: 119 | B120: Pharma | C120: PEL | D120: 1516.00 | E120: 1548.63 | F120: 1457.37 | G120: 1398.73 | H120: 1307.47 | I120: 1607.27 | J120: 1698.53 | K120: 1757.17 | L120: 1639.9 | M120: 1490 | N120: 6258346 | O120: 3.79%
A121: 120 | B121: Oil_Gas | C121: PETRONET | D121: 259.85 | E121: 260.77 | F121: 257.68 | G121: 255.52 | H121: 252.43 | I121: 262.93 | J121: 266.02 | K121: 268.18 | L121: 263.85 | M121: 258.6 | N121: 20754000 | O121: 1.20%
A122: 121 | B122: Finance | C122: PFC | D122: 95.75 | E122: 95.80 | F122: 94.05 | G122: 92.35 | H122: 90.60 | I122: 97.50 | J122: 99.25 | K122: 100.95 | L122: 97.55 | M122: 94.1 | N122: 42773800 | O122: 2.86%
A123: 122 | B123: FMCG | C123: PIDILITIND | D123: 1395.60 | E123: 1409.12 | F123: 1366.48 | G123: 1337.37 | H123: 1294.73 | I123: 1438.23 | J123: 1480.87 | K123: 1509.98 | L123: 1451.75 | M123: 1380 | N123: 2813000 | O123: 6.76%
A124: 123 | B124: Banking | C124: PNB | D124: 59.35 | E124: 59.22 | F124: 58.13 | G124: 56.92 | H124: 55.83 | I124: 60.43 | J124: 61.52 | K124: 62.73 | L124: 60.3 | M124: 58 | N124: 105490000 | O124: 0.09%
A125: 124 | B125: Power | C125: POWERGRID | D125: 199.55 | E125: 198.48 | F125: 196.17 | G125: 192.78 | H125: 190.47 | I125: 201.87 | J125: 204.18 | K125: 207.57 | L125: 200.8 | M125: 195.1 | N125: 29652000 | O125: 1.27%
A126: 125 | B126: Media | C126: PVR | D126: 1844.20 | E126: 1836.42 | F126: 1822.93 | G126: 1801.67 | H126: 1788.18 | I126: 1857.68 | J126: 1871.17 | K126: 1892.43 | L126: 1849.9 | M126: 1815.15 | N126: 876000 | O126: -0.95%
A127: 126 | B127: Cement | C127: RAMCOCEM | D127: 722.55 | E127: 724.00 | F127: 717.55 | G127: 712.55 | H127: 706.10 | I127: 729.00 | J127: 735.45 | K127: 740.45 | L127: 730.45 | M127: 719 | N127: 1323200 | O127: 2.80%
A128: 128 | B128: Banking | C128: RBLBANK | D128: 311.15 | E128: 307.57 | F128: 296.13 | G128: 281.12 | H128: 269.68 | I128: 322.58 | J128: 334.02 | K128: 349.03 | L128: 319 | M128: 292.55 | N128: 15664800 | O128: 3.71%
A129: 129 | B129: Power | C129: RECLTD | D129: 125.30 | E129: 124.77 | F129: 123.08 | G129: 120.87 | H129: 119.18 | I129: 126.98 | J129: 128.67 | K129: 130.88 | L129: 126.45 | M129: 122.55 | N129: 28212000 | O129: 7.30%
A130: 131 | B130: Oil_Gas | C130: RELIANCE | D130: 1315.50 | E130: 1307.97 | F130: 1297.13 | G130: 1278.77 | H130: 1267.93 | I130: 1326.33 | J130: 1337.17 | K130: 1355.53 | L130: 1318.8 | M130: 1289.6 | N130: 52824500 | O130: -0.88%
A131: 133 | B131: Metals | C131: SAIL | D131: 31.65 | E131: 31.80 | F131: 31.10 | G131: 30.55 | H131: 29.85 | I131: 32.35 | J131: 33.05 | K131: 33.60 | L131: 32.5 | M131: 31.25 | N131: 84108000 | O131: 1.49%
A132: 134 | B132: Banking | C132: SBIN | D132: 255.80 | E132: 256.37 | F132: 250.53 | G132: 245.27 | H132: 239.43 | I132: 261.63 | J132: 267.47 | K132: 272.73 | L132: 262.2 | M132: 251.1 | N132: 124905000 | O132: 3.49%
A133: 135 | B133: Cement | C133: SHREECEM | D133: 18369.50 | E133: 18460.98 | F133: 18158.52 | G133: 17947.53 | H133: 17645.07 | I133: 18671.97 | J133: 18974.43 | K133: 19185.42 | L133: 18763.45 | M133: 18250 | N133: 174200 | O133: 0.66%
A134: 136 | B134: Capital_Goods | C134: SIEMENS | D134: 1535.80 | E134: 1534.28 | F134: 1510.97 | G134: 1486.13 | H134: 1462.82 | I134: 1559.12 | J134: 1582.43 | K134: 1607.27 | L134: 1557.6 | M134: 1509.45 | N134: 1229250 | O134: -1.28%
A135: 137 | B135: Textile | C135: SRF | D135: 2740.15 | E135: 2720.87 | F135: 2679.33 | G135: 2618.52 | H135: 2576.98 | I135: 2781.68 | J135: 2823.22 | K135: 2884.03 | L135: 2762.4 | M135: 2660.05 | N135: 918000 | O135: 0.77%
A136: 138 | B136: Finance | C136: SRTRANSFIN | D136: 1037.00 | E136: 1039.65 | F136: 1015.35 | G136: 993.70 | H136: 969.40 | I136: 1061.30 | J136: 1085.60 | K136: 1107.25 | L136: 1063.95 | M136: 1018 | N136: 4274400 | O136: -0.36%
A137: 139 | B137: Pharma | C137: STAR | D137: 308.80 | E137: 304.45 | F137: 298.55 | G137: 288.30 | H137: 282.40 | I137: 314.70 | J137: 320.60 | K137: 330.85 | L137: 310.35 | M137: 294.2 | N137: 2672400 | O137: 6.45%
A138: 140 | B138: Pharma | C138: SUNPHARMA | D138: 389.55 | E138: 387.73 | F138: 381.97 | G138: 374.38 | H138: 368.62 | I138: 395.32 | J138: 401.08 | K138: 408.67 | L138: 393.5 | M138: 380.15 | N138: 59161300 | O138: 0.59%
A139: 141 | B139: Media | C139: SUNTV | D139: 486.80 | E139: 481.07 | F139: 473.33 | G139: 459.87 | H139: 452.13 | I139: 494.53 | J139: 502.27 | K139: 515.73 | L139: 488.8 | M139: 467.6 | N139: 3676000 | O139: -1.34%
A140: 142 | B140: Fertilisers | C140: TATACHEM | D140: 587.90 | E140: 586.32 | F140: 580.98 | G140: 574.07 | H140: 568.73 | I140: 593.23 | J140: 598.57 | K140: 605.48 | L140: 591.65 | M140: 579.4 | N140: 1987200 | O140: -3.07%
A141: 143 | B141: Technology | C141: TATAELXSI | D141: 691.70 | E141: 686.73 | F141: 678.47 | G141: 665.23 | H141: 656.97 | I141: 699.97 | J141: 708.23 | K141: 721.47 | L141: 695 | M141: 673.5 | N141: 1731600 | O141: -2.93%
A142: 144 | B142: FMCG | C142: TATAGLOBAL | D142: 274.50 | E142: 273.50 | F142: 271.00 | G142: 267.50 | H142: 265.00 | I142: 277.00 | J142: 279.50 | K142: 283.00 | L142: 276 | M142: 270 | N142: 7665300 | O142: 1.57%
A143: 145 | B143: Automobile | C143: TATAMOTORS | D143: 123.10 | E143: 120.35 | F143: 116.35 | G143: 109.60 | H143: 105.60 | I143: 127.10 | J143: 131.10 | K143: 137.85 | L143: 124.35 | M143: 113.6 | N143: 66348000 | O143: -2.73%
A144: 146 | B144: Automobile | C144: TATAMTRDVR | D144: 55.05 | E144: 54.07 | F144: 52.33 | G144: 49.62 | H144: 47.88 | I144: 56.78 | J144: 58.52 | K144: 61.23 | L144: 55.8 | M144: 51.35 | N144: 38346000 | O144: 3.80%
A145: 147 | B145: Power | C145: TATAPOWER | D145: 59.80 | E145: 59.65 | F145: 59.20 | G145: 58.60 | H145: 58.15 | I145: 60.25 | J145: 60.70 | K145: 61.30 | L145: 60.1 | M145: 59.05 | N145: 39843000 | O145: 1.17%
A146: 148 | B146: Metals | C146: TATASTEEL | D146: 341.45 | E146: 343.75 | F146: 337.70 | G146: 333.95 | H146: 327.90 | I146: 347.50 | J146: 353.55 | K146: 357.30 | L146: 349.8 | M146: 340 | N146: 29352565 | O146: -0.07%
A147: 149 | B147: Technology | C147: TCS | D147: 2064.30 | E147: 2069.13 | F147: 2051.77 | G147: 2039.23 | H147: 2021.87 | I147: 2081.67 | J147: 2099.03 | K147: 2111.57 | L147: 2086.5 | M147: 2056.6 | N147: 18711000 | O147: -0.30%
A148: 150 | B148: Technology | C148: TECHM | D148: 706.75 | E148: 709.02 | F148: 695.38 | G148: 684.02 | H148: 670.38 | I148: 720.38 | J148: 734.02 | K148: 745.38 | L148: 722.65 | M148: 697.65 | N148: 15012000 | O148: 1.54%
A149: 151 | B149: FMCG | C149: TITAN | D149: 1303.50 | E149: 1295.30 | F149: 1284.20 | G149: 1264.90 | H149: 1253.80 | I149: 1314.60 | J149: 1325.70 | K149: 1345.00 | L149: 1306.4 | M149: 1276 | N149: 9392250 | O149: 1.60%
A150: 152 | B150: Pharma | C150: TORNTPHARM | D150: 1608.65 | E150: 1605.92 | F150: 1590.18 | G150: 1571.72 | H150: 1555.98 | I150: 1624.38 | J150: 1640.12 | K150: 1658.58 | L150: 1621.65 | M150: 1587.45 | N150: 326000 | O150: -10.19%
A151: 153 | B151: Power | C151: TORNTPOWER | D151: 285.55 | E151: 284.20 | F151: 281.85 | G151: 278.15 | H151: 275.80 | I151: 287.90 | J151: 290.25 | K151: 293.95 | L151: 286.55 | M151: 280.5 | N151: 3513000 | O151: -4.25%
A152: 154 | B152: Automobile | C152: TVSMOTOR | D152: 396.55 | E152: 397.00 | F152: 390.10 | G152: 383.65 | H152: 376.75 | I152: 403.45 | J152: 410.35 | K152: 416.80 | L152: 403.9 | M152: 390.55 | N152: 7507500 | O152: 4.42%
A153: 155 | B153: FMCG | C153: UBL | D153: 1333.55 | E153: 1330.28 | F153: 1323.22 | G153: 1312.88 | H153: 1305.82 | I153: 1340.62 | J153: 1347.68 | K153: 1358.02 | L153: 1337.35 | M153: 1319.95 | N153: 1508500 | O153: -0.55%
A154: 156 | B154: Finance | C154: UJJIVAN | D154: 311.10 | E154: 311.27 | F154: 305.73 | G154: 300.37 | H154: 294.83 | I154: 316.63 | J154: 322.17 | K154: 327.53 | L154: 316.8 | M154: 305.9 | N154: 7396800 | O154: 0.39%
A155: 157 | B155: Cement | C155: ULTRACEMCO | D155: 4176.55 | E155: 4185.58 | F155: 4134.97 | G155: 4093.38 | H155: 4042.77 | I155: 4227.17 | J155: 4277.78 | K155: 4319.37 | L155: 4236.2 | M155: 4144 | N155: 2567400 | O155: 0.08%
A156: 158 | B156: Banking | C156: UNIONBANK | D156: 51.85 | E156: 51.60 | F156: 50.50 | G156: 49.15 | H156: 48.05 | I156: 52.95 | J156: 54.05 | K156: 55.40 | L156: 52.7 | M156: 50.25 | N156: 32186000 | O156: 1.23%
A157: 159 | B157: Fertilisers | C157: UPL | D157: 597.05 | E157: 591.40 | F157: 581.40 | G157: 565.75 | H157: 555.75 | I157: 607.05 | J157: 617.05 | K157: 632.70 | L157: 601.4 | M157: 575.75 | N157: 15116400 | O157: -0.05%
A158: 160 | B158: Metals | C158: VEDL | D158: 145.35 | E158: 146.47 | F158: 143.18 | G158: 141.02 | H158: 137.73 | I158: 148.63 | J158: 151.92 | K158: 154.08 | L158: 149.75 | M158: 144.3 | N158: 50025000 | O158: 1.31%
A159: 161 | B159: Capital_Goods | C159: VOLTAS | D159: 678.80 | E159: 677.60 | F159: 669.20 | G159: 659.60 | H159: 651.20 | I159: 687.20 | J159: 695.60 | K159: 705.20 | L159: 686 | M159: 668 | N159: 1858000 | O159: 15.40%
A160: 162 | B160: Technology | C160: WIPRO | D160: 237.00 | E160: 237.32 | F160: 233.98 | G160: 230.97 | H160: 227.63 | I160: 240.33 | J160: 243.67 | K160: 246.68 | L160: 240.65 | M160: 234.3 | N160: 29920000 | O160: -0.69%
A161: 163 | B161: Banking | C161: YESBANK | D161: 42.80 | E161: 40.67 | F161: 37.68 | G161: 32.57 | H161: 29.58 | I161: 45.78 | J161: 48.77 | K161: 53.88 | L161: 43.65 | M161: 35.55 | N161: 214700200 | O161: 6.25%
A162: 164 | B162: Media | C162: ZEEL | D162: 252.50 | E162: 245.95 | F162: 232.95 | G162: 213.40 | H162: 200.40 | I162: 265.50 | J162: 278.50 | K162: 298.05 | L162: 258.95 | M162: 226.4 | N162: 31662800 | O162: 0.28%
A178: Pivot Point: This is trigger point for intra day buy/sell based on the price range of the previous day
A179: As per the tool,the trader should take BUY position just above Pivot and keep the stop loss of pivot point and the first target would be Resistance 1(R1)
A180: If R1 is crossed then R2 becomes the next target with stop loss of at R1
A181: Similarly if price goes below pivot point then the trader should sell and keep a stop loss of pivot point and the first target would be S1
A182: If S1 is crossed then S2 becomes the next target with stop loss of at S1
A184: Disclaimer:
A185: This document has been prepared by the Retail Research Desk of Asit C Mehta
A186: Investment Intermediates Ltd. and is meant for use of the recipient only
A187: and is not for circulation. This document is not to be reported or
A188: copied or made available to others. It should not be considered to be
A189: taken as an offer to sell or a solicitation to buy any security. The
A190: information contained herein is from sources believed reliable. We do
A191: not represent that it is accurate or complete and it should not be
A192: relied upon as such. We may from time to time have positions in and buy
A193: and sell securities referred to herein

Sheet Cash Intra
M5: Back to Main Page
A6: FOR INTRA DAY TRADING | K6: =Main!B10 -> 2019-10-04
A8: Sr.no | B8: Scrip | C8: CLOSE RATE | D8: Pivot Point | E8: Supports | H8: Resistances
C9: Point | E9: S1 | F9: S2 | G9: S3 | H9: R1 | I9: R2 | J9: R3 | K9: HIGH | L9: LOW | M9: Total Trade Quanity in Lakhs
A10: 1 | B10: Nifty 50 | C10: 11314 | D10: 11313.92 | E10: 11257.43 | F10: 11200.87 | G10: 11144.38 | H10: 11370.48 | I10: 11426.97 | J10: 11483.53 | K10: 11370.4 | L10: 11257.35
A11: 2 | B11: Nifty Bank | C11: 28414.1 | D11: 28474.67 | E11: 28180.23 | F11: 27946.37 | G11: 27651.93 | H11: 28708.53 | I11: 29002.97 | J11: 29236.83 | K11: 28769.1 | L11: 28240.8
A12: 3 | B12: Nifty CPSE | C12: 1927.1 | D12: 1927.12 | E12: 1911.08 | F12: 1895.07 | G12: 1879.03 | H12: 1943.13 | I12: 1959.17 | J12: 1975.18 | K12: 1943.15 | L12: 1911.1
A13: 4 | B13: Nifty Infra | C13: 3171.2 | D13: 3160.93 | E13: 3134.22 | F13: 3097.23 | G13: 3070.52 | H13: 3197.92 | I13: 3224.63 | J13: 3261.62 | K13: 3187.65 | L13: 3123.95
A14: 5 | B14: Nifty IT | C14: 15277.95 | D14: 15308.03 | E14: 15198.82 | F14: 15119.68 | G14: 15010.47 | H14: 15387.17 | I14: 15496.38 | J14: 15575.52 | K14: 15417.25 | L14: 15228.9
A15: 6 | B15: Nifty PSE | C15: 3272.55 | D15: 3257.40 | E15: 3231.05 | F15: 3189.55 | G15: 3163.20 | H15: 3298.90 | I15: 3325.25 | J15: 3366.75 | K15: 3283.75 | L15: 3215.9
A16: 7 | B16: Nifty Midcap 50 | C16: 4303.65 | D16: 4298.72 | E16: 4264.48 | F16: 4225.32 | G16: 4191.08 | H16: 4337.88 | I16: 4372.12 | J16: 4411.28 | K16: 4332.95 | L16: 4259.55
A17: 8 | B17: ACC | C17: 1545.75 | D17: 1555.20 | E17: 1527.55 | F17: 1509.35 | G17: 1481.70 | H17: 1573.40 | I17: 1601.05 | J17: 1619.25 | K17: 1582.85 | L17: 1537 | M17: 7.15946
A18: 9 | B18: AUBANK | C18: 649.85 | D18: 648.43 | E18: 644.07 | F18: 638.28 | G18: 633.92 | H18: 654.22 | I18: 658.58 | J18: 664.37 | K18: 652.8 | L18: 642.65 | M18: 1.79831
A19: 10 | B19: ADANIPORTS | C19: 403.9 | D19: 402.90 | E19: 399.60 | F19: 395.30 | G19: 392.00 | H19: 407.20 | I19: 410.50 | J19: 414.80 | K19: 406.2 | L19: 398.6 | M19: 26.19077
A20: 11 | B20: ADANIPOWER | C20: 61.3 | D20: 61.33 | E20: 60.57 | F20: 59.83 | G20: 59.07 | H20: 62.07 | I20: 62.83 | J20: 63.57 | K20: 62.1 | L20: 60.6 | M20: 79.01384
A21: 12 | B21: ABCAPITAL | C21: 78.75 | D21: 79.40 | E21: 77.85 | F21: 76.95 | G21: 75.40 | H21: 80.30 | I21: 81.85 | J21: 82.75 | K21: 80.95 | L21: 78.5 | M21: 14.22854
A22: 13 | B22: ABFRL | C22: 210.4 | D22: 208.40 | E22: 205.30 | F22: 200.20 | G22: 197.10 | H22: 213.50 | I22: 216.60 | J22: 221.70 | K22: 211.5 | L22: 203.3 | M22: 1.96473
A23: 14 | B23: AJANTPHARM | C23: 1017.1 | D23: 1001.70 | E23: 977.40 | F23: 937.70 | G23: 913.40 | H23: 1041.40 | I23: 1065.70 | J23: 1105.40 | K23: 1026 | L23: 962 | M23: 1.06273
A24: 15 | B24: ALKEM | C24: 1898.3 | D24: 1914.43 | E24: 1868.87 | F24: 1839.43 | G24: 1793.87 | H24: 1943.87 | I24: 1989.43 | J24: 2018.87 | K24: 1960 | L24: 1885 | M24: 0.35304
A25: 16 | B25: ALBK | C25: 27.6 | D25: 27.70 | E25: 27.25 | F25: 26.90 | G25: 26.45 | H25: 28.05 | I25: 28.50 | J25: 28.85 | K25: 28.15 | L25: 27.35 | M25: 7.53175
A26: 17 | B26: AMARAJABAT | C26: 711.9 | D26: 707.50 | E26: 698.10 | F26: 684.30 | G26: 674.90 | H26: 721.30 | I26: 730.70 | J26: 744.50 | K26: 716.9 | L26: 693.7 | M26: 2.46954
A27: 18 | B27: AMBUJACEM | C27: 196.35 | D27: 197.12 | E27: 192.98 | F27: 189.62 | G27: 185.48 | H27: 200.48 | I27: 204.62 | J27: 207.98 | K27: 201.25 | L27: 193.75 | M27: 28.84359
A28: 19 | B28: APOLLOHOSP | C28: 1379.1 | D28: 1370.50 | E28: 1357.15 | F28: 1335.20 | G28: 1321.85 | H28: 1392.45 | I28: 1405.80 | J28: 1427.75 | K28: 1383.85 | L28: 1348.55 | M28: 4.43258
A29: 20 | B29: APOLLOTYRE | C29: 168.85 | D29: 169.55 | E29: 166.50 | F29: 164.15 | G29: 161.10 | H29: 171.90 | I29: 174.95 | J29: 177.30 | K29: 172.6 | L29: 167.2 | M29: 25.87269
A30: 21 | B30: ASHOKLEY | C30: 67.65 | D30: 66.78 | E30: 65.22 | F30: 62.78 | G30: 61.22 | H30: 69.22 | I30: 70.78 | J30: 73.22 | K30: 68.35 | L30: 64.35 | M30: 340.86758
A31: 22 | B31: ASIANPAINT | C31: 1748.95 | D31: 1749.80 | E31: 1731.35 | F31: 1713.75 | G31: 1695.30 | H31: 1767.40 | I31: 1785.85 | J31: 1803.45 | K31: 1768.25 | L31: 1732.2 | M31: 10.10826
A32: 23 | B32: AUROPHARMA | C32: 579.65 | D32: 574.15 | E32: 564.60 | F32: 549.55 | G32: 540.00 | H32: 589.20 | I32: 598.75 | J32: 613.80 | K32: 583.7 | L32: 559.1 | M32: 16.73837
A33: 24 | B33: DMART | C33: 1885.2 | D33: 1899.03 | E33: 1858.17 | F33: 1831.13 | G33: 1790.27 | H33: 1926.07 | I33: 1966.93 | J33: 1993.97 | K33: 1939.9 | L33: 1872 | M33: 4.33208
A34: 25 | B34: AXISBANK | C34: 668.4 | D34: 663.67 | E34: 651.43 | F34: 634.47 | G34: 622.23 | H34: 680.63 | I34: 692.87 | J34: 709.83 | K34: 675.9 | L34: 646.7 | M34: 176.15854
A35: 26 | B35: BAJAJ-AUTO | C35: 2897.9 | D35: 2906.70 | E35: 2873.70 | F35: 2849.50 | G35: 2816.50 | H35: 2930.90 | I35: 2963.90 | J35: 2988.10 | K35: 2939.7 | L35: 2882.5 | M35: 2.92132
A36: 27 | B36: BAJFINANCE | C36: 3959.8 | D36: 3965.53 | E36: 3926.12 | F36: 3892.43 | G36: 3853.02 | H36: 3999.22 | I36: 4038.63 | J36: 4072.32 | K36: 4004.95 | L36: 3931.85 | M36: 12.4584
A37: 28 | B37: BAJAJFINSV | C37: 8446.45 | D37: 8417.30 | E37: 8349.60 | F37: 8252.75 | G37: 8185.05 | H37: 8514.15 | I37: 8581.85 | J37: 8678.70 | K37: 8485 | L37: 8320.45 | M37: 2.07759
A38: 29 | B38: BAJAJHLDNG | C38: 3525.25 | D38: 3559.72 | E38: 3455.08 | F38: 3384.92 | G38: 3280.28 | H38: 3629.88 | I38: 3734.52 | J38: 3804.68 | K38: 3664.35 | L38: 3489.55 | M38: 0.33716
A39: 30 | B39: BALKRISIND | C39: 761.55 | D39: 759.78 | E39: 748.07 | F39: 734.58 | G39: 722.87 | H39: 773.27 | I39: 784.98 | J39: 798.47 | K39: 771.5 | L39: 746.3 | M39: 2.1057
A40: 31 | B40: BANDHANBNK | C40: 478.5 | D40: 478.10 | E40: 465.00 | F40: 451.50 | G40: 438.40 | H40: 491.60 | I40: 504.70 | J40: 518.20 | K40: 491.2 | L40: 464.6 | M40: 4.75319
A41: 32 | B41: BANKBARODA | C41: 90.9 | D41: 91.13 | E41: 89.17 | F41: 87.43 | G41: 85.47 | H41: 92.87 | I41: 94.83 | J41: 96.57 | K41: 93.1 | L41: 89.4 | M41: 328.68099
A42: 33 | B42: BANKINDIA | C42: 61.9 | D42: 61.28 | E42: 60.07 | F42: 58.23 | G42: 57.02 | H42: 63.12 | I42: 64.33 | J42: 66.17 | K42: 62.5 | L42: 59.45 | M42: 92.50868
A43: 34 | B43: BATAINDIA | C43: 1688 | D43: 1700.85 | E43: 1663.15 | F43: 1638.30 | G43: 1600.60 | H43: 1725.70 | I43: 1763.40 | J43: 1788.25 | K43: 1738.55 | L43: 1676 | M43: 5.38283
A44: 35 | B44: BERGEPAINT | C44: 428.05 | D44: 428.08 | E44: 423.27 | F44: 418.48 | G44: 413.67 | H44: 432.87 | I44: 437.68 | J44: 442.47 | K44: 432.9 | L44: 423.3 | M44: 13.54552
A45: 36 | B45: BEL | C45: 105.4 | D45: 105.63 | E45: 104.07 | F45: 102.73 | G45: 101.17 | H45: 106.97 | I45: 108.53 | J45: 109.87 | K45: 107.2 | L45: 104.3 | M45: 69.71659
A46: 37 | B46: BHARATFORG | C46: 441.25 | D46: 443.08 | E46: 433.92 | F46: 426.58 | G46: 417.42 | H46: 450.42 | I46: 459.58 | J46: 466.92 | K46: 452.25 | L46: 435.75 | M46: 14.33241
A47: 38 | B47: BHEL | C47: 47.2 | D47: 47.23 | E47: 46.17 | F47: 45.13 | G47: 44.07 | H47: 48.27 | I47: 49.33 | J47: 50.37 | K47: 48.3 | L47: 46.2 | M47: 111.15713
A48: 39 | B48: BPCL | C48: 531.6 | D48: 521.97 | E48: 504.03 | F48: 476.47 | G48: 458.53 | H48: 549.53 | I48: 567.47 | J48: 595.03 | K48: 539.9 | L48: 494.4 | M48: 259.84601
A49: 40 | B49: BHARTIARTL | C49: 344.9 | D49: 347.27 | E49: 338.93 | F49: 332.97 | G49: 324.63 | H49: 353.23 | I49: 361.57 | J49: 367.53 | K49: 355.6 | L49: 341.3 | M49: 49.44826
A50: 41 | B50: INFRATEL | C50: 248.25 | D50: 248.17 | E50: 245.78 | F50: 243.32 | G50: 240.93 | H50: 250.63 | I50: 253.02 | J50: 255.48 | K50: 250.55 | L50: 245.7 | M50: 18.1282
A51: 42 | B51: BIOCON | C51: 232.2 | D51: 228.88 | E51: 224.77 | F51: 217.33 | G51: 213.22 | H51: 236.32 | I51: 240.43 | J51: 247.87 | K51: 233 | L51: 221.45 | M51: 44.20153
A52: 43 | B52: BBTC | C52: 1120.75 | D52: 1126.35 | E52: 1100.70 | F52: 1080.65 | G52: 1055.00 | H52: 1146.40 | I52: 1172.05 | J52: 1192.10 | K52: 1152 | L52: 1106.3 | M52: 0.82804
A53: 44 | B53: BOSCHLTD | C53: 13563.7 | D53: 13498.30 | E53: 13354.95 | F53: 13146.20 | G53: 13002.85 | H53: 13707.05 | I53: 13850.40 | J53: 14059.15 | K53: 13641.65 | L53: 13289.55 | M53: 0.18342
A54: 45 | B54: BRITANNIA | C54: 2902.95 | D54: 2890.65 | E54: 2862.30 | F54: 2821.65 | G54: 2793.30 | H54: 2931.30 | I54: 2959.65 | J54: 3000.30 | K54: 2919 | L54: 2850 | M54: 2.85265
A55: 46 | B55: CESC | C55: 749 | D55: 742.15 | E55: 731.45 | F55: 713.90 | G55: 703.20 | H55: 759.70 | I55: 770.40 | J55: 787.95 | K55: 752.85 | L55: 724.6 | M55: 3.28408
A56: 47 | B56: CADILAHC | C56: 233.9 | D56: 233.10 | E56: 230.85 | F56: 227.80 | G56: 225.55 | H56: 236.15 | I56: 238.40 | J56: 241.45 | K56: 235.35 | L56: 230.05 | M56: 6.40323
A57: 48 | B57: CANBK | C57: 181.4 | D57: 180.08 | E57: 176.42 | F57: 171.43 | G57: 167.77 | H57: 185.07 | I57: 188.73 | J57: 193.72 | K57: 183.75 | L57: 175.1 | M57: 80.6467
A58: 49 | B58: CASTROLIND | C58: 133.85 | D58: 134.97 | E58: 132.23 | F58: 130.62 | G58: 127.88 | H58: 136.58 | I58: 139.32 | J58: 140.93 | K58: 137.7 | L58: 133.35 | M58: 12.07858
A59: 50 | B59: CHOLAFIN | C59: 290.1 | D59: 291.98 | E59: 283.12 | F59: 276.13 | G59: 267.27 | H59: 298.97 | I59: 307.83 | J59: 314.82 | K59: 300.85 | L59: 285 | M59: 18.23132
A60: 51 | B60: CIPLA | C60: 418.1 | D60: 415.20 | E60: 409.40 | F60: 400.70 | G60: 394.90 | H60: 423.90 | I60: 429.70 | J60: 438.40 | K60: 421 | L60: 406.5 | M60: 26.39852
A61: 52 | B61: CUB | C61: 211.25 | D61: 210.05 | E61: 207.20 | F61: 203.15 | G61: 200.30 | H61: 214.10 | I61: 216.95 | J61: 221.00 | K61: 212.9 | L61: 206 | M61: 4.09418
A62: 53 | B62: COALINDIA | C62: 186.75 | D62: 188.33 | E62: 183.67 | F62: 180.58 | G62: 175.92 | H62: 191.42 | I62: 196.08 | J62: 199.17 | K62: 193 | L62: 185.25 | M62: 122.70678
A63: 54 | B63: COLPAL | C63: 1489.75 | D63: 1489.68 | E63: 1477.42 | F63: 1465.08 | G63: 1452.82 | H63: 1502.02 | I63: 1514.28 | J63: 1526.62 | K63: 1501.95 | L63: 1477.35 | M63: 3.22883
A64: 55 | B64: CONCOR | C64: 631.85 | D64: 632.30 | E64: 621.85 | F64: 611.85 | G64: 601.40 | H64: 642.30 | I64: 652.75 | J64: 662.75 | K64: 642.75 | L64: 622.3 | M64: 18.68252
A65: 56 | B65: COROMANDEL | C65: 412.6 | D65: 413.60 | E65: 409.70 | F65: 406.80 | G65: 402.90 | H65: 416.50 | I65: 420.40 | J65: 423.30 | K65: 417.5 | L65: 410.7 | M65: 0.54915
A66: 57 | B66: CROMPTON | C66: 244 | D66: 243.70 | E66: 239.50 | F66: 235.00 | G66: 230.80 | H66: 248.20 | I66: 252.40 | J66: 256.90 | K66: 247.9 | L66: 239.2 | M66: 6.0708
A67: 58 | B67: CUMMINSIND | C67: 559.5 | D67: 563.25 | E67: 552.50 | F67: 545.50 | G67: 534.75 | H67: 570.25 | I67: 581.00 | J67: 588.00 | K67: 574 | L67: 556.25 | M67: 4.6625
A68: 59 | B68: DLF | C68: 149.9 | D68: 148.83 | E68: 145.67 | F68: 141.43 | G68: 138.27 | H68: 153.07 | I68: 156.23 | J68: 160.47 | K68: 152 | L68: 144.6 | M68: 127.04415
A69: 60 | B69: DABUR | C69: 433.65 | D69: 434.75 | E69: 430.55 | F69: 427.45 | G69: 423.25 | H69: 437.85 | I69: 442.05 | J69: 445.15 | K69: 438.95 | L69: 431.65 | M69: 16.37904
A70: 61 | B70: DALBHARAT | C70: 794.3 | D70: 800.37 | E70: 785.93 | F70: 777.57 | G70: 763.13 | H70: 808.73 | I70: 823.17 | J70: 831.53 | K70: 814.8 | L70: 792 | M70: 0.45131
A71: 62 | B71: DIVISLAB | C71: 1628.35 | D71: 1623.77 | E71: 1599.63 | F71: 1570.92 | G71: 1546.78 | H71: 1652.48 | I71: 1676.62 | J71: 1705.33 | K71: 1647.9 | L71: 1595.05 | M71: 3.48048
A72: 63 | B72: DRREDDY | C72: 2677.15 | D72: 2665.87 | E72: 2647.28 | F72: 2617.42 | G72: 2598.83 | H72: 2695.73 | I72: 2714.32 | J72: 2744.18 | K72: 2684.45 | L72: 2636 | M72: 2.97
A73: 64 | B73: EDELWEISS | C73: 87.4 | D73: 88.02 | E73: 79.48 | F73: 71.57 | G73: 63.03 | H73: 95.93 | I73: 104.47 | J73: 112.38 | K73: 96.55 | L73: 80.1 | M73: 137.39686
A74: 65 | B74: EICHERMOT | C74: 18284.65 | D74: 18115.92 | E74: 17891.83 | F74: 17499.02 | G74: 17274.93 | H74: 18508.73 | I74: 18732.82 | J74: 19125.63 | K74: 18340 | L74: 17723.1 | M74: 1.22882
A75: 66 | B75: EMAMILTD | C75: 315.05 | D75: 311.92 | E75: 304.13 | F75: 293.22 | G75: 285.43 | H75: 322.83 | I75: 330.62 | J75: 341.53 | K75: 319.7 | L75: 301 | M75: 8.97532
A76: 67 | B76: ENDURANCE | C76: 956.55 | D76: 958.72 | E76: 928.83 | F76: 901.12 | G76: 871.23 | H76: 986.43 | I76: 1016.32 | J76: 1044.03 | K76: 988.6 | L76: 931 | M76: 0.26105
A77: 68 | B77: ENGINERSIN | C77: 112.2 | D77: 112.60 | E77: 110.70 | F77: 109.20 | G77: 107.30 | H77: 114.10 | I77: 116.00 | J77: 117.50 | K77: 114.5 | L77: 111.1 | M77: 11.63032
A78: 69 | B78: ESCORTS | C78: 619.25 | D78: 610.70 | E78: 597.40 | F78: 575.55 | G78: 562.25 | H78: 632.55 | I78: 645.85 | J78: 667.70 | K78: 624 | L78: 588.85 | M78: 57.4842
A79: 70 | B79: EXIDEIND | C79: 196.25 | D79: 196.20 | E79: 192.85 | F79: 189.45 | G79: 186.10 | H79: 199.60 | I79: 202.95 | J79: 206.35 | K79: 199.55 | L79: 192.8 | M79: 14.80761
A80: 71 | B80: FEDERALBNK | C80: 88.8 | D80: 87.92 | E80: 86.28 | F80: 83.77 | G80: 82.13 | H80: 90.43 | I80: 92.07 | J80: 94.58 | K80: 89.55 | L80: 85.4 | M80: 106.6894
A81: 72 | B81: FCONSUMER | C81: 25.45 | D81: 25.03 | E81: 23.97 | F81: 22.48 | G81: 21.42 | H81: 26.52 | I81: 27.58 | J81: 29.07 | K81: 26.1 | L81: 23.55 | M81: 19.29381
A82: 73 | B82: FRETAIL | C82: 380.55 | D82: 382.12 | E82: 377.23 | F82: 373.92 | G82: 369.03 | H82: 385.43 | I82: 390.32 | J82: 393.63 | K82: 387 | L82: 378.8 | M82: 2.04552
A83: 74 | B83: GAIL | C83: 131.7 | D83: 132.08 | E83: 130.47 | F83: 129.23 | G83: 127.62 | H83: 133.32 | I83: 134.93 | J83: 136.17 | K83: 133.7 | L83: 130.85 | M83: 83.52681
A84: 75 | B84: GMRINFRA | C84: 16.9 | D84: 16.77 | E84: 16.53 | F84: 16.17 | G84: 15.93 | H84: 17.13 | I84: 17.37 | J84: 17.73 | K84: 17 | L84: 16.4 | M84: 124.34052
A85: 76 | B85: GICRE | C85: 222.15 | D85: 225.38 | E85: 215.77 | F85: 209.38 | G85: 199.77 | H85: 231.77 | I85: 241.38 | J85: 247.77 | K85: 235 | L85: 219 | M85: 2.46484
A86: 77 | B86: GLENMARK | C86: 319.55 | D86: 318.98 | E86: 313.72 | F86: 307.88 | G86: 302.62 | H86: 324.82 | I86: 330.08 | J86: 335.92 | K86: 324.25 | L86: 313.15 | M86: 7.67353
A87: 78 | B87: GODREJAGRO | C87: 472.15 | D87: 473.37 | E87: 467.73 | F87: 463.32 | G87: 457.68 | H87: 477.78 | I87: 483.42 | J87: 487.83 | K87: 479 | L87: 468.95 | M87: 0.25414
A88: 79 | B88: GODREJCP | C88: 659.95 | D88: 665.48 | E88: 649.77 | F88: 639.58 | G88: 623.87 | H88: 675.67 | I88: 691.38 | J88: 701.57 | K88: 681.2 | L88: 655.3 | M88: 12.24879
A89: 80 | B89: GODREJIND | C89: 381.95 | D89: 389.37 | E89: 371.78 | F89: 361.62 | G89: 344.03 | H89: 399.53 | I89: 417.12 | J89: 427.28 | K89: 406.95 | L89: 379.2 | M89: 21.77722
A90: 81 | B90: GODREJPROP | C90: 1006.55 | D90: 1007.53 | E90: 961.07 | F90: 915.58 | G90: 869.12 | H90: 1053.02 | I90: 1099.48 | J90: 1144.97 | K90: 1054 | L90: 962.05 | M90: 4.26253
A91: 82 | B91: GRAPHITE | C91: 282.45 | D91: 283.48 | E91: 275.67 | F91: 268.88 | G91: 261.07 | H91: 290.27 | I91: 298.08 | J91: 304.87 | K91: 291.3 | L91: 276.7 | M91: 10.29937
A92: 83 | B92: GRASIM | C92: 679.65 | D92: 681.87 | E92: 667.78 | F92: 655.92 | G92: 641.83 | H92: 693.73 | I92: 707.82 | J92: 719.68 | K92: 695.95 | L92: 670 | M92: 30.4899
A93: 84 | B93: GSPL | C93: 205.05 | D93: 206.97 | E93: 200.33 | F93: 195.62 | G93: 188.98 | H93: 211.68 | I93: 218.32 | J93: 223.03 | K93: 213.6 | L93: 202.25 | M93: 4.70856
A94: 85 | B94: HEG | C94: 971.75 | D94: 968.25 | E94: 947.50 | F94: 923.25 | G94: 902.50 | H94: 992.50 | I94: 1013.25 | J94: 1037.50 | K94: 989 | L94: 944 | M94: 3.34926
A95: 86 | B95: HCLTECH | C95: 1076.8 | D95: 1073.65 | E95: 1057.30 | F95: 1037.80 | G95: 1021.45 | H95: 1093.15 | I95: 1109.50 | J95: 1129.00 | K95: 1090 | L95: 1054.15 | M95: 17.17651
A96: 87 | B96: HDFCAMC | C96: 2706.1 | D96: 2702.05 | E96: 2654.10 | F96: 2602.10 | G96: 2554.15 | H96: 2754.05 | I96: 2802.00 | J96: 2854.00 | K96: 2750 | L96: 2650.05 | M96: 1.85453
A97: 88 | B97: HDFCBANK | C97: 1223.55 | D97: 1227.90 | E97: 1212.00 | F97: 1200.45 | G97: 1184.55 | H97: 1239.45 | I97: 1255.35 | J97: 1266.90 | K97: 1243.8 | L97: 1216.35 | M97: 81.49438
A98: 89 | B98: HDFCLIFE | C98: 592.9 | D98: 588.75 | E98: 579.65 | F98: 566.40 | G98: 557.30 | H98: 602.00 | I98: 611.10 | J98: 624.35 | K98: 597.85 | L98: 575.5 | M98: 36.3462
A99: 90 | B99: HAVELLS | C99: 702 | D99: 703.35 | E99: 695.70 | F99: 689.40 | G99: 681.75 | H99: 709.65 | I99: 717.30 | J99: 723.60 | K99: 711 | L99: 697.05 | M99: 9.65453
A100: 91 | B100: HEROMOTOCO | C100: 2667.45 | D100: 2685.48 | E100: 2636.97 | F100: 2606.48 | G100: 2557.97 | H100: 2715.97 | I100: 2764.48 | J100: 2794.97 | K100: 2734 | L100: 2655 | M100: 9.37439
A101: 92 | B101: HEXAWARE | C101: 368.65 | D101: 370.80 | E101: 364.85 | F101: 361.05 | G101: 355.10 | H101: 374.60 | I101: 380.55 | J101: 384.35 | K101: 376.75 | L101: 367 | M101: 4.31536
A102: 93 | B102: HINDALCO | C102: 182.6 | D102: 183.52 | E102: 179.08 | F102: 175.57 | G102: 171.13 | H102: 187.03 | I102: 191.47 | J102: 194.98 | K102: 187.95 | L102: 180 | M102: 138.62733
A103: 94 | B103: HINDPETRO | C103: 322.95 | D103: 320.30 | E103: 313.15 | F103: 303.35 | G103: 296.20 | H103: 330.10 | I103: 337.25 | J103: 347.05 | K103: 327.45 | L103: 310.5 | M103: 127.75386
A104: 95 | B104: HINDUNILVR | C104: 1962.05 | D104: 1968.57 | E104: 1951.83 | F104: 1941.62 | G104: 1924.88 | H104: 1978.78 | I104: 1995.52 | J104: 2005.73 | K104: 1985.3 | L104: 1958.35 | M104: 14.23468
A105: 96 | B105: HINDZINC | C105: 209.45 | D105: 210.15 | E105: 207.00 | F105: 204.55 | G105: 201.40 | H105: 212.60 | I105: 215.75 | J105: 218.20 | K105: 213.3 | L105: 207.7 | M105: 8.99805
A106: 97 | B106: HUDCO | C106: 33.8 | D106: 33.63 | E106: 33.07 | F106: 32.33 | G106: 31.77 | H106: 34.37 | I106: 34.93 | J106: 35.67 | K106: 34.2 | L106: 32.9 | M106: 7.49001
A107: 98 | B107: HDFC | C107: 1974.55 | D107: 1974.93 | E107: 1950.87 | F107: 1927.18 | G107: 1903.12 | H107: 1998.62 | I107: 2022.68 | J107: 2046.37 | K107: 1999 | L107: 1951.25 | M107: 48.82403
A108: 99 | B108: ICICIBANK | C108: 427.3 | D108: 428.07 | E108: 421.53 | F108: 415.77 | G108: 409.23 | H108: 433.83 | I108: 440.37 | J108: 446.13 | K108: 434.6 | L108: 422.3 | M108: 232.75379
A109: 100 | B109: ICICIGI | C109: 1193.7 | D109: 1189.50 | E109: 1174.50 | F109: 1155.30 | G109: 1140.30 | H109: 1208.70 | I109: 1223.70 | J109: 1242.90 | K109: 1204.5 | L109: 1170.3 | M109: 2.16338
A110: 101 | B110: ICICIPRULI | C110: 468.75 | D110: 468.95 | E110: 463.90 | F110: 459.05 | G110: 454.00 | H110: 473.80 | I110: 478.85 | J110: 483.70 | K110: 474 | L110: 464.1 | M110: 21.53461
A111: 102 | B111: IDBI | C111: 30.8 | D111: 30.85 | E111: 29.70 | F111: 28.60 | G111: 27.45 | H111: 31.95 | I111: 33.10 | J111: 34.20 | K111: 32 | L111: 29.75 | M111: 43.33547
A112: 103 | B112: IDFCFIRSTB | C112: 37.15 | D112: 37.13 | E112: 36.27 | F112: 35.38 | G112: 34.52 | H112: 38.02 | I112: 38.88 | J112: 39.77 | K112: 38 | L112: 36.25 | M112: 266.46414
A113: 104 | B113: ITC | C113: 261.65 | D113: 259.95 | E113: 257.75 | F113: 253.85 | G113: 251.65 | H113: 263.85 | I113: 266.05 | J113: 269.95 | K113: 262.15 | L113: 256.05 | M113: 123.56337
A114: 105 | B114: IBULHSGFIN | C114: 266.15 | D114: 274.80 | E114: 243.50 | F114: 220.85 | G114: 189.55 | H114: 297.45 | I114: 328.75 | J114: 351.40 | K114: 306.1 | L114: 252.15 | M114: 400.46617
A115: 106 | B115: IBVENTURES | C115: 115.65 | D115: 113.40 | E115: 105.55 | F115: 95.45 | G115: 87.60 | H115: 123.50 | I115: 131.35 | J115: 141.45 | K115: 121.25 | L115: 103.3 | M115: 28.76319
A116: 107 | B116: INDIANB | C116: 121 | D116: 120.65 | E116: 116.65 | F116: 112.30 | G116: 108.30 | H116: 125.00 | I116: 129.00 | J116: 133.35 | K116: 124.65 | L116: 116.3 | M116: 14.41999
A117: 108 | B117: INDHOTEL | C117: 154.6 | D117: 154.70 | E117: 152.90 | F117: 151.20 | G117: 149.40 | H117: 156.40 | I117: 158.20 | J117: 159.90 | K117: 156.5 | L117: 153 | M117: 29.63464
A118: 109 | B118: IOC | C118: 151.75 | D118: 151.75 | E118: 149.55 | F118: 147.35 | G118: 145.15 | H118: 153.95 | I118: 156.15 | J118: 158.35 | K118: 153.95 | L118: 149.55 | M118: 255.03112
A119: 110 | B119: IGL | C119: 352.3 | D119: 350.80 | E119: 347.85 | F119: 343.40 | G119: 340.45 | H119: 355.25 | I119: 358.20 | J119: 362.65 | K119: 353.75 | L119: 346.35 | M119: 10.38828
A120: 111 | B120: INDUSINDBK | C120: 1255.5 | D120: 1261.65 | E120: 1213.85 | F120: 1172.20 | G120: 1124.40 | H120: 1303.30 | I120: 1351.10 | J120: 1392.75 | K120: 1309.45 | L120: 1220 | M120: 134.55663
A121: 112 | B121: NAUKRI | C121: 2122 | D121: 2118.67 | E121: 2078.33 | F121: 2034.67 | G121: 1994.33 | H121: 2162.33 | I121: 2202.67 | J121: 2246.33 | K121: 2159 | L121: 2075 | M121: 1.93061
A122: 113 | B122: INFY | C122: 785.6 | D122: 789.20 | E122: 780.55 | F122: 775.50 | G122: 766.85 | H122: 794.25 | I122: 802.90 | J122: 807.95 | K122: 797.85 | L122: 784.15 | M122: 54.97672
A123: 114 | B123: INDIGO | C123: 1826.05 | D123: 1818.10 | E123: 1788.50 | F123: 1750.95 | G123: 1721.35 | H123: 1855.65 | I123: 1885.25 | J123: 1922.80 | K123: 1847.7 | L123: 1780.55 | M123: 11.84111
A124: 115 | B124: IPCALAB | C124: 904.95 | D124: 898.32 | E124: 886.63 | F124: 868.32 | G124: 856.63 | H124: 916.63 | I124: 928.32 | J124: 946.63 | K124: 910 | L124: 880 | M124: 1.67787
A125: 116 | B125: JSWENERGY | C125: 61.3 | D125: 61.85 | E125: 60.20 | F125: 59.10 | G125: 57.45 | H125: 62.95 | I125: 64.60 | J125: 65.70 | K125: 63.5 | L125: 60.75 | M125: 3.27279
A126: 117 | B126: JSWSTEEL | C126: 221.55 | D126: 221.85 | E126: 218.00 | F126: 214.45 | G126: 210.60 | H126: 225.40 | I126: 229.25 | J126: 232.80 | K126: 225.7 | L126: 218.3 | M126: 53.2411
A127: 118 | B127: JINDALSTEL | C127: 95.9 | D127: 96.63 | E127: 93.77 | F127: 91.63 | G127: 88.77 | H127: 98.77 | I127: 101.63 | J127: 103.77 | K127: 99.5 | L127: 94.5 | M127: 186.49281
A128: 119 | B128: JUBLFOOD | C128: 1322.7 | D128: 1327.97 | E128: 1307.13 | F128: 1291.57 | G128: 1270.73 | H128: 1343.53 | I128: 1364.37 | J128: 1379.93 | K128: 1348.8 | L128: 1312.4 | M128: 5.8881
A129: 120 | B129: JUBILANT | C129: 492.85 | D129: 496.27 | E129: 486.63 | F129: 480.42 | G129: 470.78 | H129: 502.48 | I129: 512.12 | J129: 518.33 | K129: 505.9 | L129: 490.05 | M129: 1.18001
A130: 121 | B130: KOTAKBANK | C130: 1615.75 | D130: 1622.33 | E130: 1600.42 | F130: 1585.08 | G130: 1563.17 | H130: 1637.67 | I130: 1659.58 | J130: 1674.92 | K130: 1644.25 | L130: 1607 | M130: 26.54566
A131: 122 | B131: L&TFH | C131: 82 | D131: 82.97 | E131: 80.03 | F131: 78.07 | G131: 75.13 | H131: 84.93 | I131: 87.87 | J131: 89.83 | K131: 85.9 | L131: 81 | M131: 145.18175
A132: 123 | B132: LTTS | C132: 1591.35 | D132: 1563.45 | E132: 1527.90 | F132: 1464.45 | G132: 1428.90 | H132: 1626.90 | I132: 1662.45 | J132: 1725.90 | K132: 1599 | L132: 1500 | M132: 0.79746
A133: 124 | B133: LICHSGFIN | C133: 380.2 | D133: 381.10 | E133: 371.85 | F133: 363.50 | G133: 354.25 | H133: 389.45 | I133: 398.70 | J133: 407.05 | K133: 390.35 | L133: 372.75 | M133: 25.79275
A134: 125 | B134: LTI | C134: 1505.05 | D134: 1502.30 | E134: 1490.50 | F134: 1475.95 | G134: 1464.15 | H134: 1516.85 | I134: 1528.65 | J134: 1543.20 | K134: 1514.1 | L134: 1487.75 | M134: 0.45916
A135: 126 | B135: LT | C135: 1458.05 | D135: 1451.93 | E135: 1428.37 | F135: 1398.68 | G135: 1375.12 | H135: 1481.62 | I135: 1505.18 | J135: 1534.87 | K135: 1475.5 | L135: 1422.25 | M135: 19.66976
A136: 127 | B136: LUPIN | C136: 701.2 | D136: 695.02 | E136: 683.03 | F136: 664.87 | G136: 652.88 | H136: 713.18 | I136: 725.17 | J136: 743.33 | K136: 707 | L136: 676.85 | M136: 25.04322
A137: 128 | B137: MRF | C137: 61471.05 | D137: 61578.68 | E137: 61092.37 | F137: 60713.68 | G137: 60227.37 | H137: 61957.37 | I137: 62443.68 | J137: 62822.37 | K137: 62065 | L137: 61200 | M137: 0.0596
A138: 129 | B138: MGL | C138: 891.35 | D138: 891.12 | E138: 877.28 | F138: 863.22 | G138: 849.38 | H138: 905.18 | I138: 919.02 | J138: 933.08 | K138: 904.95 | L138: 877.05 | M138: 2.83285
A139: 130 | B139: M&MFIN | C139: 325.95 | D139: 322.83 | E139: 318.67 | F139: 311.38 | G139: 307.22 | H139: 330.12 | I139: 334.28 | J139: 341.57 | K139: 327 | L139: 315.55 | M139: 17.62532
A140: 131 | B140: M&M | C140: 562.7 | D140: 558.25 | E140: 551.55 | F140: 540.40 | G140: 533.70 | H140: 569.40 | I140: 576.10 | J140: 587.25 | K140: 564.95 | L140: 547.1 | M140: 37.97753
A141: 132 | B141: MANAPPURAM | C141: 133.45 | D141: 133.75 | E141: 131.55 | F141: 129.65 | G141: 127.45 | H141: 135.65 | I141: 137.85 | J141: 139.75 | K141: 135.95 | L141: 131.85 | M141: 33.71691
A142: 133 | B142: MRPL | C142: 51.35 | D142: 50.45 | E142: 49.10 | F142: 46.85 | G142: 45.50 | H142: 52.70 | I142: 54.05 | J142: 56.30 | K142: 51.8 | L142: 48.2 | M142: 17.09502
A143: 134 | B143: MARICO | C143: 384 | D143: 384.77 | E143: 379.53 | F143: 375.07 | G143: 369.83 | H143: 389.23 | I143: 394.47 | J143: 398.93 | K143: 390 | L143: 380.3 | M143: 19.99508
A144: 135 | B144: MARUTI | C144: 6754.05 | D144: 6743.00 | E144: 6691.05 | F144: 6628.05 | G144: 6576.10 | H144: 6806.00 | I144: 6857.95 | J144: 6920.95 | K144: 6794.95 | L144: 6680 | M144: 8.50852
A145: 136 | B145: MFSL | C145: 418.6 | D145: 420.33 | E145: 412.37 | F145: 406.13 | G145: 398.17 | H145: 426.57 | I145: 434.53 | J145: 440.77 | K145: 428.3 | L145: 414.1 | M145: 3.74399
A146: 137 | B146: MINDTREE | C146: 720.05 | D146: 720.58 | E146: 711.17 | F146: 702.28 | G146: 692.87 | H146: 729.47 | I146: 738.88 | J146: 747.77 | K146: 730 | L146: 711.7 | M146: 4.39989
A147: 138 | B147: MOTHERSUMI | C147: 99.4 | D147: 100.95 | E147: 97.30 | F147: 95.20 | G147: 91.55 | H147: 103.05 | I147: 106.70 | J147: 108.80 | K147: 104.6 | L147: 98.85 | M147: 93.90062
A148: 139 | B148: MPHASIS | C148: 937.75 | D148: 939.57 | E148: 934.38 | F148: 931.02 | G148: 925.83 | H148: 942.93 | I148: 948.12 | J148: 951.48 | K148: 944.75 | L148: 936.2 | M148: 1.73642
A149: 140 | B149: MUTHOOTFIN | C149: 665.75 | D149: 671.82 | E149: 656.83 | F149: 647.92 | G149: 632.93 | H149: 680.73 | I149: 695.72 | J149: 704.63 | K149: 686.8 | L149: 662.9 | M149: 9.15774
A150: 141 | B150: NATCOPHARM | C150: 567.05 | D150: 569.02 | E150: 563.03 | F150: 559.02 | G150: 553.03 | H150: 573.03 | I150: 579.02 | J150: 583.03 | K150: 575 | L150: 565 | M150: 0.48372
A151: 142 | B151: NBCC | C151: 34.35 | D151: 34.53 | E151: 33.72 | F151: 33.08 | G151: 32.27 | H151: 35.17 | I151: 35.98 | J151: 36.62 | K151: 35.35 | L151: 33.9 | M151: 123.88007
A152: 143 | B152: NHPC | C152: 21.95 | D152: 21.95 | E152: 21.80 | F152: 21.65 | G152: 21.50 | H152: 22.10 | I152: 22.25 | J152: 22.40 | K152: 22.1 | L152: 21.8 | M152: 23.66623
A153: 144 | B153: NMDC | C153: 97.4 | D153: 96.48 | E153: 94.97 | F153: 92.53 | G153: 91.02 | H153: 98.92 | I153: 100.43 | J153: 102.87 | K153: 98 | L153: 94.05 | M153: 130.61706
A154: 145 | B154: NTPC | C154: 116.75 | D154: 116.30 | E154: 115.05 | F154: 113.35 | G154: 112.10 | H154: 118.00 | I154: 119.25 | J154: 120.95 | K154: 117.55 | L154: 114.6 | M154: 104.779
A155: 146 | B155: NATIONALUM | C155: 44.5 | D155: 44.50 | E155: 43.55 | F155: 42.60 | G155: 41.65 | H155: 45.45 | I155: 46.40 | J155: 47.35 | K155: 45.45 | L155: 43.55 | M155: 78.24046
A156: 147 | B156: NESTLEIND | C156: 13709.85 | D156: 13675.17 | E156: 13600.73 | F156: 13491.62 | G156: 13417.18 | H156: 13784.28 | I156: 13858.72 | J156: 13967.83 | K156: 13749.6 | L156: 13566.05 | M156: 0.40894
A157: 148 | B157: OBEROIRLTY | C157: 489.85 | D157: 494.80 | E157: 481.70 | F157: 473.55 | G157: 460.45 | H157: 502.95 | I157: 516.05 | J157: 524.20 | K157: 507.9 | L157: 486.65 | M157: 4.59549
A158: 149 | B158: ONGC | C158: 128.1 | D158: 127.78 | E158: 125.72 | F158: 123.33 | G158: 121.27 | H158: 130.17 | I158: 132.23 | J158: 134.62 | K158: 129.85 | L158: 125.4 | M158: 70.82143
A159: 150 | B159: OIL | C159: 144.6 | D159: 143.73 | E159: 142.02 | F159: 139.43 | G159: 137.72 | H159: 146.32 | I159: 148.03 | J159: 150.62 | K159: 145.45 | L159: 141.15 | M159: 10.06347
A160: 151 | B160: OFSS | C160: 3084.05 | D160: 3093.68 | E160: 3044.37 | F160: 3004.68 | G160: 2955.37 | H160: 3133.37 | I160: 3182.68 | J160: 3222.37 | K160: 3143 | L160: 3054 | M160: 0.0992
A161: 152 | B161: ORIENTBANK | C161: 58.7 | D161: 58.52 | E161: 57.63 | F161: 56.57 | G161: 55.68 | H161: 59.58 | I161: 60.47 | J161: 61.53 | K161: 59.4 | L161: 57.45 | M161: 8.25686
A162: 153 | B162: PIIND | C162: 1299.9 | D162: 1282.98 | E162: 1257.97 | F162: 1216.03 | G162: 1191.02 | H162: 1324.92 | I162: 1349.93 | J162: 1391.87 | K162: 1308 | L162: 1241.05 | M162: 0.92331
A163: 154 | B163: PNBHOUSING | C163: 573 | D163: 581.63 | E163: 561.42 | F163: 549.83 | G163: 529.62 | H163: 593.22 | I163: 613.43 | J163: 625.02 | K163: 601.85 | L163: 570.05 | M163: 1.97165
A164: 155 | B164: PAGEIND | C164: 21633.9 | D164: 21726.08 | E164: 21407.82 | F164: 21181.73 | G164: 20863.47 | H164: 21952.17 | I164: 22270.43 | J164: 22496.52 | K164: 22044.35 | L164: 21500 | M164: 0.29043
A165: 156 | B165: PETRONET | C165: 258 | D165: 259.30 | E165: 255.45 | F165: 252.90 | G165: 249.05 | H165: 261.85 | I165: 265.70 | J165: 268.25 | K165: 263.15 | L165: 256.75 | M165: 27.53985
A166: 157 | B166: PFIZER | C166: 3213.9 | D166: 3225.80 | E166: 3192.60 | F166: 3171.30 | G166: 3138.10 | H166: 3247.10 | I166: 3280.30 | J166: 3301.60 | K166: 3259 | L166: 3204.5 | M166: 0.11937
A167: 158 | B167: PIDILITIND | C167: 1393.15 | D167: 1406.20 | E167: 1364.50 | F167: 1335.85 | G167: 1294.15 | H167: 1434.85 | I167: 1476.55 | J167: 1505.20 | K167: 1447.9 | L167: 1377.55 | M167: 4.35985
A168: 159 | B168: PEL | C168: 1575.15 | D168: 1591.98 | E168: 1506.97 | F168: 1438.78 | G168: 1353.77 | H168: 1660.17 | I168: 1745.18 | J168: 1813.37 | K168: 1677 | L168: 1523.8 | M168: 34.97223
A169: 160 | B169: PFC | C169: 95.1 | D169: 95.15 | E169: 93.50 | F169: 91.90 | G169: 90.25 | H169: 96.75 | I169: 98.40 | J169: 100.00 | K169: 96.8 | L169: 93.55 | M169: 113.27793
A170: 161 | B170: POWERGRID | C170: 199.1 | D170: 197.87 | E170: 195.73 | F170: 192.37 | G170: 190.23 | H170: 201.23 | I170: 203.37 | J170: 206.73 | K170: 200 | L170: 194.5 | M170: 53.06011
A171: 162 | B171: PRESTIGE | C171: 286.25 | D171: 288.12 | E171: 282.23 | F171: 278.22 | G171: 272.33 | H171: 292.13 | I171: 298.02 | J171: 302.03 | K171: 294 | L171: 284.1 | M171: 1.22035
A172: 163 | B172: PGHH | C172: 11729.15 | D172: 11811.43 | E172: 11584.37 | F172: 11439.58 | G172: 11212.52 | H172: 11956.22 | I172: 12183.28 | J172: 12328.07 | K172: 12038.5 | L172: 11666.65 | M172: 0.03678
A173: 164 | B173: PNB | C173: 59.05 | D173: 58.95 | E173: 57.95 | F173: 56.85 | G173: 55.85 | H173: 60.05 | I173: 61.05 | J173: 62.15 | K173: 59.95 | L173: 57.85 | M173: 226.55441
A174: 165 | B174: QUESS | C174: 465 | D174: 460.20 | E174: 450.80 | F174: 436.60 | G174: 427.20 | H174: 474.40 | I174: 483.80 | J174: 498.00 | K174: 469.6 | L174: 446 | M174: 1.24063
A175: 166 | B175: RBLBANK | C175: 312 | D175: 307.92 | E175: 296.23 | F175: 280.47 | G175: 268.78 | H175: 323.68 | I175: 335.37 | J175: 351.13 | K175: 319.6 | L175: 292.15 | M175: 270.52594
A176: 167 | B176: RECLTD | C176: 124.85 | D176: 124.08 | E176: 122.52 | F176: 120.18 | G176: 118.62 | H176: 126.42 | I176: 127.98 | J176: 130.32 | K176: 125.65 | L176: 121.75 | M176: 51.11048
A177: 168 | B177: RAJESHEXPO | C177: 667.8 | D177: 670.43 | E177: 662.87 | F177: 657.93 | G177: 650.37 | H177: 675.37 | I177: 682.93 | J177: 687.87 | K177: 678 | L177: 665.5 | M177: 1.75667
A178: 169 | B178: RELIANCE | C178: 1311.05 | D178: 1302.35 | E178: 1290.00 | F178: 1268.95 | G178: 1256.60 | H178: 1323.40 | I178: 1335.75 | J178: 1356.80 | K178: 1314.7 | L178: 1281.3 | M178: 61.83107
A179: 170 | B179: RNAM | C179: 273 | D179: 271.40 | E179: 268.05 | F179: 263.10 | G179: 259.75 | H179: 276.35 | I179: 279.70 | J179: 284.65 | K179: 274.75 | L179: 266.45 | M179: 29.46035
A180: 171 | B180: SBILIFE | C180: 830.65 | D180: 828.95 | E180: 821.75 | F180: 812.85 | G180: 805.65 | H180: 837.85 | I180: 845.05 | J180: 853.95 | K180: 836.15 | L180: 820.05 | M180: 4.55628
A181: 172 | B181: SRF | C181: 2731 | D181: 2707.43 | E181: 2665.72 | F181: 2600.43 | G181: 2558.72 | H181: 2772.72 | I181: 2814.43 | J181: 2879.72 | K181: 2749.15 | L181: 2642.15 | M181: 2.06802
A182: 173 | B182: SHREECEM | C182: 18259.6 | D182: 18343.73 | E182: 18043.52 | F182: 17827.43 | G182: 17527.22 | H182: 18559.82 | I182: 18860.03 | J182: 19076.12 | K182: 18643.95 | L182: 18127.65 | M182: 0.1623
A183: 174 | B183: SRTRANSFIN | C183: 1032.25 | D183: 1033.73 | E183: 1008.52 | F183: 984.78 | G183: 959.57 | H183: 1057.47 | I183: 1082.68 | J183: 1106.42 | K183: 1058.95 | L183: 1010 | M183: 7.94503
A184: 175 | B184: SIEMENS | C184: 1525.65 | D184: 1526.07 | E184: 1500.13 | F184: 1474.62 | G184: 1448.68 | H184: 1551.58 | I184: 1577.52 | J184: 1603.03 | K184: 1552 | L184: 1500.55 | M184: 6.37424
A185: 176 | B185: SBIN | C185: 254.15 | D185: 254.98 | E185: 249.27 | F185: 244.38 | G185: 238.67 | H185: 259.87 | I185: 265.58 | J185: 270.47 | K185: 260.7 | L185: 250.1 | M185: 562.07921
A186: 177 | B186: SAIL | C186: 31.45 | D186: 31.62 | E186: 30.93 | F186: 30.42 | G186: 29.73 | H186: 32.13 | I186: 32.82 | J186: 33.33 | K186: 32.3 | L186: 31.1 | M186: 284.15533
A187: 178 | B187: STRTECH | C187: 149.3 | D187: 149.92 | E187: 145.23 | F187: 141.17 | G187: 136.48 | H187: 153.98 | I187: 158.67 | J187: 162.73 | K187: 154.6 | L187: 145.85 | M187: 7.38298
A188: 179 | B188: SUNPHARMA | C188: 388.15 | D188: 385.75 | E188: 380.05 | F188: 371.95 | G188: 366.25 | H188: 393.85 | I188: 399.55 | J188: 407.65 | K188: 391.45 | L188: 377.65 | M188: 52.16456
A189: 180 | B189: SUNTV | C189: 485.1 | D189: 479.70 | E189: 471.40 | F189: 457.70 | G189: 449.40 | H189: 493.40 | I189: 501.70 | J189: 515.40 | K189: 488 | L189: 466 | M189: 19.37035
A190: 181 | B190: SYNGENE | C190: 309.8 | D190: 307.80 | E190: 304.60 | F190: 299.40 | G190: 296.20 | H190: 313.00 | I190: 316.20 | J190: 321.40 | K190: 311 | L190: 302.6 | M190: 0.25806
A191: 182 | B191: TVSMOTOR | C191: 405.3 | D191: 407.33 | E191: 399.97 | F191: 394.63 | G191: 387.27 | H191: 412.67 | I191: 420.03 | J191: 425.37 | K191: 414.7 | L191: 402 | M191: 19.93787
A192: 183 | B192: TATACHEM | C192: 585.25 | D192: 583.53 | E192: 577.47 | F192: 569.68 | G192: 563.62 | H192: 591.32 | I192: 597.38 | J192: 605.17 | K192: 589.6 | L192: 575.75 | M192: 3.12626
A193: 184 | B193: TCS | C193: 2060.25 | D193: 2062.52 | E193: 2043.88 | F193: 2027.52 | G193: 2008.88 | H193: 2078.88 | I193: 2097.52 | J193: 2113.88 | K193: 2081.15 | L193: 2046.15 | M193: 23.17618
A194: 185 | B194: TATAGLOBAL | C194: 272.75 | D194: 271.87 | E194: 269.38 | F194: 266.02 | G194: 263.53 | H194: 275.23 | I194: 277.72 | J194: 281.08 | K194: 274.35 | L194: 268.5 | M194: 15.09727
A195: 186 | B195: TATAMTRDVR | C195: 54.7 | D195: 53.57 | E195: 51.73 | F195: 48.77 | G195: 46.93 | H195: 56.53 | I195: 58.37 | J195: 61.33 | K195: 55.4 | L195: 50.6 | M195: 100.14298
A196: 187 | B196: TATAMOTORS | C196: 122.4 | D196: 119.52 | E196: 115.53 | F196: 108.67 | G196: 104.68 | H196: 126.38 | I196: 130.37 | J196: 137.23 | K196: 123.5 | L196: 112.65 | M196: 651.03359
A197: 188 | B197: TATAPOWER | C197: 59.35 | D197: 59.23 | E197: 58.72 | F197: 58.08 | G197: 57.57 | H197: 59.87 | I197: 60.38 | J197: 61.02 | K197: 59.75 | L197: 58.6 | M197: 51.39225
A198: 189 | B198: TATASTEEL | C198: 339.6 | D198: 342.32 | E198: 335.73 | F198: 331.87 | G198: 325.28 | H198: 346.18 | I198: 352.77 | J198: 356.63 | K198: 348.9 | L198: 338.45 | M198: 121.30956
A199: 190 | B199: TECHM | C199: 702.5 | D199: 704.27 | E199: 690.78 | F199: 679.07 | G199: 665.58 | H199: 715.98 | I199: 729.47 | J199: 741.18 | K199: 717.75 | L199: 692.55 | M199: 21.11319
A200: 191 | B200: NIACL | C200: 103.85 | D200: 105.13 | E200: 101.47 | F200: 99.08 | G200: 95.42 | H200: 107.52 | I200: 111.18 | J200: 113.57 | K200: 108.8 | L200: 102.75 | M200: 1.30887
A201: 192 | B201: RAMCOCEM | C201: 719.05 | D201: 723.25 | E201: 712.20 | F201: 705.35 | G201: 694.30 | H201: 730.10 | I201: 741.15 | J201: 748.00 | K201: 734.3 | L201: 716.4 | M201: 2.30978
A202: 193 | B202: TITAN | C202: 1295.5 | D202: 1287.42 | E202: 1276.83 | F202: 1258.17 | G202: 1247.58 | H202: 1306.08 | I202: 1316.67 | J202: 1335.33 | K202: 1298 | L202: 1268.75 | M202: 14.49986
A203: 194 | B203: TORNTPHARM | C203: 1598.85 | D203: 1596.57 | E203: 1580.28 | F203: 1561.72 | G203: 1545.43 | H203: 1615.13 | I203: 1631.42 | J203: 1649.98 | K203: 1612.85 | L203: 1578 | M203: 2.341
A204: 195 | B204: TORNTPOWER | C204: 284.35 | D204: 283.63 | E204: 280.77 | F204: 277.18 | G204: 274.32 | H204: 287.22 | I204: 290.08 | J204: 293.67 | K204: 286.5 | L204: 280.05 | M204: 8.33692
A205: 196 | B205: UPL | C205: 594.4 | D205: 588.38 | E205: 578.27 | F205: 562.13 | G205: 552.02 | H205: 604.52 | I205: 614.63 | J205: 630.77 | K205: 598.5 | L205: 572.25 | M205: 16.10688
... 30 more rows

Sheet MidCap Intra
L5: Back To Main Page
A6: FOR INTRA DAY TRADING | K6: =Main!B10 -> 2019-10-04
A9: Sr.no | B9: Scrip | C9: CLOSE RATE | D9: Pivot Point | E9: Supports | H9: Resistances
C10: Point | E10: S1 | F10: S2 | G10: S3 | H10: R1 | I10: R2 | J10: R3 | K10: HIGH | L10: LOW | M10: Total Trade Quanity in Lakhs
A11: 1 | B11: 3MINDIA | C11: 19988.75 | D11: 20025.57 | E11: 19763.18 | F11: 19537.62 | G11: 19275.23 | H11: 20251.13 | I11: 20513.52 | J11: 20739.08 | K11: 20287.95 | L11: 19800 | M11: 0.01377
A12: 2 | B12: ACC | C12: 1545.75 | D12: 1555.20 | E12: 1527.55 | F12: 1509.35 | G12: 1481.70 | H12: 1573.40 | I12: 1601.05 | J12: 1619.25 | K12: 1582.85 | L12: 1537 | M12: 7.15946
A13: 3 | B13: AIAENG | C13: 1663.85 | D13: 1674.92 | E13: 1637.93 | F13: 1612.02 | G13: 1575.03 | H13: 1700.83 | I13: 1737.82 | J13: 1763.73 | K13: 1711.9 | L13: 1649 | M13: 0.22881
A14: 4 | B14: APLAPOLLO | C14: 1329.3 | D14: 1357.37 | E14: 1292.93 | F14: 1256.57 | G14: 1192.13 | H14: 1393.73 | I14: 1458.17 | J14: 1494.53 | K14: 1421.8 | L14: 1321 | M14: 0.39798
A15: 5 | B15: AUBANK | C15: 649.85 | D15: 648.43 | E15: 644.07 | F15: 638.28 | G15: 633.92 | H15: 654.22 | I15: 658.58 | J15: 664.37 | K15: 652.8 | L15: 642.65 | M15: 1.79831
A16: 6 | B16: AAVAS | C16: 1612.95 | D16: 1600.98 | E16: 1581.97 | F16: 1550.98 | G16: 1531.97 | H16: 1631.97 | I16: 1650.98 | J16: 1681.97 | K16: 1620 | L16: 1570 | M16: 0.05138
A17: 7 | B17: ABBOTINDIA | C17: 10997.85 | D17: 11068.95 | E17: 10839.90 | F17: 10681.95 | G17: 10452.90 | H17: 11226.90 | I17: 11455.95 | J17: 11613.90 | K17: 11298 | L17: 10911 | M17: 0.13582
A18: 8 | B18: ADANIGAS | C18: 128.65 | D18: 129.88 | E18: 126.87 | F18: 125.08 | G18: 122.07 | H18: 131.67 | I18: 134.68 | J18: 136.47 | K18: 132.9 | L18: 128.1 | M18: 4.01737
A19: 9 | B19: ADANIGREEN | C19: 61.2 | D19: 59.82 | E19: 56.38 | F19: 51.57 | G19: 48.13 | H19: 64.63 | I19: 68.07 | J19: 72.88 | K19: 63.25 | L19: 55 | M19: 31.83487
A20: 10 | B20: ADANIPORTS | C20: 403.9 | D20: 402.90 | E20: 399.60 | F20: 395.30 | G20: 392.00 | H20: 407.20 | I20: 410.50 | J20: 414.80 | K20: 406.2 | L20: 398.6 | M20: 26.19077
A21: 11 | B21: ADANIPOWER | C21: 61.3 | D21: 61.33 | E21: 60.57 | F21: 59.83 | G21: 59.07 | H21: 62.07 | I21: 62.83 | J21: 63.57 | K21: 62.1 | L21: 60.6 | M21: 79.01384
A22: 12 | B22: ADANITRANS | C22: 222.15 | D22: 223.60 | E22: 219.55 | F22: 216.95 | G22: 212.90 | H22: 226.20 | I22: 230.25 | J22: 232.85 | K22: 227.65 | L22: 221 | M22: 0.67034
A23: 13 | B23: ABCAPITAL | C23: 78.75 | D23: 79.40 | E23: 77.85 | F23: 76.95 | G23: 75.40 | H23: 80.30 | I23: 81.85 | J23: 82.75 | K23: 80.95 | L23: 78.5 | M23: 14.22854
A24: 14 | B24: ABFRL | C24: 210.4 | D24: 208.40 | E24: 205.30 | F24: 200.20 | G24: 197.10 | H24: 213.50 | I24: 216.60 | J24: 221.70 | K24: 211.5 | L24: 203.3 | M24: 1.96473
A25: 15 | B25: ADVENZYMES | C25: 149.45 | D25: 150.15 | E25: 147.30 | F25: 145.15 | G25: 142.30 | H25: 152.30 | I25: 155.15 | J25: 157.30 | K25: 153 | L25: 148 | M25: 0.44516
A26: 16 | B26: AEGISCHEM | C26: 183.4 | D26: 180.28 | E26: 175.62 | F26: 167.83 | G26: 163.17 | H26: 188.07 | I26: 192.73 | J26: 200.52 | K26: 184.95 | L26: 172.5 | M26: 1.25481
A27: 17 | B27: AJANTPHARM | C27: 1017.1 | D27: 1001.70 | E27: 977.40 | F27: 937.70 | G27: 913.40 | H27: 1041.40 | I27: 1065.70 | J27: 1105.40 | K27: 1026 | L27: 962 | M27: 1.06273
A28: 18 | B28: AKZOINDIA | C28: 1892.1 | D28: 1907.60 | E28: 1870.25 | F28: 1848.40 | G28: 1811.05 | H28: 1929.45 | I28: 1966.80 | J28: 1988.65 | K28: 1944.95 | L28: 1885.75 | M28: 0.28929
A29: 19 | B29: APLLTD | C29: 525.9 | D29: 525.07 | E29: 517.83 | F29: 509.77 | G29: 502.53 | H29: 533.13 | I29: 540.37 | J29: 548.43 | K29: 532.3 | L29: 517 | M29: 0.22307
A30: 20 | B30: ALKEM | C30: 1898.3 | D30: 1914.43 | E30: 1868.87 | F30: 1839.43 | G30: 1793.87 | H30: 1943.87 | I30: 1989.43 | J30: 2018.87 | K30: 1960 | L30: 1885 | M30: 0.35304
A31: 21 | B31: ALBK | C31: 27.6 | D31: 27.70 | E31: 27.25 | F31: 26.90 | G31: 26.45 | H31: 28.05 | I31: 28.50 | J31: 28.85 | K31: 28.15 | L31: 27.35 | M31: 7.53175
A32: 22 | B32: ALLCARGO | C32: 108.35 | D32: 106.32 | E32: 102.93 | F32: 97.52 | G32: 94.13 | H32: 111.73 | I32: 115.12 | J32: 120.53 | K32: 109.7 | L32: 100.9 | M32: 3.44024
A33: 23 | B33: AMARAJABAT | C33: 711.9 | D33: 707.50 | E33: 698.10 | F33: 684.30 | G33: 674.90 | H33: 721.30 | I33: 730.70 | J33: 744.50 | K33: 716.9 | L33: 693.7 | M33: 2.46954
A34: 24 | B34: AMBER | C34: 874.5 | D34: 882.25 | E34: 859.50 | F34: 844.50 | G34: 821.75 | H34: 897.25 | I34: 920.00 | J34: 935.00 | K34: 905 | L34: 867.25 | M34: 0.13062
A35: 25 | B35: AMBUJACEM | C35: 196.35 | D35: 197.12 | E35: 192.98 | F35: 189.62 | G35: 185.48 | H35: 200.48 | I35: 204.62 | J35: 207.98 | K35: 201.25 | L35: 193.75 | M35: 28.84359
A36: 26 | B36: ANDHRABANK | C36: 16.65 | D36: 16.32 | E36: 15.63 | F36: 14.62 | G36: 13.93 | H36: 17.33 | I36: 18.02 | J36: 19.03 | K36: 17 | L36: 15.3 | M36: 4.01354
A37: 27 | B37: APOLLOHOSP | C37: 1379.1 | D37: 1370.50 | E37: 1357.15 | F37: 1335.20 | G37: 1321.85 | H37: 1392.45 | I37: 1405.80 | J37: 1427.75 | K37: 1383.85 | L37: 1348.55 | M37: 4.43258
A38: 28 | B38: APOLLOTYRE | C38: 168.85 | D38: 169.55 | E38: 166.50 | F38: 164.15 | G38: 161.10 | H38: 171.90 | I38: 174.95 | J38: 177.30 | K38: 172.6 | L38: 167.2 | M38: 25.87269
A39: 29 | B39: ARVINDFASN | C39: 424.6 | D39: 426.28 | E39: 421.97 | F39: 419.33 | G39: 415.02 | H39: 428.92 | I39: 433.23 | J39: 435.87 | K39: 430.6 | L39: 423.65 | M39: 0.18249
A40: 30 | B40: ASHOKLEY | C40: 67.65 | D40: 66.78 | E40: 65.22 | F40: 62.78 | G40: 61.22 | H40: 69.22 | I40: 70.78 | J40: 73.22 | K40: 68.35 | L40: 64.35 | M40: 340.86758
A41: 31 | B41: ASHOKA | C41: 97.4 | D41: 97.40 | E41: 95.15 | F41: 92.90 | G41: 90.65 | H41: 99.65 | I41: 101.90 | J41: 104.15 | K41: 99.65 | L41: 95.15 | M41: 1.008
A42: 32 | B42: ASIANPAINT | C42: 1748.95 | D42: 1749.80 | E42: 1731.35 | F42: 1713.75 | G42: 1695.30 | H42: 1767.40 | I42: 1785.85 | J42: 1803.45 | K42: 1768.25 | L42: 1732.2 | M42: 10.10826
A43: 33 | B43: ASTERDM | C43: 119.8 | D43: 118.00 | E43: 115.00 | F43: 110.20 | G43: 107.20 | H43: 122.80 | I43: 125.80 | J43: 130.60 | K43: 121 | L43: 113.2 | M43: 0.43748
A44: 34 | B44: ASTRAZEN | C44: 2218.4 | D44: 2239.12 | E44: 2180.28 | F44: 2142.17 | G44: 2083.33 | H44: 2277.23 | I44: 2336.07 | J44: 2374.18 | K44: 2297.95 | L44: 2201 | M44: 0.09681
A45: 35 | B45: ASTRAL | C45: 1154.4 | D45: 1155.85 | E45: 1129.70 | F45: 1105.00 | G45: 1078.85 | H45: 1180.55 | I45: 1206.70 | J45: 1231.40 | K45: 1182 | L45: 1131.15 | M45: 0.54929
A46: 36 | B46: ATUL | C46: 4015.55 | D46: 3998.03 | E46: 3971.07 | F46: 3926.58 | G46: 3899.62 | H46: 4042.52 | I46: 4069.48 | J46: 4113.97 | K46: 4025 | L46: 3953.55 | M46: 0.04317
A47: 37 | B47: AUROPHARMA | C47: 579.65 | D47: 574.15 | E47: 564.60 | F47: 549.55 | G47: 540.00 | H47: 589.20 | I47: 598.75 | J47: 613.80 | K47: 583.7 | L47: 559.1 | M47: 16.73837
A48: 38 | B48: AVANTIFEED | C48: 360.2 | D48: 359.63 | E48: 351.67 | F48: 343.13 | G48: 335.17 | H48: 368.17 | I48: 376.13 | J48: 384.67 | K48: 367.6 | L48: 351.1 | M48: 1.46882
A49: 39 | B49: DMART | C49: 1885.2 | D49: 1899.03 | E49: 1858.17 | F49: 1831.13 | G49: 1790.27 | H49: 1926.07 | I49: 1966.93 | J49: 1993.97 | K49: 1939.9 | L49: 1872 | M49: 4.33208
A50: 40 | B50: AXISBANK | C50: 668.4 | D50: 663.67 | E50: 651.43 | F50: 634.47 | G50: 622.23 | H50: 680.63 | I50: 692.87 | J50: 709.83 | K50: 675.9 | L50: 646.7 | M50: 176.15854
A51: 41 | B51: BASF | C51: 989.65 | D51: 991.88 | E51: 976.87 | F51: 964.08 | G51: 949.07 | H51: 1004.67 | I51: 1019.68 | J51: 1032.47 | K51: 1006.9 | L51: 979.1 | M51: 0.05748
A52: 42 | B52: BEML | C52: 955.45 | D52: 950.48 | E52: 935.97 | F52: 916.48 | G52: 901.97 | H52: 969.97 | I52: 984.48 | J52: 1003.97 | K52: 965 | L52: 931 | M52: 6.30243
A53: 43 | B53: BSE | C53: 564.75 | D53: 563.25 | E53: 559.00 | F53: 553.25 | G53: 549.00 | H53: 569.00 | I53: 573.25 | J53: 579.00 | K53: 567.5 | L53: 557.5 | M53: 0.90052
A54: 44 | B54: BAJAJ-AUTO | C54: 2897.9 | D54: 2906.70 | E54: 2873.70 | F54: 2849.50 | G54: 2816.50 | H54: 2930.90 | I54: 2963.90 | J54: 2988.10 | K54: 2939.7 | L54: 2882.5 | M54: 2.92132
A55: 45 | B55: BAJAJCON | C55: 241.95 | D55: 241.98 | E55: 239.97 | F55: 237.98 | G55: 235.97 | H55: 243.97 | I55: 245.98 | J55: 247.97 | K55: 244 | L55: 240 | M55: 1.41967
A56: 46 | B56: BAJAJELEC | C56: 387.45 | D56: 386.65 | E56: 381.30 | F56: 375.15 | G56: 369.80 | H56: 392.80 | I56: 398.15 | J56: 404.30 | K56: 392 | L56: 380.5 | M56: 0.58121
A57: 47 | B57: BAJFINANCE | C57: 3959.8 | D57: 3965.53 | E57: 3926.12 | F57: 3892.43 | G57: 3853.02 | H57: 3999.22 | I57: 4038.63 | J57: 4072.32 | K57: 4004.95 | L57: 3931.85 | M57: 12.4584
A58: 48 | B58: BAJAJFINSV | C58: 8446.45 | D58: 8417.30 | E58: 8349.60 | F58: 8252.75 | G58: 8185.05 | H58: 8514.15 | I58: 8581.85 | J58: 8678.70 | K58: 8485 | L58: 8320.45 | M58: 2.07759
A59: 49 | B59: BAJAJHLDNG | C59: 3525.25 | D59: 3559.72 | E59: 3455.08 | F59: 3384.92 | G59: 3280.28 | H59: 3629.88 | I59: 3734.52 | J59: 3804.68 | K59: 3664.35 | L59: 3489.55 | M59: 0.33716
A60: 50 | B60: BALKRISIND | C60: 761.55 | D60: 759.78 | E60: 748.07 | F60: 734.58 | G60: 722.87 | H60: 773.27 | I60: 784.98 | J60: 798.47 | K60: 771.5 | L60: 746.3 | M60: 2.1057
A61: 51 | B61: BALMLAWRIE | C61: 170.25 | D61: 168.98 | E61: 165.52 | F61: 160.78 | G61: 157.32 | H61: 173.72 | I61: 177.18 | J61: 181.92 | K61: 172.45 | L61: 164.25 | M61: 1.55689
A62: 52 | B62: BALRAMCHIN | C62: 163.1 | D62: 161.85 | E62: 159.20 | F62: 155.30 | G62: 152.65 | H62: 165.75 | I62: 168.40 | J62: 172.30 | K62: 164.5 | L62: 157.95 | M62: 19.87937
A63: 53 | B63: BANDHANBNK | C63: 478.5 | D63: 478.10 | E63: 465.00 | F63: 451.50 | G63: 438.40 | H63: 491.60 | I63: 504.70 | J63: 518.20 | K63: 491.2 | L63: 464.6 | M63: 4.75319
A64: 54 | B64: BANKBARODA | C64: 90.9 | D64: 91.13 | E64: 89.17 | F64: 87.43 | G64: 85.47 | H64: 92.87 | I64: 94.83 | J64: 96.57 | K64: 93.1 | L64: 89.4 | M64: 328.68099
A65: 55 | B65: BANKINDIA | C65: 61.9 | D65: 61.28 | E65: 60.07 | F65: 58.23 | G65: 57.02 | H65: 63.12 | I65: 64.33 | J65: 66.17 | K65: 62.5 | L65: 59.45 | M65: 92.50868
A66: 56 | B66: MAHABANK | C66: 11.05 | D66: 11.18 | E66: 10.87 | F66: 10.68 | G66: 10.37 | H66: 11.37 | I66: 11.68 | J66: 11.87 | K66: 11.5 | L66: 11 | M66: 1.9762
A67: 57 | B67: BATAINDIA | C67: 1688 | D67: 1700.85 | E67: 1663.15 | F67: 1638.30 | G67: 1600.60 | H67: 1725.70 | I67: 1763.40 | J67: 1788.25 | K67: 1738.55 | L67: 1676 | M67: 5.38283
A68: 58 | B68: BAYERCROP | C68: 3351.9 | D68: 3348.93 | E68: 3327.97 | F68: 3304.03 | G68: 3283.07 | H68: 3372.87 | I68: 3393.83 | J68: 3417.77 | K68: 3369.9 | L68: 3325 | M68: 0.02074
A69: 59 | B69: BERGEPAINT | C69: 428.05 | D69: 428.08 | E69: 423.27 | F69: 418.48 | G69: 413.67 | H69: 432.87 | I69: 437.68 | J69: 442.47 | K69: 432.9 | L69: 423.3 | M69: 13.54552
A70: 60 | B70: BDL | C70: 293.75 | D70: 291.68 | E70: 287.42 | F70: 281.08 | G70: 276.82 | H70: 298.02 | I70: 302.28 | J70: 308.62 | K70: 295.95 | L70: 285.35 | M70: 0.27374
A71: 61 | B71: BEL | C71: 105.4 | D71: 105.63 | E71: 104.07 | F71: 102.73 | G71: 101.17 | H71: 106.97 | I71: 108.53 | J71: 109.87 | K71: 107.2 | L71: 104.3 | M71: 69.71659
A72: 62 | B72: BHARATFORG | C72: 441.25 | D72: 443.08 | E72: 433.92 | F72: 426.58 | G72: 417.42 | H72: 450.42 | I72: 459.58 | J72: 466.92 | K72: 452.25 | L72: 435.75 | M72: 14.33241
A73: 63 | B73: BHEL | C73: 47.2 | D73: 47.23 | E73: 46.17 | F73: 45.13 | G73: 44.07 | H73: 48.27 | I73: 49.33 | J73: 50.37 | K73: 48.3 | L73: 46.2 | M73: 111.15713
A74: 64 | B74: BPCL | C74: 531.6 | D74: 521.97 | E74: 504.03 | F74: 476.47 | G74: 458.53 | H74: 549.53 | I74: 567.47 | J74: 595.03 | K74: 539.9 | L74: 494.4 | M74: 259.84601
A75: 65 | B75: BHARTIARTL | C75: 344.9 | D75: 347.27 | E75: 338.93 | F75: 332.97 | G75: 324.63 | H75: 353.23 | I75: 361.57 | J75: 367.53 | K75: 355.6 | L75: 341.3 | M75: 49.44826
A76: 66 | B76: INFRATEL | C76: 248.25 | D76: 248.17 | E76: 245.78 | F76: 243.32 | G76: 240.93 | H76: 250.63 | I76: 253.02 | J76: 255.48 | K76: 250.55 | L76: 245.7 | M76: 18.1282
A77: 67 | B77: BIOCON | C77: 232.2 | D77: 228.88 | E77: 224.77 | F77: 217.33 | G77: 213.22 | H77: 236.32 | I77: 240.43 | J77: 247.87 | K77: 233 | L77: 221.45 | M77: 44.20153
A78: 68 | B78: BIRLACORPN | C78: 547.25 | D78: 549.35 | E78: 531.55 | F78: 515.85 | G78: 498.05 | H78: 565.05 | I78: 582.85 | J78: 598.55 | K78: 567.15 | L78: 533.65 | M78: 0.92511
A79: 69 | B79: BSOFT | C79: 62.05 | D79: 63.40 | E79: 59.65 | F79: 57.25 | G79: 53.50 | H79: 65.80 | I79: 69.55 | J79: 71.95 | K79: 67.15 | L79: 61 | M79: 9.71266
A80: 70 | B80: BLISSGVS | C80: 100.5 | D80: 101.32 | E80: 99.18 | F80: 97.87 | G80: 95.73 | H80: 102.63 | I80: 104.77 | J80: 106.08 | K80: 103.45 | L80: 100 | M80: 2.24989
A81: 71 | B81: BLUEDART | C81: 2384.55 | D81: 2412.03 | E81: 2322.52 | F81: 2260.48 | G81: 2170.97 | H81: 2474.07 | I81: 2563.58 | J81: 2625.62 | K81: 2501.55 | L81: 2350 | M81: 0.05383
A82: 72 | B82: BLUESTARCO | C82: 797.35 | D82: 796.32 | E82: 787.63 | F82: 777.92 | G82: 769.23 | H82: 806.03 | I82: 814.72 | J82: 824.43 | K82: 805 | L82: 786.6 | M82: 0.14927
A83: 73 | B83: BBTC | C83: 1120.75 | D83: 1126.35 | E83: 1100.70 | F83: 1080.65 | G83: 1055.00 | H83: 1146.40 | I83: 1172.05 | J83: 1192.10 | K83: 1152 | L83: 1106.3 | M83: 0.82804
A84: 74 | B84: BOMDYEING | C84: 73.15 | D84: 73.80 | E84: 71.60 | F84: 70.05 | G84: 67.85 | H84: 75.35 | I84: 77.55 | J84: 79.10 | K84: 76 | L84: 72.25 | M84: 10.46984
A85: 75 | B85: BOSCHLTD | C85: 13563.7 | D85: 13498.30 | E85: 13354.95 | F85: 13146.20 | G85: 13002.85 | H85: 13707.05 | I85: 13850.40 | J85: 14059.15 | K85: 13641.65 | L85: 13289.55 | M85: 0.18342
A86: 76 | B86: BRIGADE | C86: 208.6 | D86: 206.18 | E86: 198.82 | F86: 189.03 | G86: 181.67 | H86: 215.97 | I86: 223.33 | J86: 233.12 | K86: 213.55 | L86: 196.4 | M86: 1.91118
A87: 77 | B87: BRITANNIA | C87: 2902.95 | D87: 2890.65 | E87: 2862.30 | F87: 2821.65 | G87: 2793.30 | H87: 2931.30 | I87: 2959.65 | J87: 3000.30 | K87: 2919 | L87: 2850 | M87: 2.85265
A88: 78 | B88: CARERATING | C88: 511.5 | D88: 511.48 | E88: 507.02 | F88: 502.53 | G88: 498.07 | H88: 515.97 | I88: 520.43 | J88: 524.92 | K88: 515.95 | L88: 507 | M88: 0.19541
A89: 79 | B89: CCL | C89: 235.15 | D89: 235.92 | E89: 234.18 | F89: 233.22 | G89: 231.48 | H89: 236.88 | I89: 238.62 | J89: 239.58 | K89: 237.65 | L89: 234.95 | M89: 0.09548
A90: 80 | B90: CESC | C90: 749 | D90: 742.15 | E90: 731.45 | F90: 713.90 | G90: 703.20 | H90: 759.70 | I90: 770.40 | J90: 787.95 | K90: 752.85 | L90: 724.6 | M90: 3.28408
A91: 81 | B91: CGPOWER | C91: 14.1 | D91: 14.10 | E91: 14.10 | F91: 14.10 | G91: 14.10 | H91: 14.10 | I91: 14.10 | J91: 14.10 | K91: 14.1 | L91: 14.1 | M91: 3.47072
A92: 82 | B92: CRISIL | C92: 1312.55 | D92: 1317.92 | E92: 1285.83 | F92: 1259.12 | G92: 1227.03 | H92: 1344.63 | I92: 1376.72 | J92: 1403.43 | K92: 1350 | L92: 1291.2 | M92: 0.69721
A93: 83 | B93: CADILAHC | C93: 233.9 | D93: 233.10 | E93: 230.85 | F93: 227.80 | G93: 225.55 | H93: 236.15 | I93: 238.40 | J93: 241.45 | K93: 235.35 | L93: 230.05 | M93: 6.40323
A94: 84 | B94: CANFINHOME | C94: 390.15 | D94: 390.98 | E94: 384.97 | F94: 379.78 | G94: 373.77 | H94: 396.17 | I94: 402.18 | J94: 407.37 | K94: 397 | L94: 385.8 | M94: 1.05163
A95: 85 | B95: CANBK | C95: 181.4 | D95: 180.08 | E95: 176.42 | F95: 171.43 | G95: 167.77 | H95: 185.07 | I95: 188.73 | J95: 193.72 | K95: 183.75 | L95: 175.1 | M95: 80.6467
A96: 86 | B96: CAPLIPOINT | C96: 413.1 | D96: 415.03 | E96: 408.07 | F96: 403.03 | G96: 396.07 | H96: 420.07 | I96: 427.03 | J96: 432.07 | K96: 422 | L96: 410 | M96: 0.2055
A97: 87 | B97: CGCL | C97: 217 | D97: 213.00 | E97: 205.00 | F97: 193.00 | G97: 185.00 | H97: 225.00 | I97: 233.00 | J97: 245.00 | K97: 221 | L97: 201 | M97: 3.66479
A98: 88 | B98: CARBORUNIV | C98: 299.85 | D98: 299.12 | E98: 293.73 | F98: 287.62 | G98: 282.23 | H98: 305.23 | I98: 310.62 | J98: 316.73 | K98: 304.5 | L98: 293 | M98: 0.33202
A99: 89 | B99: CASTROLIND | C99: 133.85 | D99: 134.97 | E99: 132.23 | F99: 130.62 | G99: 127.88 | H99: 136.58 | I99: 139.32 | J99: 140.93 | K99: 137.7 | L99: 133.35 | M99: 12.07858
A100: 90 | B100: CEATLTD | C100: 965.4 | D100: 967.80 | E100: 950.80 | F100: 936.20 | G100: 919.20 | H100: 982.40 | I100: 999.40 | J100: 1014.00 | K100: 984.8 | L100: 953.2 | M100: 0.70391
A101: 91 | B101: CENTRALBK | C101: 17.8 | D101: 17.78 | E101: 17.52 | F101: 17.23 | G101: 16.97 | H101: 18.07 | I101: 18.33 | J101: 18.62 | K101: 18.05 | L101: 17.5 | M101: 4.7964
A102: 92 | B102: CDSL | C102: 205.1 | D102: 203.87 | E102: 201.73 | F102: 198.37 | G102: 196.23 | H102: 207.23 | I102: 209.37 | J102: 212.73 | K102: 206 | L102: 200.5 | M102: 1.73166
A103: 93 | B103: CENTURYPLY | C103: 161.25 | D103: 159.42 | E103: 155.83 | F103: 150.42 | G103: 146.83 | H103: 164.83 | I103: 168.42 | J103: 173.83 | K103: 163 | L103: 154 | M103: 1.13459
A104: 94 | B104: CERA | C104: 2623.95 | D104: 2623.33 | E104: 2590.67 | F104: 2557.38 | G104: 2524.72 | H104: 2656.62 | I104: 2689.28 | J104: 2722.57 | K104: 2656 | L104: 2590.05 | M104: 0.03067
A105: 95 | B105: CHALET | C105: 320.55 | D105: 320.82 | E105: 316.63 | F105: 312.72 | G105: 308.53 | H105: 324.73 | I105: 328.92 | J105: 332.83 | K105: 325 | L105: 316.9 | M105: 1.09705
A106: 96 | B106: CHAMBLFERT | C106: 149.1 | D106: 149.67 | E106: 146.03 | F106: 142.97 | G106: 139.33 | H106: 152.73 | I106: 156.37 | J106: 159.43 | K106: 153.3 | L106: 146.6 | M106: 1.88896
A107: 97 | B107: CHENNPETRO | C107: 175.8 | D107: 173.12 | E107: 169.23 | F107: 162.67 | G107: 158.78 | H107: 179.68 | I107: 183.57 | J107: 190.13 | K107: 177 | L107: 166.55 | M107: 6.90294
A108: 98 | B108: CHOLAHLDNG | C108: 483.35 | D108: 481.28 | E108: 474.12 | F108: 464.88 | G108: 457.72 | H108: 490.52 | I108: 497.68 | J108: 506.92 | K108: 488.45 | L108: 472.05 | M108: 0.2157
A109: 99 | B109: CHOLAFIN | C109: 290.1 | D109: 291.98 | E109: 283.12 | F109: 276.13 | G109: 267.27 | H109: 298.97 | I109: 307.83 | J109: 314.82 | K109: 300.85 | L109: 285 | M109: 18.23132
A110: 100 | B110: CIPLA | C110: 418.1 | D110: 415.20 | E110: 409.40 | F110: 400.70 | G110: 394.90 | H110: 423.90 | I110: 429.70 | J110: 438.40 | K110: 421 | L110: 406.5 | M110: 26.39852
A111: 101 | B111: CUB | C111: 211.25 | D111: 210.05 | E111: 207.20 | F111: 203.15 | G111: 200.30 | H111: 214.10 | I111: 216.95 | J111: 221.00 | K111: 212.9 | L111: 206 | M111: 4.09418
A112: 102 | B112: COALINDIA | C112: 186.75 | D112: 188.33 | E112: 183.67 | F112: 180.58 | G112: 175.92 | H112: 191.42 | I112: 196.08 | J112: 199.17 | K112: 193 | L112: 185.25 | M112: 122.70678
A113: 103 | B113: COCHINSHIP | C113: 332.2 | D113: 333.28 | E113: 330.02 | F113: 327.83 | G113: 324.57 | H113: 335.47 | I113: 338.73 | J113: 340.92 | K113: 336.55 | L113: 331.1 | M113: 0.29616
A114: 104 | B114: COFFEEDAY | C114: 43.4 | D114: 43.40 | E114: 43.40 | F114: 43.40 | G114: 43.40 | H114: 43.40 | I114: 43.40 | J114: 43.40 | K114: 43.4 | L114: 43.4 | M114: 1.63486
A115: 105 | B115: COLPAL | C115: 1489.75 | D115: 1489.68 | E115: 1477.42 | F115: 1465.08 | G115: 1452.82 | H115: 1502.02 | I115: 1514.28 | J115: 1526.62 | K115: 1501.95 | L115: 1477.35 | M115: 3.22883
A116: 106 | B116: CONCOR | C116: 631.85 | D116: 632.30 | E116: 621.85 | F116: 611.85 | G116: 601.40 | H116: 642.30 | I116: 652.75 | J116: 662.75 | K116: 642.75 | L116: 622.3 | M116: 18.68252
A117: 107 | B117: COROMANDEL | C117: 412.6 | D117: 413.60 | E117: 409.70 | F117: 406.80 | G117: 402.90 | H117: 416.50 | I117: 420.40 | J117: 423.30 | K117: 417.5 | L117: 410.7 | M117: 0.54915
A118: 108 | B118: CORPBANK | C118: 14.35 | D118: 14.48 | E118: 13.97 | F118: 13.58 | G118: 13.07 | H118: 14.87 | I118: 15.38 | J118: 15.77 | K118: 15 | L118: 14.1 | M118: 1.7034
A119: 109 | B119: COX&KINGS | C119: 3.5 | D119: 3.50 | E119: 3.50 | F119: 3.50 | G119: 3.50 | H119: 3.50 | I119: 3.50 | J119: 3.50 | K119: 3.5 | L119: 3.5 | M119: 5.06374
A120: 110 | B120: CREDITACC | C120: 669.75 | D120: 666.58 | E120: 658.17 | F120: 646.58 | G120: 638.17 | H120: 678.17 | I120: 686.58 | J120: 698.17 | K120: 675 | L120: 655 | M120: 1.78498
A121: 111 | B121: CROMPTON | C121: 244 | D121: 243.70 | E121: 239.50 | F121: 235.00 | G121: 230.80 | H121: 248.20 | I121: 252.40 | J121: 256.90 | K121: 247.9 | L121: 239.2 | M121: 6.0708
A122: 112 | B122: CUMMINSIND | C122: 559.5 | D122: 563.25 | E122: 552.50 | F122: 545.50 | G122: 534.75 | H122: 570.25 | I122: 581.00 | J122: 588.00 | K122: 574 | L122: 556.25 | M122: 4.6625
A123: 113 | B123: CYIENT | C123: 466.8 | D123: 464.22 | E123: 458.43 | F123: 450.07 | G123: 444.28 | H123: 472.58 | I123: 478.37 | J123: 486.73 | K123: 470 | L123: 455.85 | M123: 0.96805
A124: 114 | B124: DBCORP | C124: 139 | D124: 139.58 | E124: 137.72 | F124: 136.43 | G124: 134.57 | H124: 140.87 | I124: 142.73 | J124: 144.02 | K124: 141.45 | L124: 138.3 | M124: 0.15753
A125: 115 | B125: DCBBANK | C125: 188.25 | D125: 186.50 | E125: 184.00 | F125: 179.75 | G125: 177.25 | H125: 190.75 | I125: 193.25 | J125: 197.50 | K125: 189 | L125: 182.25 | M125: 11.06152
A126: 116 | B126: DCMSHRIRAM | C126: 405.6 | D126: 402.80 | E126: 394.60 | F126: 383.60 | G126: 375.40 | H126: 413.80 | I126: 422.00 | J126: 433.00 | K126: 411 | L126: 391.8 | M126: 1.00458
A127: 117 | B127: DLF | C127: 149.9 | D127: 148.83 | E127: 145.67 | F127: 141.43 | G127: 138.27 | H127: 153.07 | I127: 156.23 | J127: 160.47 | K127: 152 | L127: 144.6 | M127: 127.04415
A128: 118 | B128: DABUR | C128: 433.65 | D128: 434.75 | E128: 430.55 | F128: 427.45 | G128: 423.25 | H128: 437.85 | I128: 442.05 | J128: 445.15 | K128: 438.95 | L128: 431.65 | M128: 16.37904
A129: 119 | B129: DALBHARAT | C129: 794.3 | D129: 800.37 | E129: 785.93 | F129: 777.57 | G129: 763.13 | H129: 808.73 | I129: 823.17 | J129: 831.53 | K129: 814.8 | L129: 792 | M129: 0.45131
A130: 120 | B130: DEEPAKNTR | C130: 295.5 | D130: 292.83 | E130: 288.87 | F130: 282.23 | G130: 278.27 | H130: 299.47 | I130: 303.43 | J130: 310.07 | K130: 296.8 | L130: 286.2 | M130: 1.14959
A131: 121 | B131: DELTACORP | C131: 154.1 | D131: 157.60 | E131: 149.50 | F131: 144.90 | G131: 136.80 | H131: 162.20 | I131: 170.30 | J131: 174.90 | K131: 165.7 | L131: 153 | M131: 10.4688
A132: 122 | B132: DEN | C132: 50.9 | D132: 51.32 | E132: 49.18 | F132: 47.47 | G132: 45.33 | H132: 53.03 | I132: 55.17 | J132: 56.88 | K132: 53.45 | L132: 49.6 | M132: 0.48912
A133: 123 | B133: DHFL | C133: 31.7 | D133: 30.50 | E133: 27.50 | F133: 23.30 | G133: 20.30 | H133: 34.70 | I133: 37.70 | J133: 41.90 | K133: 33.5 | L133: 26.3 | M133: 151.79975
A134: 124 | B134: DBL | C134: 393.9 | D134: 397.28 | E134: 388.87 | F134: 383.83 | G134: 375.42 | H134: 402.32 | I134: 410.73 | J134: 415.77 | K134: 405.7 | L134: 392.25 | M134: 1.4028
A135: 125 | B135: DISHTV | C135: 17.75 | D135: 17.38 | E135: 16.47 | F135: 15.18 | G135: 14.27 | H135: 18.67 | I135: 19.58 | J135: 20.87 | K135: 18.3 | L135: 16.1 | M135: 396.14436
A136: 126 | B136: DCAL | C136: 163.55 | D136: 162.48 | E136: 159.07 | F136: 154.58 | G136: 151.17 | H136: 166.97 | I136: 170.38 | J136: 174.87 | K136: 165.9 | L136: 158 | M136: 2.60207
A137: 127 | B137: DIVISLAB | C137: 1628.35 | D137: 1623.77 | E137: 1599.63 | F137: 1570.92 | G137: 1546.78 | H137: 1652.48 | I137: 1676.62 | J137: 1705.33 | K137: 1647.9 | L137: 1595.05 | M137: 3.48048
A138: 128 | B138: DIXON | C138: 2922.85 | D138: 2921.27 | E138: 2846.58 | F138: 2770.32 | G138: 2695.63 | H138: 2997.53 | I138: 3072.22 | J138: 3148.48 | K138: 2995.95 | L138: 2845 | M138: 0.10333
A139: 129 | B139: LALPATHLAB | C139: 1389.85 | D139: 1369.70 | E139: 1341.40 | F139: 1292.95 | G139: 1264.65 | H139: 1418.15 | I139: 1446.45 | J139: 1494.90 | K139: 1398 | L139: 1321.25 | M139: 0.57138
A140: 130 | B140: DRREDDY | C140: 2677.15 | D140: 2665.87 | E140: 2647.28 | F140: 2617.42 | G140: 2598.83 | H140: 2695.73 | I140: 2714.32 | J140: 2744.18 | K140: 2684.45 | L140: 2636 | M140: 2.97
A141: 131 | B141: EIDPARRY | C141: 159.9 | D141: 161.18 | E141: 156.92 | F141: 153.93 | G141: 149.67 | H141: 164.17 | I141: 168.43 | J141: 171.42 | K141: 165.45 | L141: 158.2 | M141: 0.57137
A142: 132 | B142: EIHOTEL | C142: 176.25 | D142: 175.93 | E142: 173.87 | F142: 171.48 | G142: 169.42 | H142: 178.32 | I142: 180.38 | J142: 182.77 | K142: 178 | L142: 173.55 | M142: 0.34822
A143: 133 | B143: EDELWEISS | C143: 87.4 | D143: 88.02 | E143: 79.48 | F143: 71.57 | G143: 63.03 | H143: 95.93 | I143: 104.47 | J143: 112.38 | K143: 96.55 | L143: 80.1 | M143: 137.39686
A144: 134 | B144: EICHERMOT | C144: 18284.65 | D144: 18115.92 | E144: 17891.83 | F144: 17499.02 | G144: 17274.93 | H144: 18508.73 | I144: 18732.82 | J144: 19125.63 | K144: 18340 | L144: 17723.1 | M144: 1.22882
A145: 135 | B145: ELGIEQUIP | C145: 278.95 | D145: 282.83 | E145: 272.12 | F145: 265.28 | G145: 254.57 | H145: 289.67 | I145: 300.38 | J145: 307.22 | K145: 293.55 | L145: 276 | M145: 0.17622
A146: 136 | B146: EMAMILTD | C146: 315.05 | D146: 311.92 | E146: 304.13 | F146: 293.22 | G146: 285.43 | H146: 322.83 | I146: 330.62 | J146: 341.53 | K146: 319.7 | L146: 301 | M146: 8.97532
A147: 137 | B147: ENDURANCE | C147: 956.55 | D147: 958.72 | E147: 928.83 | F147: 901.12 | G147: 871.23 | H147: 986.43 | I147: 1016.32 | J147: 1044.03 | K147: 988.6 | L147: 931 | M147: 0.26105
A148: 138 | B148: ENGINERSIN | C148: 112.2 | D148: 112.60 | E148: 110.70 | F148: 109.20 | G148: 107.30 | H148: 114.10 | I148: 116.00 | J148: 117.50 | K148: 114.5 | L148: 111.1 | M148: 11.63032
A149: 139 | B149: EQUITAS | C149: 102.6 | D149: 102.65 | E149: 100.95 | F149: 99.30 | G149: 97.60 | H149: 104.30 | I149: 106.00 | J149: 107.65 | K149: 104.35 | L149: 101 | M149: 13.01796
A150: 140 | B150: ERIS | C150: 431.4 | D150: 433.18 | E150: 423.22 | F150: 415.03 | G150: 405.07 | H150: 441.37 | I150: 451.33 | J150: 459.52 | K150: 443.15 | L150: 425 | M150: 0.30405
A151: 141 | B151: ESCORTS | C151: 619.25 | D151: 610.70 | E151: 597.40 | F151: 575.55 | G151: 562.25 | H151: 632.55 | I151: 645.85 | J151: 667.70 | K151: 624 | L151: 588.85 | M151: 57.4842
A152: 142 | B152: ESSELPACK | C152: 114.3 | D152: 114.15 | E152: 111.70 | F152: 109.10 | G152: 106.65 | H152: 116.75 | I152: 119.20 | J152: 121.80 | K152: 116.6 | L152: 111.55 | M152: 0.4405
A153: 143 | B153: EXIDEIND | C153: 196.25 | D153: 196.20 | E153: 192.85 | F153: 189.45 | G153: 186.10 | H153: 199.60 | I153: 202.95 | J153: 206.35 | K153: 199.55 | L153: 192.8 | M153: 14.80761
A154: 144 | B154: FDC | C154: 168.1 | D154: 169.47 | E154: 164.63 | F154: 161.17 | G154: 156.33 | H154: 172.93 | I154: 177.77 | J154: 181.23 | K154: 174.3 | L154: 166 | M154: 0.17203
A155: 145 | B155: FEDERALBNK | C155: 88.8 | D155: 87.92 | E155: 86.28 | F155: 83.77 | G155: 82.13 | H155: 90.43 | I155: 92.07 | J155: 94.58 | K155: 89.55 | L155: 85.4 | M155: 106.6894
A156: 146 | B156: FMGOETZE | C156: 546.8 | D156: 545.58 | E156: 536.17 | F156: 525.53 | G156: 516.12 | H156: 556.22 | I156: 565.63 | J156: 576.27 | K156: 555 | L156: 534.95 | M156: 0.00876
A157: 147 | B157: FINEORG | C157: 1738.35 | D157: 1749.27 | E157: 1719.58 | F157: 1700.82 | G157: 1671.13 | H157: 1768.03 | I157: 1797.72 | J157: 1816.48 | K157: 1778.95 | L157: 1730.5 | M157: 0.16103
A158: 148 | B158: FINCABLES | C158: 370.85 | D158: 376.05 | E158: 363.80 | F158: 356.75 | G158: 344.50 | H158: 383.10 | I158: 395.35 | J158: 402.40 | K158: 388.3 | L158: 369 | M158: 0.61744
A159: 149 | B159: FINPIPE | C159: 589.75 | D159: 590.12 | E159: 583.63 | F159: 577.52 | G159: 571.03 | H159: 596.23 | I159: 602.72 | J159: 608.83 | K159: 596.6 | L159: 584 | M159: 1.10461
A160: 150 | B160: FSL | C160: 45.8 | D160: 45.92 | E160: 45.23 | F160: 44.67 | G160: 43.98 | H160: 46.48 | I160: 47.17 | J160: 47.73 | K160: 46.6 | L160: 45.35 | M160: 17.8413
A161: 151 | B161: FORTIS | C161: 135.2 | D161: 135.48 | E161: 134.27 | F161: 133.33 | G161: 132.12 | H161: 136.42 | I161: 137.63 | J161: 138.57 | K161: 136.7 | L161: 134.55 | M161: 6.60396
A162: 152 | B162: FCONSUMER | C162: 25.45 | D162: 25.03 | E162: 23.97 | F162: 22.48 | G162: 21.42 | H162: 26.52 | I162: 27.58 | J162: 29.07 | K162: 26.1 | L162: 23.55 | M162: 19.29381
A163: 153 | B163: FLFL | C163: 423.2 | D163: 424.00 | E163: 418.20 | F163: 413.20 | G163: 407.40 | H163: 429.00 | I163: 434.80 | J163: 439.80 | K163: 429.8 | L163: 419 | M163: 0.09979
A164: 154 | B164: FRETAIL | C164: 380.55 | D164: 382.12 | E164: 377.23 | F164: 373.92 | G164: 369.03 | H164: 385.43 | I164: 390.32 | J164: 393.63 | K164: 387 | L164: 378.8 | M164: 2.04552
A165: 155 | B165: GAIL | C165: 131.7 | D165: 132.08 | E165: 130.47 | F165: 129.23 | G165: 127.62 | H165: 133.32 | I165: 134.93 | J165: 136.17 | K165: 133.7 | L165: 130.85 | M165: 83.52681
A166: 156 | B166: GEPIL | C166: 774.9 | D166: 779.53 | E166: 760.37 | F166: 745.83 | G166: 726.67 | H166: 794.07 | I166: 813.23 | J166: 827.77 | K166: 798.7 | L166: 765 | M166: 0.54361
A167: 157 | B167: GET&D | C167: 183.85 | D167: 185.10 | E167: 180.25 | F167: 176.65 | G167: 171.80 | H167: 188.70 | I167: 193.55 | J167: 197.15 | K167: 189.95 | L167: 181.5 | M167: 0.21985
A168: 158 | B168: GHCL | C168: 209.75 | D168: 208.60 | E168: 205.15 | F168: 200.55 | G168: 197.10 | H168: 213.20 | I168: 216.65 | J168: 221.25 | K168: 212.05 | L168: 204 | M168: 0.35128
A169: 159 | B169: GMRINFRA | C169: 16.9 | D169: 16.77 | E169: 16.53 | F169: 16.17 | G169: 15.93 | H169: 17.13 | I169: 17.37 | J169: 17.73 | K169: 17 | L169: 16.4 | M169: 124.34052
A170: 160 | B170: GALAXYSURF | C170: 1475.5 | D170: 1475.15 | E170: 1462.30 | F170: 1449.10 | G170: 1436.25 | H170: 1488.35 | I170: 1501.20 | J170: 1514.40 | K170: 1488 | L170: 1461.95 | M170: 0.03782
A171: 161 | B171: GARFIBRES | C171: 1204.35 | D171: 1202.42 | E171: 1192.93 | F171: 1181.52 | G171: 1172.03 | H171: 1213.83 | I171: 1223.32 | J171: 1234.73 | K171: 1211.9 | L171: 1191 | M171: 0.02113
A172: 162 | B172: GAYAPROJ | C172: 112.4 | D172: 110.82 | E172: 107.13 | F172: 101.87 | G172: 98.18 | H172: 116.08 | I172: 119.77 | J172: 125.03 | K172: 114.5 | L172: 105.55 | M172: 0.69081
A173: 163 | B173: GICRE | C173: 222.15 | D173: 225.38 | E173: 215.77 | F173: 209.38 | G173: 199.77 | H173: 231.77 | I173: 241.38 | J173: 247.77 | K173: 235 | L173: 219 | M173: 2.46484
A174: 164 | B174: GILLETTE | C174: 7057.8 | D174: 7054.63 | E174: 7011.27 | F174: 6964.73 | G174: 6921.37 | H174: 7101.17 | I174: 7144.53 | J174: 7191.07 | K174: 7098 | L174: 7008.1 | M174: 0.0154
A175: 165 | B175: GLAXO | C175: 1375.1 | D175: 1376.67 | E175: 1363.48 | F175: 1351.87 | G175: 1338.68 | H175: 1388.28 | I175: 1401.47 | J175: 1413.08 | K175: 1389.85 | L175: 1365.05 | M175: 0.25371
A176: 166 | B176: GLENMARK | C176: 319.55 | D176: 318.98 | E176: 313.72 | F176: 307.88 | G176: 302.62 | H176: 324.82 | I176: 330.08 | J176: 335.92 | K176: 324.25 | L176: 313.15 | M176: 7.67353
A177: 167 | B177: GODFRYPHLP | C177: 959.55 | D177: 959.05 | E177: 951.10 | F177: 942.65 | G177: 934.70 | H177: 967.50 | I177: 975.45 | J177: 983.90 | K177: 967 | L177: 950.6 | M177: 0.40642
A178: 168 | B178: GODREJAGRO | C178: 472.15 | D178: 473.37 | E178: 467.73 | F178: 463.32 | G178: 457.68 | H178: 477.78 | I178: 483.42 | J178: 487.83 | K178: 479 | L178: 468.95 | M178: 0.25414
A179: 169 | B179: GODREJCP | C179: 659.95 | D179: 665.48 | E179: 649.77 | F179: 639.58 | G179: 623.87 | H179: 675.67 | I179: 691.38 | J179: 701.57 | K179: 681.2 | L179: 655.3 | M179: 12.24879
A180: 170 | B180: GODREJIND | C180: 381.95 | D180: 389.37 | E180: 371.78 | F180: 361.62 | G180: 344.03 | H180: 399.53 | I180: 417.12 | J180: 427.28 | K180: 406.95 | L180: 379.2 | M180: 21.77722
A181: 171 | B181: GODREJPROP | C181: 1006.55 | D181: 1007.53 | E181: 961.07 | F181: 915.58 | G181: 869.12 | H181: 1053.02 | I181: 1099.48 | J181: 1144.97 | K181: 1054 | L181: 962.05 | M181: 4.26253
A182: 172 | B182: GRANULES | C182: 103.3 | D182: 103.40 | E182: 101.90 | F182: 100.50 | G182: 99.00 | H182: 104.80 | I182: 106.30 | J182: 107.70 | K182: 104.9 | L182: 102 | M182: 2.4366
A183: 173 | B183: GRAPHITE | C183: 282.45 | D183: 283.48 | E183: 275.67 | F183: 268.88 | G183: 261.07 | H183: 290.27 | I183: 298.08 | J183: 304.87 | K183: 291.3 | L183: 276.7 | M183: 10.29937
A184: 174 | B184: GRASIM | C184: 679.65 | D184: 681.87 | E184: 667.78 | F184: 655.92 | G184: 641.83 | H184: 693.73 | I184: 707.82 | J184: 719.68 | K184: 695.95 | L184: 670 | M184: 30.4899
A185: 175 | B185: GESHIP | C185: 280 | D185: 279.25 | E185: 273.90 | F185: 267.80 | G185: 262.45 | H185: 285.35 | I185: 290.70 | J185: 296.80 | K185: 284.6 | L185: 273.15 | M185: 0.18253
A186: 176 | B186: GREAVESCOT | C186: 136.1 | D186: 138.05 | E186: 133.30 | F186: 130.50 | G186: 125.75 | H186: 140.85 | I186: 145.60 | J186: 148.40 | K186: 142.8 | L186: 135.25 | M186: 4.3014
A187: 177 | B187: GRINDWELL | C187: 605.45 | D187: 604.68 | E187: 594.92 | F187: 584.38 | G187: 574.62 | H187: 615.22 | I187: 624.98 | J187: 635.52 | K187: 614.45 | L187: 594.15 | M187: 0.16247
A188: 178 | B188: GUJALKALI | C188: 442.35 | D188: 443.67 | E188: 435.88 | F188: 429.42 | G188: 421.63 | H188: 450.13 | I188: 457.92 | J188: 464.38 | K188: 451.45 | L188: 437.2 | M188: 0.19575
A189: 179 | B189: GUJGASLTD | C189: 169.2 | D189: 169.53 | E189: 167.27 | F189: 165.33 | G189: 163.07 | H189: 171.47 | I189: 173.73 | J189: 175.67 | K189: 171.8 | L189: 167.6 | M189: 1.48136
A190: 180 | B190: GMDCLTD | C190: 61.15 | D190: 61.05 | E190: 60.10 | F190: 59.05 | G190: 58.10 | H190: 62.10 | I190: 63.05 | J190: 64.10 | K190: 62 | L190: 60 | M190: 0.94319
A191: 181 | B191: GNFC | C191: 196.05 | D191: 196.28 | E191: 193.82 | F191: 191.58 | G191: 189.12 | H191: 198.52 | I191: 200.98 | J191: 203.22 | K191: 198.75 | L191: 194.05 | M191: 1.87051
A192: 182 | B192: GPPL | C192: 82.4 | D192: 83.57 | E192: 80.93 | F192: 79.47 | G192: 76.83 | H192: 85.03 | I192: 87.67 | J192: 89.13 | K192: 86.2 | L192: 82.1 | M192: 0.60057
A193: 183 | B193: GSFC | C193: 75.95 | D193: 75.90 | E193: 75.05 | F193: 74.15 | G193: 73.30 | H193: 76.80 | I193: 77.65 | J193: 78.55 | K193: 76.75 | L193: 75 | M193: 1.98108
A194: 184 | B194: GSPL | C194: 205.05 | D194: 206.97 | E194: 200.33 | F194: 195.62 | G194: 188.98 | H194: 211.68 | I194: 218.32 | J194: 223.03 | K194: 213.6 | L194: 202.25 | M194: 4.70856
A195: 185 | B195: GULFOILLUB | C195: 852.4 | D195: 855.70 | E195: 846.40 | F195: 840.40 | G195: 831.10 | H195: 861.70 | I195: 871.00 | J195: 877.00 | K195: 865 | L195: 849.7 | M195: 0.06089
A196: 186 | B196: HEG | C196: 971.75 | D196: 968.25 | E196: 947.50 | F196: 923.25 | G196: 902.50 | H196: 992.50 | I196: 1013.25 | J196: 1037.50 | K196: 989 | L196: 944 | M196: 3.34926
A197: 187 | B197: HCLTECH | C197: 1076.8 | D197: 1073.65 | E197: 1057.30 | F197: 1037.80 | G197: 1021.45 | H197: 1093.15 | I197: 1109.50 | J197: 1129.00 | K197: 1090 | L197: 1054.15 | M197: 17.17651
A198: 188 | B198: HDFCAMC | C198: 2706.1 | D198: 2702.05 | E198: 2654.10 | F198: 2602.10 | G198: 2554.15 | H198: 2754.05 | I198: 2802.00 | J198: 2854.00 | K198: 2750 | L198: 2650.05 | M198: 1.85453
A199: 189 | B199: HDFCBANK | C199: 1223.55 | D199: 1227.90 | E199: 1212.00 | F199: 1200.45 | G199: 1184.55 | H199: 1239.45 | I199: 1255.35 | J199: 1266.90 | K199: 1243.8 | L199: 1216.35 | M199: 81.49438
A200: 190 | B200: HDFCLIFE | C200: 592.9 | D200: 588.75 | E200: 579.65 | F200: 566.40 | G200: 557.30 | H200: 602.00 | I200: 611.10 | J200: 624.35 | K200: 597.85 | L200: 575.5 | M200: 36.3462
A201: 191 | B201: HATHWAY | C201: 20.05 | D201: 20.33 | E201: 19.67 | F201: 19.28 | G201: 18.62 | H201: 20.72 | I201: 21.38 | J201: 21.77 | K201: 21 | L201: 19.95 | M201: 4.14195
A202: 192 | B202: HATSUN | C202: 624.75 | D202: 620.80 | E202: 611.75 | F202: 598.75 | G202: 589.70 | H202: 633.80 | I202: 642.85 | J202: 655.85 | K202: 629.85 | L202: 607.8 | M202: 0.02885
A203: 193 | B203: HAVELLS | C203: 702 | D203: 703.35 | E203: 695.70 | F203: 689.40 | G203: 681.75 | H203: 709.65 | I203: 717.30 | J203: 723.60 | K203: 711 | L203: 697.05 | M203: 9.65453
A204: 194 | B204: HEIDELBERG | C204: 185.2 | D204: 184.75 | E204: 182.80 | F204: 180.40 | G204: 178.45 | H204: 187.15 | I204: 189.10 | J204: 191.50 | K204: 186.7 | L204: 182.35 | M204: 1.50712
A205: 195 | B205: HERITGFOOD | C205: 370.15 | D205: 373.32 | E205: 366.83 | F205: 363.52 | G205: 357.03 | H205: 376.63 | I205: 383.12 | J205: 386.43 | K205: 379.8 | L205: 370 | M205: 0.089
A206: 196 | B206: HEROMOTOCO | C206: 2667.45 | D206: 2685.48 | E206: 2636.97 | F206: 2606.48 | G206: 2557.97 | H206: 2715.97 | I206: 2764.48 | J206: 2794.97 | K206: 2734 | L206: 2655 | M206: 9.37439
... 320 more rows

Sheet Bulk Deals
E6: Back To Main Page
A7: Subject : | B7: BULK DEAL | D7: =Main!B10 -> 2019-10-04
A9: Date | B9: Scrip code | C9: Scrip Name | D9: Client Name | E9: Buy / Sell | F9: Quantity Traded | G9: Trade Price / Wt.Avg.trade price | H9: Exchange
A10: 2019-10-03 | B10: 539570 | C10: ACEWIN | D10: AMALIN CLARA MARY | E10: BUY | F10: 57,600 | G10: 6.11 | H10: BSE
A11: 2019-10-03 | B11: 511463 | C11: ALEXANDER | D11: VANDNA ANIRUDH SETHI | E11: BUY | F11: 62,565 | G11: 20.34 | H11: BSE
A12: 2019-10-03 | B12: 541401 | C12: ARIHANTINS | D12: DINESH DALICHAND VORA | E12: BUY | F12: 52,000 | G12: 7.58 | H12: BSE
A13: 2019-10-03 | B13: 541401 | C13: ARIHANTINS | D13: ASHISH HASMUKHLAL SHAH | E13: BUY | F13: 52,000 | G13: 7.51 | H13: BSE
A14: 2019-10-03 | B14: 541401 | C14: ARIHANTINS | D14: ASHISH HASMUKHLAL SHAH | E14: SELL | F14: 20,000 | G14: 7.37 | H14: BSE
A15: 2019-10-03 | B15: 590122 | C15: ASHIKACR | D15: KABIR SHRAN DAGAR (HUF) | E15: BUY | F15: 46,400 | G15: 38.38 | H15: BSE
A16: 2019-10-03 | B16: 590122 | C16: ASHIKACR | D16: KABIR SHRAN DAGAR (HUF) | E16: SELL | F16: 4,400 | G16: 38.4 | H16: BSE
A17: 2019-10-03 | B17: 541702 | C17: ASHNI | D17: JIGNESH BABULAL PARIKH | E17: SELL | F17: 50,000 | G17: 1.51 | H17: BSE
A18: 2019-10-03 | B18: 526235 | C18: MERCATOR | D18: MULTIPLIER SHARE & STOCK ADVISORS PRIVATE LIMITED | E18: BUY | F18: 104,568 | G18: 1.10 | H18: BSE
A19: 2019-10-03 | B19: 526235 | C19: MERCATOR | D19: MULTIPLIER SHARE & STOCK ADVISORS PRIVATE LIMITED | E19: SELL | F19: 1,903,568 | G19: 1.03 | H19: BSE
A20: 2019-10-03 | B20: 531272 | C20: NIKKIGL | D20: SHRADDHA DEVI SARAF | E20: SELL | F20: 20,000 | G20: 6.17 | H20: BSE
A21: 2019-10-03 | B21: 531272 | C21: NIKKIGL | D21: BAKLIWAL VYAPAAR PRIVATE LIMITED | E21: BUY | F21: 20,000 | G21: 6.17 | H21: BSE
A22: 2019-10-03 | B22: 542771 | C22: NOVATEOR | D22: KINNARKUMAR VINODCHANDRA SHAH | E22: SELL | F22: 30,000 | G22: 42.00 | H22: BSE
A23: 2019-10-03 | B23: 542771 | C23: NOVATEOR | D23: ABHISHEK BHIKHABHAI PATEL | E23: BUY | F23: 36,000 | G23: 41.98 | H23: BSE
A24: 2019-10-03 | B24: 523862 | C24: PIFL | D24: RAMACHANDRAN MURALIDHARAN | E24: BUY | F24: 49,495 | G24: 3.61 | H24: BSE
A25: 2019-10-03 | B25: 523862 | C25: PIFL | D25: PADAMCHAND BHAVARLAL DHOOT | E25: SELL | F25: 49,500 | G25: 3.61 | H25: BSE
A26: 2019-10-03 | B26: 511557 | C26: PROFINC | D26: PURAN CHAND CHOUDHARY | E26: BUY | F26: 53,172 | G26: 22.45 | H26: BSE
A27: 2019-10-03 | B27: 511557 | C27: PROFINC | D27: SANDESH MADHUKAR SAWANT | E27: SELL | F27: 50,000 | G27: 22.5 | H27: BSE
A28: 2019-10-03 | B28: 542725 | C28: SBC | D28: SANDEEP KUMAR SRIVASTAVA | E28: BUY | F28: 18,000 | G28: 24.55 | H28: BSE
A29: 2019-10-03 | B29: 542725 | C29: SBC | D29: SWETA AGRAWAL | E29: BUY | F29: 66,000 | G29: 24.39 | H29: BSE
A30: 2019-10-03 | B30: 542725 | C30: SBC | D30: SWETA AGRAWAL | E30: SELL | F30: 6,000 | G30: 24.8 | H30: BSE
A31: 2019-10-03 | B31: 542725 | C31: SBC | D31: SANDEEP KUMAR SRIVASTAVA | E31: SELL | F31: 66,000 | G31: 24.35 | H31: BSE
A32: 2019-10-03 | B32: 542725 | C32: SBC | D32: LAKSHMISHREE REALESTATE & LANDSCAPER PRIVATE LTD | E32: BUY | F32: 114,000 | G32: 24.4 | H32: BSE
A33: 2019-10-03 | B33: 542725 | C33: SBC | D33: FAIRDEAL FINANCIAL ADVISORY PRIVATE LIMITED | E33: SELL | F33: 114,000 | G33: 24.46 | H33: BSE
A34: 2019-10-03 | B34: 539026 | C34: SSPNFIN | D34: AJAY RAMESHCHANDRA GUPTA | E34: BUY | F34: 12,000 | G34: 63.25 | H34: BSE
A35: 2019-10-03 | B35: 533101 | C35: SURYAAMBA | D35: MONEY GROW INVESTMENT | E35: BUY | F35: 15,000 | G35: 42.41 | H35: BSE
A36: 2019-10-03 | B36: 533101 | C36: SURYAAMBA | D36: MONEY GROW INVESTMENT | E36: SELL | F36: 15,000 | G36: 49.9 | H36: BSE
A37: 2019-10-03 | B37: 533101 | C37: SURYAAMBA | D37: AYUSHI JAIN | E37: BUY | F37: 15,941 | G37: 49.73 | H37: BSE
A38: 2019-10-03 | B38: 533101 | C38: SURYAAMBA | D38: AYUSHI JAIN | E38: SELL | F38: 15,941 | G38: 42.49 | H38: BSE
A39: 2019-10-03 | B39: IBULHSGFIN | C39: Indiabulls Hsg Fin Ltd | D39: TOWER RESEARCH CAPITAL MARKETS INDIA PRIVATE LIMITED | E39: BUY | F39: 3,019,222 | G39: 276.23 | H39: NSE
A40: 2019-10-03 | B40: SHIVAUM | C40: Shiv Aum Steels Limited | D40: SHAH MUKESHKUMAR BABULAL | E40: BUY | F40: 120,000 | G40: 44.5 | H40: NSE
A41: 2019-10-03 | B41: SHIVAUM | C41: Shiv Aum Steels Limited | D41: SHAH BABULAL VADILAL HUF | E41: BUY | F41: 171,000 | G41: 44.5 | H41: NSE
A42: 2019-10-03 | B42: YESBANK | C42: Yes Bank Limited | D42: ALPHAGREP COMMODITIES PRIVATE LIMITED | E42: BUY | F42: 14,360,693 | G42: 39.58 | H42: NSE
A43: 2019-10-03 | B43: YESBANK | C43: Yes Bank Limited | D43: CROSSLAND TRADING CO | E43: BUY | F43: 29,712,359 | G43: 39.8 | H43: NSE
A44: 2019-10-03 | B44: YESBANK | C44: Yes Bank Limited | D44: PURITY TRADEMAX LLP | E44: BUY | F44: 17,444,730 | G44: 40.37 | H44: NSE
A45: 2019-10-03 | B45: YESBANK | C45: Yes Bank Limited | D45: ALPHAGREP SECURITIES PRIVATE LIMITED | E45: BUY | F45: 23,028,365 | G45: 39.85 | H45: NSE
A46: 2019-10-03 | B46: YESBANK | C46: Yes Bank Limited | D46: TOWER RESEARCH CAPITAL MARKETS INDIA PRIVATE LIMITED | E46: BUY | F46: 42,963,681 | G46: 39.54 | H46: NSE
A47: 2019-10-03 | B47: YESBANK | C47: Yes Bank Limited | D47: ADROIT FINANCIAL SERVICES PVT LTD | E47: BUY | F47: 13,229,061 | G47: 40.36 | H47: NSE
A48: 2019-10-03 | B48: IBULHSGFIN | C48: Indiabulls Hsg Fin Ltd | D48: TOWER RESEARCH CAPITAL MARKETS INDIA PRIVATE LIMITED | E48: SELL | F48: 3,019,222 | G48: 276.24 | H48: NSE
A49: 2019-10-03 | B49: YESBANK | C49: Yes Bank Limited | D49: ALPHAGREP COMMODITIES PRIVATE LIMITED | E49: SELL | F49: 14,360,693 | G49: 39.62 | H49: NSE
A50: 2019-10-03 | B50: YESBANK | C50: Yes Bank Limited | D50: CROSSLAND TRADING CO | E50: SELL | F50: 29,759,733 | G50: 39.82 | H50: NSE
A51: 2019-10-03 | B51: YESBANK | C51: Yes Bank Limited | D51: ADROIT FINANCIAL SERVICES PVT LTD | E51: SELL | F51: 13,223,376 | G51: 40.37 | H51: NSE
A52: 2019-10-03 | B52: YESBANK | C52: Yes Bank Limited | D52: PURITY TRADEMAX LLP | E52: SELL | F52: 17,410,840 | G52: 40.41 | H52: NSE
A53: 2019-10-03 | B53: YESBANK | C53: Yes Bank Limited | D53: TOWER RESEARCH CAPITAL MARKETS INDIA PRIVATE LIMITED | E53: SELL | F53: 42,963,681 | G53: 39.53 | H53: NSE
A54: 2019-10-03 | B54: YESBANK | C54: Yes Bank Limited | D54: ALPHAGREP SECURITIES PRIVATE LIMITED | E54: SELL | F54: 23,035,492 | G54: 39.87 | H54: NSE

Sheet Call Tracker (Equity & F&O)
M5: Back To Main Page
A6: Retail Research Technical Calls & Fundamental Performance Report for the month of October-2019
M7: =Main!B10 -> 2019-10-04
B8: Positional Call
A9: Sr.no | B9: Date | D9: Company | E9: Rec | F9: Rec Price | G9: Stop Loss*** | H9: Call Closed At | I9: Target | J9: Remark | K9: Profit / Loss per Share | L9: Gain / Loss % | M9: Status | N9: Closed Date | O9: NSE Closed Price
A10: 1 | B10: 2019-08-30 | D10: BIOCON | E10: Buy{} | F10: 229.5 | G10: 214.3 | H10: 237 | I10: 255-260 | J10: Part Profit of Rs.7.5/- | K10: =H10-F10 -> 7.5 | L10: =K10/F10 -> 3.27% | M10: Successful | N10: 2019-08-30 | O10: =VLOOKUP(D10,Sheet2!A38:M1677,6,0) -> 232.2 | R10: R
A11: 2 | B11: 2019-09-09 | D11: TORNTPHARM | E11: Sell | F11: 1705 | G11: 1808 | H11: 1618 | I11: 1560-1540 | J11: Profit of Rs.87/- | K11: =F11-H11 -> 87 | L11: =K11/F11 -> 5.10% | M11: Successful | N11: 2019-10-01 | R11: R
A12: 3 | B12: 2019-09-25 | D12: AXISBANK | E12: Buy | F12: 690-700 | G12: 628 | I12: 800-820 | J12: Open | O12: =VLOOKUP(D12,Sheet2!A41:M1680,6,0) -> 668.4 | R12: H
A13: 4 | B13: 2019-09-26 | D13: HDFC | E13: Buy | F13: 2065-2075 | G13: 1940 | I13: 2250-2300 | J13: Open | O13: =VLOOKUP(D13,Sheet2!A42:M1681,6,0) -> 1974.55 | R13: H
A14: 5 | B14: 2019-09-26 | D14: BANKBARODA | E14: Buy | F14: 96 | G14: 89 | H14: 89.5 | I14: 110-114 | J14: Loss of Rs.6.5/- | K14: =H14-F14 -> -6.5 | L14: =K14/F14 -> -6.77% | M14: UnSuccessful | N14: 2019-10-01 | R14: H
A15: 6 | B15: 2019-09-30 | D15: BPCL | E15: Sell | F15: 475 | G15: 510 | H15: 503 | I15: 420-410 | J15: Loss of Rs.28/- | K15: =F15-H15 -> -28 | L15: -5.89% | M15: UnSuccessful | N15: 2019-10-03 | R15: H
A16: 7 | B16: 2019-10-01 | D16: CUMMINSIND | E16: Buy | F16: 574-579 | G16: 530 | I16: 640-660 | J16: Open | O16: =VLOOKUP(D16,Sheet2!A46:M1685,6,0) -> 559.5 | R16: H
A17: 8 | B17: 2019-10-01 | D17: UPL | E17: Buy | F17: 592-598 | G17: 564 | I17: 650-660 | J17: Open | O17: =VLOOKUP(D17,Sheet2!A47:M1686,6,0) -> 594.4 | R17: R
A18: 9 | B18: 2019-10-03 | D18: HEIDELBERG | E18: Buy | F18: 182-184 | G18: 169 | I18: 205-210 | J18: Open | O18: =VLOOKUP(D18,Sheet2!A48:M1687,6,0) -> 185.2
A19: 10 | B19: 2019-10-03 | D19: APOLLOHOSP | E19: Buy | F19: 1375-1382 | G19: 1286 | I19: 1550-1580 | J19: Open | O19: =VLOOKUP(D19,Sheet2!A49:M1688,6,0) -> 1379.1
A26: CLBS = Closing Basis ***
A27: Dividend adjusted <> | F27: Reinitiated $
A28: Part book {} | F28: Revised stoploss #
B30: Momentum Call
A31: Sr.no | B31: Date | D31: Company | E31: Rec | F31: Rec Price | G31: Stop Loss | H31: Call Closed At | I31: Target | J31: Remark | K31: Profit / Loss per Share/Lot | L31: Gain / Loss % | M31: Gain / Loss per Lot | N31: Lot | O31: Status | P31: Closed Date
A32: 1 | B32: 2019-09-24 | D32: AMARAJABAT OCT FUT | E32: Buy | F32: 722 | G32: 703 | H32: 703.5 | I32: 750-760 | J32: Loss of Rs.18.5/- | K32: =H32-F32 -> -18.5 | M32: =N32*K32 -> -12950 | N32: 700 | O32: UnSuccessful | P32: 2019-10-01 | R32: N
A33: 2 | B33: 2019-09-30 | D33: IGL | E33: Sell | F33: 349 | G33: 361 | H33: 342 | I33: 330-325 | J33: Profit of Rs.7/- | K33: =F33-H33 -> 7 | L33: =K33/F33 -> 2.01% | O33: Successful | P33: 2019-10-01 | R33: H
A34: 3 | B34: 2019-09-30 | D34: ENGINERSIN | E34: Sell | F34: 119 | G34: 123.3 | H34: 116.5 | I34: 111-109 | J34: Profit of Rs.2.5/- | K34: =F34-H34 -> 2.5 | L34: =K34/F34 -> 2.10% | O34: Successful | P34: 2019-10-01 | R34: R
A35: 4 | B35: 2019-09-30 | D35: ADANIPORTS | E35: Sell | F35: 412.5 | G35: 425.3 | H35: 406 | I35: 395-390 | J35: Profit of Rs.6.5/- | K35: =F35-H35 -> 6.5 | L35: =K35/F35 -> 1.58% | O35: Successful | P35: 2019-10-01 | R35: H
A36: 5 | B36: 2019-10-01 | D36: HDFC | E36: Buy | F36: 1995 | G36: 1949 | H36: 2026 | I36: 2080-2100 | J36: Profit of Rs.31/- | K36: =H36-F36 -> 31 | L36: =K36/F36 -> 1.55% | O36: Successful | P36: 2019-10-01 | R36: H
A37: 6 | B37: 2019-10-01 | D37: POWERGRID OCT FUT | E37: Buy | F37: 196.75 | G37: 193.5 | H37: 198.75 | I37: 205 | J37: Profit of Rs.2/- | K37: =H37-F37 -> 2 | M37: =N37*K37 -> 8000 | N37: 4000 | O37: Successful | P37: 2019-10-03 | R37: N
A38: 7 | B38: 2019-10-01 | D38: NIFTY OCT FUT | E38: Buy | F38: 11430 | G38: 11340 | H38: 11350 | I38: 11570-11600 | J38: Loss of Rs.80/- | K38: =H38-F38 -> -80 | M38: =N38*K38 -> -6000 | N38: 75 | O38: UnSuccessful | P38: 2019-10-01 | R38: R
A39: 8 | B39: 2019-10-03 | D39: LT | E39: Buy | F39: 1440 | G39: 1390 | H39: 1474 | I39: 1500-1520 | J39: Profit of Rs.34/- | K39: 34 | L39: =K39/F39 -> 2.36% | O39: Successful | P39: 2019-10-03
A40: 9 | B40: 2019-10-03 | D40: TATASTEEL | E40: Buy | F40: 347-349 | G40: 338 | I40: 370 | J40: Open
A41: 10 | B41: 2019-10-03 | D41: CESC OCT FUT | E41: Buy | F41: 746-748 | G41: 734.7 | I41: 770 | J41: Open
A42: 11 | B42: 2019-10-03 | D42: MFSL OCT FUT | E42: Buy | F42: 416-418 | G42: 406 | I42: 435 | J42: Open
A47: CLBS = Closing Basis ***
A48: Dividend adjusted <> | F48: Reinitiated $
F49: Revised stoploss #
A51: Master Trade High Risk
A52: Sr.no | B52: Date | D52: Company | E52: Rec | F52: Rec Price | G52: Stop Loss | H52: Call Closed At | I52: Target | J52: Remark | K52: Profit / Loss per share | L52: Gain / Loss per Lot | M52: Lot | N52: Status | O52: Closed Date
A53: 1 | B53: 2019-10-01 | D53: HDFC OCT FUT | E53: Buy | F53: 1997-2001 | G53: 1947 | I53: 2050 | J53: Open | R53: H
D54: HDFC 2040 CE OCT | E54: Sell | F54: 50-54 | R54: H
A55: 2 | B55: 2019-10-03 | D55: NIFTY OCT FUT | E55: Buy | F55: 11345-11355 | G55: 11190 | I55: 11550 | J55: Open
D56: Nifty 11450 CE 10-OCT | E56: Sell | F56: 73-78
A61: Master Trade Medium Risk
A62: Sr.no | B62: Date | D62: Company | E62: Rec | F62: Rec Price | G62: Stop Loss | H62: Call Closed At | I62: Target | J62: Remark | K62: Profit/ Loss per lot | L62: Gain / Loss per Lot | M62: Lot | N62: Status | O62: Closed Date
A77: Techno -Funda (positional)
A78: Sr.no | B78: Date | D78: Company | E78: Rec | F78: Rec Price | G78: Stop Loss*** | H78: Call Closed At | I78: Target | J78: Remark | K78: Profit / Loss per Share | L78: Gain / Loss % | M78: Status | N78: Closed Date | O78: NSE Closed Price
A79: 1 | B79: 2019-08-13 | D79: ITC | E79: Buy | F79: 247 | G79: 228 | H79: 262.5 | I79: 290-300 | J79: Part Profit of Rs.15.5/- | K79: =H79-F79 -> 15.5 | L79: =K79/F79 -> 6.28% | M79: Successful | N79: 2019-10-01 | O79: =VLOOKUP(D79,Sheet2!A131:M1770,6,0) -> 261.65 | R79: H
A83: CLBS = Closing Basis *** | F83: Reinitiated $
A84: Dividend adjusted <> | F84: Revised stoploss #
B89: Investment Idea
A90: Sr.no | B90: Date | D90: Company | E90: Rec | F90: Rec Price | G90: Point of Review | H90: Close Rate | I90: Target | J90: Remark | K90: Profit / Loss per Share | L90: Gain / Loss % | M90: Status | N90: Closed Date
A91: 1 | B91: 2013-11-01 | D91: L&T Finance Holding | E91: Accu | F91: 82.00 | G91: - | H91: 100 | I91: 100.00 | J91: Target Achieved | K91: =H91-F91 -> 18.00 | L91: =K91/F91 -> 21.95% | M91: Successful | N91: 2016-10-14
A92: 2 | B92: 2014-06-04 | D92: Finolex Inds | E92: Buy | F92: 257.00 | G92: - | H92: 300 | I92: 300.00 | J92: Target Achieved | K92: =H92-F92 -> 43.00 | L92: 16.73% | M92: Successful | N92: 2014-07-02
A93: 3 | B93: 2014-07-08 | D93: JK Cement | E93: Buy | F93: 393.00 | G93: - | H93: 468 | I93: 468.00 | J93: Target Achieved | K93: =H93-F93 -> 75.00 | L93: 19.08% | M93: Successful | N93: 2014-08-12
A94: 4 | B94: 2014-08-06 | D94: Finolex Cables | E94: Buy | F94: 205.00 | G94: - | H94: 275 | I94: 250.00 | J94: Target Achieved | K94: 70.00 | L94: 34.15% | M94: Successful | N94: 2014-11-19
A95: 5 | B95: 2014-09-04 | D95: Exide Inds | E95: Buy | F95: 162.00 | G95: - | H95: 190 | I95: 190.00 | J95: Target Achieved | K95: 28.00 | L95: 17.28% | M95: Successful | N95: 2015-01-02
A96: 6 | B96: 2014-09-04 | D96: Deepak Nitrite | E96: Buy | F96: 75.00 | G96: - | H96: 91.5 | I96: 95-100 | J96: Profit of Rs.16.50/- | K96: 16.50 | L96: 22.00% | M96: Successful | N96: 2014-11-11
A97: 7 | B97: 2014-10-01 | D97: Mercks | E97: Buy | F97: 850.00 | G97: - | H97: 982.5 | I97: 1050.00 | J97: Profit of Rs.132.50/- | K97: 132.50 | L97: 15.59% | M97: Successful | N97: 2015-02-04
A98: 8 | B98: 2014-10-01 | D98: Grindwell Norton | E98: Buy | F98: 475.00 | G98: - | H98: 515 | I98: 600.00 | J98: Profit of Rs.40/- | K98: 40.00 | L98: 8.42% | M98: Successful | N98: 2014-10-27
A99: 9 | B99: 2014-10-01 | D99: Snowman Logistics | E99: Buy | F99: 86.00 | G99: - | H99: 99 | I99: 140.00 | J99: Profit of Rs.13.00/- | K99: 13.00 | L99: 15.12% | M99: Successful | N99: 2014-10-27
A100: 10 | B100: 2014-10-14 | D100: Birla Corp | E100: Buy | F100: 496.60 | G100: - | H100: 621 | I100: 580.00 | J100: Target Achieved | K100: 124.40 | L100: 25.05% | M100: Successful | N100: 2016-08-23
A101: 11 | B101: 2014-10-14 | D101: Ultratech Cem | E101: Buy | F101: 2481.90 | G101: - | H101: 2840 | I101: 2870.00 | J101: Profit of Rs.358.10/- | K101: 358.10 | L101: 14.43% | M101: Successful | N101: 2015-01-13
A102: 12 | B102: 2014-10-16 | D102: Sintex Inds | E102: Buy | F102: 84.50 | G102: - | H102: 93 | I102: 110.00 | J102: Profit of Rs.8.50/- | K102: 8.50 | L102: 10.06% | M102: Successful | N102: 2014-10-27
A103: 13 | B103: 2014-10-16 | D103: HSIL | E103: Buy | F103: 401.00 | G103: - | H103: 428 | I103: 450.00 | J103: Profit of Rs.27.00/- | K103: 27.00 | L103: 6.73% | M103: Successful | N103: 2015-01-16
A104: 14 | B104: 2014-10-16 | D104: Eveready Inds | E104: Buy | F104: 101.00 | G104: - | H104: 112 | I104: 120.00 | J104: Profit of Rs.11.00/- | K104: 11.00 | L104: 10.89% | M104: Successful | N104: 2014-10-27
A105: 15 | B105: 2014-11-11 | D105: Pennar Inds | E105: Buy | F105: 59.00 | G105: - | H105: 76 | I105: 76.00 | J105: Target Achieved | K105: 17.00 | L105: 28.81% | M105: Successful | N105: 2017-10-24
A106: 16 | B106: 2014-11-11 | D106: Snowman Logistics | E106: Buy | F106: 99.00 | G106: - | H106: 120 | I106: 120.00 | J106: Profit of Rs.21/- | K106: 21.00 | L106: 21.21% | M106: Successful | N106: 2014-11-17
A107: 17 | B107: 2014-11-13 | D107: Dharamsi Morarji Chem | E107: Buy | F107: 22.00 | G107: - | H107: 33.55 | I107: 32.00 | J107: Profit of Rs 11.55/- | K107: 11.55 | L107: 52.50% | M107: Successful | N107: 2015-07-03
A108: 18 | B108: 2014-12-03 | D108: Tatachem | E108: Buy | F108: 440.00 | G108: - | H108: 520 | I108: 520.00 | J108: Profit of Rs 80.00/- | K108: 80.00 | L108: 18.18% | M108: Successful | N108: 2015-07-23
A109: 19 | B109: 2014-12-03 | D109: Advanta | E109: Buy | F109: 360.00 | G109: - | H109: 427 | I109: 425.00 | J109: Profit of Rs.67.00/- | K109: 67.00 | L109: 18.61% | M109: Successful | N109: 2015-02-23
A110: 20 | B110: 2015-01-08 | D110: GDL | E110: Buy | F110: 360.00 | G110: - | H110: 455 | I110: 420.00 | J110: Profit of Rs.95.00/- | K110: 95.00 | L110: 26.39% | M110: Successful | N110: 2015-01-20
A111: 21 | B111: 2015-01-08 | D111: NRB Bearing | E111: Buy | F111: 130.00 | H111: 175.5 | I111: 165.00 | J111: Profit of Rs 45.50/- | K111: 45.50 | L111: 35.00% | M111: Successful | N111: 2017-12-19
A112: 22 | B112: 2015-02-05 | D112: GSFC | E112: Accu | F112: 98.00 | H112: 120 | I112: 120.00 | J112: Target Achieved | K112: 22.00 | L112: 22.45% | M112: Successful | N112: 2017-01-18
A113: 23 | B113: 2015-02-05 | D113: Sundrmfast | E113: Accu | F113: 196.00 | H113: 262 | I113: 255.00 | J113: Target Achieved | K113: 66.00 | L113: 33.67% | M113: Successful | N113: 2016-08-17
A114: 24 | B114: 2015-03-04 | D114: GPPL | E114: Accu | F114: 235 | H114: 77.00 | I114: 280-285 | J114: Loss of Rs.158/- | K114: -158.00 | L114: -67.23% | M114: Unsuccessful | N114: 2019-02-26
A115: 25 | B115: 2015-03-04 | D115: ORIENTCEM | E115: Accu | F115: 185.00 | H115: 224 | I115: 220-225 | J115: Target Achieved | K115: 39.00 | L115: 21.08% | M115: Successful | N115: 2016-10-04
A116: 26 | B116: 2015-03-27 | D116: PFS | E116: Accu | F116: 49.5 | H116: 15.85 | I116: 67.00 | J116: Loss of Rs.33.65/- | K116: -33.65 | L116: -68% | M116: Unsuccessful | N116: 2019-06-11
A117: 27 | B117: 2015-03-30 | D117: Walchandnagar Ind Ltd | E117: Accu | F117: 183.50 | H117: 219 | I117: 218.00 | J117: Profit of Rs.35.50/- | K117: 35.50 | L117: =K117/F117 -> 19.35% | M117: Successful | N117: 2015-04-09
A118: 28 | B118: 2015-04-20 | D118: Kalpataru Power Transmission Ltd | E118: Accu | F118: =(227+237)/2 -> 232.00 | H118: 298 | I118: 298.00 | J118: Target Achieved | K118: 66.00 | L118: 28.45% | M118: Successful | N118: 2017-03-29
A119: 29 | B119: 2015-05-04 | D119: Mastek Ltd | E119: Buy | F119: 385.00 | H119: =212.5+331 -> 543.5 | I119: 510.00 | J119: Profit of Rs 158.50/- | K119: 158.50 | L119: 41.17% | M119: Successful | N119: 2015-08-19
A120: 30 | B120: 2015-05-04 | D120: Suprajit Eng | E120: Buy | F120: 115.50 | H120: 146 | I120: 142.00 | J120: Profit of Rs 30.50/- | K120: 30.50 | L120: 26.41% | M120: Successful | N120: 2015-07-17
A121: 31 | B121: 2015-05-27 | D121: TCI | E121: Buy | F121: 237.50 | H121: 279.5 | I121: 278.00 | J121: Target Achieved | K121: 42.00 | L121: 17.68% | M121: Successful | N121: 2015-08-06
A122: 32 | B122: 2015-06-19 | D122: HSIL | E122: Accu | F122: 340.00 | H122: 448 | I122: 448.00 | J122: Target Achieved | K122: 108.00 | L122: 31.76% | M122: Successful | N122: 2017-10-10
A123: 33 | B123: 2015-07-06 | D123: Capital First | E123: Accu | F123: 390.00 | H123: 460 | I123: 460.00 | J123: Target Achieved | K123: 70.00 | L123: 17.95% | M123: Successful | N123: 2016-04-18
A124: 34 | B124: 2015-07-10 | D124: Dolphin OffShore | E124: Accu | F124: 122.5 | H124: 61.00 | I124: 172.00 | J124: Loss of Rs.61.50/- | K124: -61.50 | L124: -50.20% | M124: Unsuccessful | N124: 2018-08-21
A125: 35 | B125: 2015-08-03 | D125: Allcargo logistics | E125: Accu | F125: 297.50 | H125: 350 | I125: 360.00 | J125: Profit of Rs 52.50/- | K125: 52.50 | L125: 17.65% | M125: Successful | N125: 2015-08-16
A126: 36 | B126: 2015-08-03 | D126: Camline Fine | E126: Accu | F126: 115.50 | H126: 149 | I126: 140.00 | J126: Profit of Rs 33.50/- | K126: 33.50 | L126: 29.00% | M126: Successful | N126: 2017-01-05
A127: 37 | B127: 2015-09-04 | D127: TCI | E127: Accu | F127: 226.00 | H127: 292 | I127: 292.00 | J127: Target Achieved | K127: 66.00 | L127: 29.20% | M127: Successful | N127: 2015-10-09
A128: 38 | B128: 2015-09-07 | D128: Kalpataru Power Transmission Ltd | E128: Accu | F128: 232.50 | H128: 312.5 | I128: 310.00 | J128: Target Achieved | K128: 80.00 | L128: 34.41% | M128: Successful | N128: 2017-03-29
A129: 39 | B129: 2015-09-21 | D129: LLOYD ELECTRIC & ENG LTD | E129: Accu | F129: 196.50 | H129: 238 | I129: 238.00 | J129: Target Achieved | K129: 41.50 | L129: 21.12% | M129: Successful | N129: 2015-10-14
A130: 40 | B130: 2015-09-24 | D130: L&T Finance Holding | E130: Accu | F130: 65.00 | H130: 82 | I130: 82.00 | J130: Target Achieved | K130: 17.00 | L130: 26.15% | M130: Successful | N130: 2016-07-27
A131: 41 | B131: 2015-10-14 | D131: KEC International ltd | E131: Accu | F131: 144.00 | H131: 182.5 | I131: 181.00 | J131: Target Achieved | K131: 38.50 | L131: 26.74% | M131: Successful | N131: 2017-03-23
A132: 42 | B132: 2015-10-14 | D132: Gruh Finance | E132: Accu | F132: 264.00 | H132: 311 | I132: 311.00 | J132: Target Achieved | K132: 47.00 | L132: 17.80% | M132: Successful | N132: 2016-08-22
A133: 43 | B133: 2015-11-10 | D133: Pidilitind | E133: Buy | F133: 549.50 | H133: 630 | I133: 630.00 | J133: Target Achieved | K133: 80.50 | L133: 14.65% | M133: Successful | N133: 2016-02-19
A134: 44 | B134: 2015-12-04 | D134: Zensar Technology | E134: Accu | F134: 1027.50 | H134: 1315 | I134: 1250.00 | J134: Target Achieved | K134: 287.50 | L134: 27.98% | M134: Successful | N134: 2018-05-24
A135: 45 | B135: 2015-12-29 | D135: Vinati Organics Ltd | E135: Accu | F135: 465.00 | H135: 540 | I135: 540.00 | J135: Target Achieved | K135: 75.00 | L135: 16.13% | M135: Successful | N135: 2016-06-09
A136: 46 | B136: 2016-01-11 | D136: GSFC | E136: Buy | F136: 81.00 | H136: 110 | I136: 110.00 | J136: Target Achieved | K136: 29.00 | L136: 35.80% | M136: Successful | N136: 2017-01-10
A137: 47 | B137: 2016-01-13 | D137: SSWL | E137: Buy | F137: 417.50 | H137: 547 | I137: 535.00 | J137: Target Achieved | K137: 129.50 | L137: 31.02% | M137: Successful | N137: 2016-07-27
A138: 48 | B138: 2016-02-08 | D138: Persistent System Ltd | E138: Accu | F138: 650.00 | H138: 800 | I138: 800.00 | J138: Target Achieved | K138: 150.00 | L138: 23.08% | M138: Successful | N138: 2018-02-23
A139: 49 | B139: 2016-03-04 | D139: UPL | E139: Accu | F139: 437.50 | H139: 504.5 | I139: 522.00 | J139: Profit of Rs.67/- | K139: 67.00 | L139: 15.31% | M139: Successful | N139: 2016-04-20
A140: 50 | B140: 2016-03-09 | D140: Ashoka Buildcon Ltd | E140: Accu | F140: 189.50 | H140: 218 | I140: 218.00 | J140: Target Achieved | K140: 28.50 | L140: 15.04% | M140: Successful | N140: 2017-10-26
A141: 51 | B141: 2016-04-11 | D141: PTC INDIA FIN SERV LTD | E141: Accu | F141: 36.5 | H141: 15.85 | I141: 60.00 | J141: Loss of Rs.20.65/- | K141: -20.65 | L141: -56.58% | M141: Unsuccessful | N141: 2019-06-11
A142: 52 | B142: 2016-04-12 | D142: CAMLINFINE $ | E142: Accu | F142: 93.00 | H142: 149 | I142: 140.00 | J142: Profit of Rs 56/- | K142: 56.00 | L142: 60.22% | M142: Successful | N142: 2017-01-05
A143: 53 | B143: 2016-04-12 | D143: Greaves Cotton Ltd. | E143: Accu | F143: 130.00 | H143: 150 | I143: 150-155 | J143: Target Achieved | K143: 20.00 | L143: 15.38% | M143: Successful | N143: 2016-07-13
A144: 54 | B144: 2016-05-02 | D144: KEC International ltd $ | E144: Accu | F144: 127.50 | H144: 148 | I144: 148-150 | J144: Target Achieved | K144: 20.50 | L144: 16.08% | M144: Successful | N144: 2016-07-13
A145: 55 | B145: 2016-05-03 | D145: Mindtree | E145: Accu | F145: 675.00 | H145: 815 | I145: 790-800 | J145: Target Achieved | K145: 140.00 | L145: 20.74% | M145: Successful | N145: 2018-02-23
A146: 56 | B146: 2016-06-06 | D146: TRITURBINE | E146: Accu | F146: 110.00 | H146: 126.5 | I146: 125.00 | J146: Profit of Rs.16.50/- | K146: 16.50 | L146: 15.00% | M146: Successful | N146: 2016-07-01
A147: 57 | B147: 2016-06-17 | D147: Pennar Industries Ltd | E147: Accu | F147: 44.00 | H147: 69.5 | I147: 69.50 | J147: Profit of Rs.25.50/- | K147: 25.50 | L147: 57.95% | M147: Successful | N147: 2017-08-30
A148: 58 | B148: 2016-07-05 | D148: Bajaj Corp Ltd | E148: Accu | F148: 395 | H148: =(468.5+342.5)/2 -> 405.50 | I148: 510.00 | J148: Profit of Rs.10.50/- | K148: 10.50 | L148: 3% | M148: Neutral | N148: 2019-05-21
A149: 59 | B149: 2016-08-02 | D149: GPPL $ | E149: Buy | F149: 169.5 | H149: 77.00 | I149: 198-200 | J149: Loss of Rs.92.5/- | K149: -92.50 | L149: -54.57% | M149: Unsuccessful | N149: 2019-02-26
A150: 60 | B150: 2016-08-04 | D150: WONDERLA HOLIDAYS LTD | E150: Accu | F150: 400 | H150: 305.00 | I150: 475.00 | J150: Loss of Rs.95/- | K150: -95.00 | L150: -23.75% | M150: Unsuccessful | N150: 2019-05-21
A151: 61 | B151: 2016-08-11 | D151: CAMLINFINE | E151: Accu | F151: 86.50 | H151: 130 | I151: 130.00 | J151: Profit of Rs.43.50/- | K151: 43.50 | L151: 50.29% | M151: Successful | N151: 2017-12-22
A152: 62 | B152: 2016-08-18 | D152: GRANULES | E152: Accu | F152: 133.5 | H152: 126.50 | I152: 178.00 | J152: Exit | K152: -7.00 | L152: -5.24% | M152: Unsuccessful | N152: 2016-09-02
A153: 63 | B153: 2016-08-31 | D153: VA TECH WABAG | E153: Accu | F153: 560.00 | H153: 725 | I153: 725.00 | J153: Target Achieved | K153: 165.00 | L153: 29.46% | M153: Successful | N153: 2016-03-27
A154: 64 | B154: 2016-09-01 | D154: SKIPPER LIMITED | E154: Accu | F154: 160.50 | H154: 210 | I154: 210.00 | J154: Target Achieved | K154: 49.50 | L154: 30.84% | M154: Successful | N154: 2017-05-16
A155: 65 | B155: 2016-10-14 | D155: ASIANTILES | E155: Accu | F155: 280.00 | H155: 345 | I155: 345.00 | J155: Target Achieved | K155: 65.00 | L155: 23.21% | M155: Successful | N155: 2017-03-20
A156: 66 | B156: 2016-10-14 | D156: DEEPIND | E156: Accu | F156: 245.00 | H156: 325.5 | I156: 330.00 | J156: Profit of Rs.80.5/- | K156: 80.50 | L156: 32.86% | M156: Successful | N156: 2017-02-03
A157: 67 | B157: 2016-10-17 | D157: DCBBANK | E157: Accu | F157: 125.00 | H157: 160 | I157: 160.00 | J157: Target Achieved | K157: =H157-F157 -> 35.00 | L157: 28.00% | M157: Successful | N157: 2017-03-09
A158: 68 | B158: 2016-10-17 | D158: ORIENTREF | E158: Accu | F158: 114.00 | H158: 145 | I158: 145.00 | J158: Target Achieved | K158: 31.00 | L158: =K158/F158 -> 27.19% | M158: Successful | N158: 2017-05-04
A159: 69 | B159: 2016-10-17 | D159: GANECOS | E159: Accu | F159: 212.00 | H159: 280 | I159: 276.00 | J159: Profit of Rs.68/- | K159: 68.00 | L159: =K159/F159 -> 32.08% | M159: Successful | N159: 2017-05-03
A160: 70 | B160: 2016-11-04 | D160: NBCC | E160: Accu | F160: 155.00 | H160: 210 | I160: 210.00 | J160: Profit of Rs.55/- | K160: 55.00 | L160: =K160/F160 -> 35.48% | M160: Successful | N160: 2017-07-28
A161: 71 | B161: 2016-12-08 | D161: INFRATEL | E161: Accu | F161: 380.00 | H161: 478 | I161: 468.00 | J161: Target Achieved | K161: 98.00 | L161: =K161/F161 -> 25.79% | M161: Successful | N161: 2017-10-17
A162: 72 | B162: 2016-12-30 | D162: GODREJPROP | E162: Accu | F162: 305.00 | H162: 375 | I162: 375.00 | J162: Target Achieved | K162: 70.00 | L162: 22.95% | M162: Successful | N162: 2017-02-02
A163: 73 | B163: 2017-01-04 | D163: DEEPAKNTR | E163: Accu | F163: 99.50 | H163: 158 | I163: 158.00 | J163: Target Achieved | K163: 58.50 | L163: 58.79% | M163: Successful | N163: 2017-06-12
A164: 74 | B164: 2017-02-20 | D164: RECLTD | E164: Accu | F164: 140.50 | H164: 220 | I164: 220.00 | J164: Target Achieved | K164: 79.50 | L164: 56.58% | M164: Successful | N164: 2017-05-09
A165: 75 | B165: 2017-03-24 | D165: VRLLOG | E165: Accu | F165: 300.50 | H165: 417.5 | I165: 420.00 | J165: Profit of Rs.117/- | K165: 117.00 | L165: 38.94% | M165: Successful | N165: 2017-12-01
A166: 76 | B166: 2017-04-05 | D166: RATNAMANI | E166: Accu | F166: 785.00 | H166: 930 | I166: 920.00 | J166: Profit of Rs.145/- | K166: 145.00 | L166: 18.47% | M166: Successful | N166: 2017-08-29
A167: 77 | B167: 2017-04-12 | D167: DABUR | E167: Accu | F167: 289.50 | H167: 354 | I167: 360.00 | J167: Profit of Rs.64.5/- | K167: 64.50 | L167: 22.28% | M167: Successful | N167: 2017-11-01
A168: 78 | B168: 2017-04-20 | D168: KPRMILL | E168: Accu | F168: 700.00 | H168: 840 | I168: 840.00 | J168: Profit of Rs.140/- | K168: 140.00 | L168: 20.00% | M168: Successful | N168: 2017-06-07
A169: 79 | B169: 2017-06-01 | D169: ESSELPACK | E169: Accu | F169: 130.00 | H169: 144.25 | I169: 170.00 | J169: Profit of Rs.14.25/- | K169: 14.25 | L169: =K169/F169 -> 10.96% | M169: Successful | N169: 2019-07-29
A170: 80 | B170: 2017-06-15 | D170: KEI | E170: Accu | F170: 214.50 | H170: 262 | I170: 262.00 | J170: Profit of Rs.47.5/- | K170: =H170-F170 -> 47.50 | L170: 22.14% | M170: Successful | N170: 2017-08-30
A171: 81 | B171: 2017-07-17 | D171: MAYURUNIQ | E171: Accu | F171: 370.00 | H171: 447.5 | I171: 450.00 | J171: Target Achieved | K171: 77.50 | L171: 20.95% | M171: Successful | N171: 2017-10-27
A172: 82 | B172: 2017-07-27 | D172: RAMCOCEM | E172: Accu | F172: 657.50 | H172: 825 | I172: 820.00 | J172: Target Achieved | K172: 167.50 | L172: 25.48% | M172: Successful | N172: 2017-12-21
A173: 83 | B173: 2017-08-17 | D173: FINPIPE | E173: Accu | F173: 605.00 | H173: 750 | I173: 750.00 | J173: Profit of Rs.145/- | K173: 145.00 | L173: 23.97% | M173: Successful | N173: 2017-10-19
A174: 84 | B174: 2017-09-01 | D174: SHK | E174: Accu | F174: 255 | H174: 217.25 | I174: 320.00 | J174: Loss of Rs.37.75/- | K174: -37.75 | L174: -15% | M174: Unsuccessful | N174: 2019-07-15
A175: 85 | B175: 2017-09-19 | D175: SKIPPER | E175: Accu | F175: 215.00 | H175: 258 | I175: 258.00 | J175: Target Achieved | K175: 43.00 | L175: 20.00% | M175: Successful | N175: 2017-11-01
A176: 86 | B176: 2017-09-20 | D176: CAMLINFINE | E176: Accu | F176: 75.00 | H176: 90 | I176: 90.00 | J176: Profit of Rs.15.00/- | K176: 15.00 | L176: 20.00% | M176: Successful | N176: 2017-10-11
A177: 87 | B177: 2017-10-03 | D177: GNA | E177: Accu | F177: 315.00 | H177: 392 | I177: 384.00 | J177: Profit of Rs.77/- | K177: 77.00 | L177: 24.44% | M177: Successful | N177: 2017-10-09
A178: 88 | B178: 2017-10-05 | D178: NOCIL | E178: Accu | F178: 145.00 | H178: 179 | I178: 180.00 | J178: Profit of Rs.34/- | K178: 34.00 | L178: 23.45% | M178: Successful | N178: 2017-10-17
A179: 89 | B179: 2017-10-06 | D179: CENTURYPLY | E179: Accu | F179: 256.00 | H179: 323 | I179: 320.00 | J179: Target Achieved | K179: 67.00 | L179: 26.17% | M179: Successful | N179: 2017-11-28
A180: 90 | B180: 2017-10-09 | D180: EIHOTEL | E180: Accu | F180: 137.50 | H180: 184 | I180: 183.00 | J180: Profit of Rs.46.5/- | K180: 46.50 | L180: 33.82% | M180: Successful | N180: 2018-01-08
A181: 91 | B181: 2017-10-10 | D181: NRBBEARING | E181: Accu | F181: 125.50 | H181: 158 | I181: 155.00 | J181: Profit of Rs.32.5/- | K181: 32.50 | L181: 25.90% | M181: Successful | N181: 2017-11-28
A182: 92 | B182: 2017-11-07 | D182: HATSUN | E182: Accu | F182: 740.00 | H182: 892.5 | I182: 900.00 | J182: Profit of Rs.152.5/- | K182: 152.50 | L182: 20.61% | M182: Successful | N182: 2017-11-13
A183: 93 | B183: 2017-12-04 | D183: SANGHIIND | E183: Accu | F183: 118.50 | H183: 143.5 | I183: 145.00 | J183: Profit of Rs.25/- | K183: 25.00 | L183: 21.10% | M183: Successful | N183: 2017-12-28
A184: 94 | B184: 2017-12-21 | D184: KAJARIACER | E184: Accu | F184: 715 | H184: 500.00 | I184: 872.00 | J184: Loss of Rs.215/- | K184: =H184-F184 -> -215.00 | L184: =K184/F184 -> -30.07% | M184: Unsuccessful | N184: 2019-07-24
A185: 95 | B185: 2018-04-04 | D185: GPPL | E185: Accu | F185: 141.5 | H185: 77.00 | I185: 180.00 | J185: Loss of Rs.64.5/- | K185: -64.50 | L185: -45.58% | M185: Unsuccessful | N185: 2019-02-26
A186: 96 | B186: 2018-04-19 | D186: MANPASAND | E186: Accu | F186: 430 | H186: 220.00 | I186: 537.00 | J186: Loss of Rs.210/- | K186: -210.00 | L186: -48.84% | M186: Unsuccessful | N186: 2018-06-01
A187: 97 | B187: 2018-04-30 | D187: HEIDELBERG | E187: Accu | F187: 156 | H187: 196.00 | I187: 196.00 | J187: Profit of Rs.40/- | K187: 40.00 | L187: 26% | M187: Successful | N187: 2019-05-20
A188: 98 | B188: 2018-08-06 | D188: GABRIEL | E188: Accu | F188: 150.00 | H188: 102 | I188: 182.00 | J188: Loss of Rs.48 /- | K188: -48.00 | L188: -32.00% | M188: Unsuccessful | N188: 2019-07-15
A189: 99 | B189: 2018-08-29 | D189: GRINDWELL | E189: Accu | F189: 525.00 | H189: 585 | I189: 635.00 | J189: Profit of Rs.60- | K189: 60.00 | L189: 11.43% | N189: 2019-07-16
A190: 100 | B190: 2018-10-22 | D190: FINPIPE | E190: Accu | F190: 475.00 | H190: 574 | I190: 570.00 | J190: Target Achieved | K190: 99.00 | L190: 20.84% | M190: Successful | N190: 2018-10-30
A191: 101 | B191: 2018-10-24 | D191: GULFOILLUB | E191: Accu | F191: 707.50 | H191: 872 | I191: 872.00 | J191: Target Achieved | K191: 164.50 | L191: 23.25% | M191: Successful | N191: 2019-01-17
A192: 102 | B192: 2018-10-25 | D192: DBCORP | E192: Accu | F192: 164.00 | H192: 204 | I192: 209.00 | J192: Profit of Rs.40/- | K192: 40.00 | L192: 24.39% | M192: Successful | N192: 2019-03-15
A193: 103 | B193: 2018-10-26 | D193: RITES | E193: Accu | F193: 240.00 | H193: 297 | I193: 297.00 | J193: Target Achieved | K193: 57.00 | L193: 23.75% | M193: Successful | N193: 2018-11-13
A194: 104 | B194: 2018-12-05 | D194: BRIGADE | E194: Accu | F194: 202.50 | H194: 255 | I194: 252.00 | J194: Target Achieved | K194: 52.50 | L194: 25.93% | M194: Successful | N194: 2019-03-18
A195: 105 | B195: 2018-12-31 | D195: JKCEMENT | E195: Accu | F195: 710.00 | H195: 866 | I195: 866.00 | J195: Target Achieved | K195: 156.00 | L195: 21.97% | M195: Successful | N195: 2019-03-29
A196: 106 | B196: 2019-04-04 | D196: ITDCEM | E196: Accu | F196: 130.00 | H196: 65 | I196: 158.00 | J196: Loss of Rs.65 /- | K196: -65.00 | L196: -50.00% | M196: Unsuccessful | N196: 2019-09-18
A197: 107 | B197: 2017-10-09 | D197: RECLTD | E197: Accu | F197: 152.5 | H197: 183.50 | I197: 210.00 | J197: Part Profit of Rs.31/- | K197: 31.00 | L197: 20% | M197: Successful | N197: 2017-11-03 | R197: V
A198: 108 | B198: 2017-12-05 | D198: ALLCARGO | E198: Accu | F198: 177.5 | H198: 215.00 | I198: 230.00 | J198: Part Profit of Rs.37.5/- | K198: 37.50 | L198: 21% | M198: Successful | N198: 2017-12-27 | R198: V
A199: 109 | B199: 2018-04-02 | D199: EVERESTIND | E199: Accu | F199: 492.5 | H199: 589.00 | I199: 613.00 | J199: Part Profit of Rs.96.5/- | K199: 96.50 | L199: 20% | M199: Successful | N199: 2018-08-21 | R199: K
A200: 110 | B200: 2018-10-25 | D200: GODREJCP | E200: Accu | F200: 707.5 | H200: 850.00 | I200: 890.00 | J200: Part Profit of Rs.142.5/- | K200: 142.50 | L200: 20% | M200: Successful | N200: 2018-12-19 | R200: V
A201: 111 | B201: 2017-05-22 | D201: GREAVESCOT | E201: Accu | F201: 153-158 | I201: 190.00 | M201: Open | R201: K
A202: 112 | B202: 2018-02-07 | D202: GREAVESCOT | E202: Accu | F202: 130-132 | I202: 190.00 | M202: Open | R202: K
A203: 113 | B203: 2018-02-27 | D203: MOLDTKPAC | E203: Accu | F203: 320-330 | I203: 398.00 | M203: Open | R203: K
A204: 114 | B204: 2018-03-05 | D204: LICHSGFIN | E204: Accu | F204: 505-515 | I204: 672.00 | M204: Open | R204: V
A205: 98 | B205: 2018-06-07 | D205: KEC | E205: Accu | F205: 340-345 | I205: 439.00 | M205: Open | R205: K
A206: 99 | B206: 2018-07-04 | D206: ASHOKLEY | E206: Accu | F206: 125-130 | I206: 170.00 | M206: Open | R206: V
A207: 100 | B207: 2018-10-23 | D207: JKPAPER | E207: Accu | F207: 158-162 | I207: 191.00 | M207: Open | R207: K
A208: 101 | B208: 2018-12-05 | D208: CCL | E208: Accu | F208: 260-270 | I208: 321.00 | M208: Open | R208: V
A209: 102 | B209: 2019-01-04 | D209: MGL | E209: Accu | F209: 890-900 | I209: 1185.00 | M209: Open | R209: V
A210: 103 | B210: 2019-02-26 | D210: MARICO | E210: Accu | F210: 335-345 | I210: 411.00 | M210: Open | R210: K
A211: 104 | B211: 2019-04-04 | D211: COCHINSHIP | E211: Accu | F211: 384-390 | I211: 490.00 | M211: Open | R211: V
A212: 105 | B212: 2019-08-30 | D212: INDHOTEL | E212: Accu | F212: 135-140 | I212: 190.00 | M212: Open | R212: V
A213: 106 | B213: 2019-09-23 | D213: KNRCON | E213: Accu | F213: 230-240 | I213: 296.00 | M213: Open | R213: K
A214: 107
F215: Reinitiated $
B217: Instituitonal Investment Idea
A218: Sr.no | B218: Date | D218: Company | E218: Rec | F218: Rec Price | G218: Point of Review | H218: Close Rate | I218: Target | J218: Remark | K218: Profit / Loss per Share | L218: Gain / Loss % | M218: Status | N218: Closed Date
A219: 1 | B219: 2016-04-13 | D219: DHFL | E219: Accu | F219: 196.00 | H219: 299 | I219: 299.00 | J219: Target Achieved | K219: 103.00 | L219: 52.55% | M219: Successful | N219: 2016-09-07
A220: 2 | B220: 2016-04-13 | D220: Magma | E220: Accu | F220: 88.00 | H220: 103 | I220: 103.00 | J220: Target Achieved | K220: 15.00 | L220: 17.05% | M220: Successful | N220: 2016-06-09
A221: 3 | B221: 2016-06-01 | D221: Atulauto | E221: Accu | F221: 500 | H221: 232.50 | I221: 565-570 | J221: Loss of Rs.267.50 /- | K221: =H221-F221 -> -267.50 | L221: =K221/F221 -> -53.50% | M221: Unsuccessful | N221: 2019-09-27
A222: 4 | B222: 2016-06-28 | D222: EVEREADY | E222: Accu | F222: 262.50 | H222: 340 | I222: 333.00 | J222: Profit of Rs.77.50/- | K222: 77.50 | L222: 29.52% | M222: Successful | N222: 2017-10-09
A223: 5 | B223: 2016-06-28 | D223: FIEMIND | E223: Accu | F223: 840.00 | H223: 1230 | I223: 1230.00 | J223: Target Achieved | K223: 390.00 | L223: 46.43% | M223: Successful | N223: 2016-10-06
A224: 6 | B224: 2016-10-03 | D224: IFBIND | E224: Accu | F224: 430.00 | H224: 596 | I224: 575.00 | J224: Profit of Rs.166/- | K224: 166.00 | L224: 38.60% | M224: Successful | N224: 2017-02-03
A225: 7 | B225: 2016-12-06 | D225: PRECAM | E225: Accu | F225: 150.5 | H225: 72.50 | I225: 174.00 | J225: Loss of Rs.78/- | K225: -78.00 | L225: -51.83% | M225: Unsuccessful | N225: 2018-08-21
A226: 8 | B226: 2017-01-04 | D226: DEEPAKNTR | E226: Accu | F226: 99.50 | H226: 158 | I226: 158.00 | J226: Target Achieved | K226: 58.50 | L226: 58.79% | M226: Successful | N226: 2017-06-12
A227: 9 | B227: 2017-02-20 | D227: SUBROS | E227: Accu | F227: 202.50 | H227: 234 | I227: 234.00 | J227: Target Achieved | K227: 31.50 | L227: 15.56% | M227: Successful | N227: 2017-04-11
A228: 10 | B228: 2017-03-24 | D228: FIEMIND | E228: Accu | F228: 850.00 | H228: 1042.5 | I228: 1023.00 | J228: Profit of Rs 192.50/- | K228: 192.50 | L228: 22.65% | M228: Successful | N228: 2017-04-05
A229: 11 | B229: 2017-04-06 | D229: ZEEMEDIA | E229: Accu | F229: 40 | H229: 13.10 | I229: 60.00 | J229: Loss of Rs.26.9/- | K229: -26.90 | L229: -67.25% | M229: Unsuccessful | N229: 2018-02-07
A230: 12 | B230: 2017-09-19 | D230: SKIPPER | E230: Accu | F230: 215.00 | H230: 258 | I230: 258.00 | J230: Target Achieved | K230: 43.00 | L230: 20.00% | M230: Successful | N230: 2017-11-01
A231: 13 | B231: 2017-10-10 | D231: BOROSIL | E231: Accu | F231: 895.00 | H231: 1122.5 | I231: 1078.00 | J231: Profit of Rs.227.5/- | K231: 227.50 | L231: 25.42% | M231: Successful | N231: 2018-01-17
A232: 14 | B232: 2017-10-12 | D232: CYIENT | E232: Accu | F232: 525.00 | H232: 629 | I232: 629.00 | J232: Target Achieved | K232: 104.00 | L232: 19.81% | M232: Successful | N232: 2018-01-19
A233: 15 | B233: 2017-12-29 | D233: GNA | E233: Accu | F233: 435.00 | H233: 542.5 | I233: 539.00 | J233: Target Achieved | K233: 107.50 | L233: 24.71% | M233: Successful | N233: 2018-04-16
A234: 16 | B234: 2017-12-29 | D234: ZENSARTECH | E234: Accu | F234: 885.00 | H234: 1090 | I234: 1084.00 | J234: Target Achieved | K234: 205.00 | L234: 23.16% | M234: Successful | N234: 2018-04-23 | R234: .
A235: 17 | B235: 2018-07-25 | D235: ZEEMEDIA | E235: Accu | F235: 27.5 | H235: 13.10 | I235: 60.00 | J235: Loss of Rs.14.40/- | K235: -14.40 | L235: -52.36% | M235: Unsuccessful | N235: 2018-02-07 | R235: .
A236: 18 | B236: 2018-08-23 | D236: INDIANHUME | E236: Accu | F236: 285.00 | H236: 355 | I236: 364.00 | J236: Profit of Rs.70/- | K236: 70.00 | L236: 24.56% | M236: Successful | N236: 2018-12-21 | R236: .
A237: 19 | B237: 2018-05-17 | D237: PHILIPCARB | E237: Accu | F237: 230-240 | I237: 348.00 | M237: Open | R237: K
A238: 20 | B238: 2018-07-13 | D238: FCONSUMER | E238: Accu | F238: 46-47 | I238: 59.00 | M238: Open | R238: V
A239: 21 | B239: 2018-12-05 | D239: VARROC | E239: Accu | F239: 710-720 | I239: 840.00 | M239: Open | R239: V
A240: 22 | B240: 2019-04-23 | D240: MAHINDCIE | E240: Buy | F240: 215-225 | I240: 284.00 | M240: Open | R240: V
A241: 23 | B241: 2019-06-06 | D241: RADICO | E241: Buy | F241: 334.00 | I241: 419.00 | M241: Open | R241: K
A242: 24 | B242: 2019-06-25 | D242: M&MFIN | E242: Accu | F242: 390-395 | I242: 452.00 | M242: Open | R242: V
... 1 more rows

Sheet Sheet2 (hidden)
A1: SYMBOL | B1: SERIES | C1: OPEN | D1: HIGH | E1: LOW | F1: CLOSE | G1: LAST | H1: PREVCLOSE | I1: TOTTRDQTY | J1: TOTTRDVAL | K1: TIMESTAMP | L1: TOTALTRADES | M1: ISIN | N1: ISIN
A2: 20MICRONS | B2: EQ | C2: 38.95 | D2: 38.95 | E2: 37 | F2: 37.65 | G2: 37.6 | H2: 37.9 | I2: 24437 | J2: 920996.7 | K2: 2019-10-03 | L2: 329 | M2: INE144J01027
A3: 21STCENMGM | B3: EQ | C3: 13.2 | D3: 13.2 | E3: 13.2 | F3: 13.2 | G3: 13.2 | H3: 13.15 | I3: 20 | J3: 264 | K3: 2019-10-03 | L3: 1 | M3: INE253B01015
A4: 3IINFOTECH | B4: EQ | C4: 2 | D4: 2 | E4: 1.9 | F4: 2 | G4: 2 | H4: 1.95 | I4: 668807 | J4: 1313742.6 | K4: 2019-10-03 | L4: 484 | M4: INE748C01020
A5: 3MINDIA | B5: EQ | C5: 20287.95 | D5: 20287.95 | E5: 19800 | F5: 19988.75 | G5: 20000 | H5: 20008.2 | I5: 1377 | J5: 27506833 | K5: 2019-10-03 | L5: 804 | M5: INE470A01017
A6: 3PLAND | B6: EQ | C6: 6.2 | D6: 6.2 | E6: 6.2 | F6: 6.2 | G6: 6.2 | H6: 5.95 | I6: 15 | J6: 93 | K6: 2019-10-03 | L6: 3 | M6: INE105C01023
A7: 5PAISA | B7: EQ | C7: 172 | D7: 174.8 | E7: 171.8 | F7: 171.8 | G7: 171.8 | H7: 180.8 | I7: 3233 | J7: 555498.45 | K7: 2019-10-03 | L7: 82 | M7: INE618L01018
A8: 63MOONS | B8: EQ | C8: 119.8 | D8: 122.65 | E8: 116 | F8: 119.4 | G8: 119.2 | H8: 120.6 | I8: 98903 | J8: 11833865.55 | K8: 2019-10-03 | L8: 2035 | M8: INE111B01023
A9: A2ZINFRA | B9: EQ | C9: 9.8 | D9: 10.1 | E9: 9.8 | F9: 9.9 | G9: 9.85 | H9: 10 | I9: 81888 | J9: 815546.3 | K9: 2019-10-03 | L9: 210 | M9: INE619I01012
A10: AARTIDRUGS | B10: EQ | C10: 461 | D10: 461 | E10: 443 | F10: 455.75 | G10: 460.95 | H10: 455.6 | I10: 3648 | J10: 1643371.35 | K10: 2019-10-03 | L10: 487 | M10: INE767A01016
A11: AARTIIND | B11: EQ | C11: 759.95 | D11: 760 | E11: 741.15 | F11: 748.9 | G11: 749.95 | H11: 758.85 | I11: 110544 | J11: 82790978.2 | K11: 2019-10-03 | L11: 9267 | M11: INE769A01020
A12: AARVEEDEN | B12: EQ | C12: 15.85 | D12: 15.9 | E12: 14.6 | F12: 14.9 | G12: 15.5 | H12: 15.1 | I12: 9648 | J12: 144450.8 | K12: 2019-10-03 | L12: 318 | M12: INE273D01019
A13: AAVAS | B13: EQ | C13: 1570 | D13: 1620 | E13: 1570 | F13: 1612.95 | G13: 1613.5 | H13: 1580.2 | I13: 5138 | J13: 8226504.75 | K13: 2019-10-03 | L13: 1154 | M13: INE216P01012
A14: ABAN | B14: BE | C14: 25 | D14: 26.15 | E14: 23.75 | F14: 26.1 | G14: 26.15 | H14: 24.95 | I14: 64408 | J14: 1577719.3 | K14: 2019-10-03 | L14: 624 | M14: INE421A01028
A15: ABB | B15: EQ | C15: 1480.45 | D15: 1486 | E15: 1450.1 | F15: 1461.1 | G15: 1461 | H15: 1485.5 | I15: 182070 | J15: 266099095.8 | K15: 2019-10-03 | L15: 10578 | M15: INE117A01022
A16: ABBOTINDIA | B16: EQ | C16: 10961 | D16: 11298 | E16: 10911 | F16: 10997.85 | G16: 10974 | H16: 10861 | I16: 13582 | J16: 151214274.8 | K16: 2019-10-03 | L16: 3283 | M16: INE358A01014
A17: ABCAPITAL | B17: EQ | C17: 80.6 | D17: 80.95 | E17: 78.5 | F17: 78.75 | G17: 78.85 | H17: 81.4 | I17: 1422854 | J17: 112914742.3 | K17: 2019-10-03 | L17: 15470 | M17: INE674K01013
A18: ABFRL | B18: EQ | C18: 206.5 | D18: 211.5 | E18: 203.3 | F18: 210.4 | G18: 209.5 | H18: 206.5 | I18: 196473 | J18: 40811349.65 | K18: 2019-10-03 | L18: 5163 | M18: INE647O01011
A19: ABMINTLTD | B19: BE | C19: 14.1 | D19: 14.1 | E19: 14.1 | F19: 14.1 | G19: 14.1 | H19: 14.1 | I19: 25 | J19: 352.5 | K19: 2019-10-03 | L19: 1 | M19: INE251C01017
A20: ACC | B20: EQ | C20: 1564 | D20: 1582.85 | E20: 1537 | F20: 1545.75 | G20: 1543.9 | H20: 1575.7 | I20: 715946 | J20: 1114054802 | K20: 2019-10-03 | L20: 32528 | M20: INE012A01025
A21: ACCELYA | B21: EQ | C21: 800 | D21: 845 | E21: 800 | F21: 819.95 | G21: 822 | H21: 801.15 | I21: 2825 | J21: 2307185.6 | K21: 2019-10-03 | L21: 398 | M21: INE793A01012
A22: ACE | B22: EQ | C22: 74.6 | D22: 76.85 | E22: 72.85 | F22: 75.05 | G22: 74.15 | H22: 74.6 | I22: 130973 | J22: 9746147.4 | K22: 2019-10-03 | L22: 1712 | M22: INE731H01025
A23: ADANIENT | B23: EQ | C23: 143 | D23: 145 | E23: 141.4 | F23: 143.55 | G23: 142.85 | H23: 143.65 | I23: 2070232 | J23: 296454352.8 | K23: 2019-10-03 | L23: 11122 | M23: INE423A01024
A24: ADANIGAS | B24: EQ | C24: 130 | D24: 132.9 | E24: 128.1 | F24: 128.65 | G24: 128.25 | H24: 130.4 | I24: 401737 | J24: 52110215.8 | K24: 2019-10-03 | L24: 3650 | M24: INE399L01023
A25: ADANIGREEN | B25: EQ | C25: 56.7 | D25: 63.25 | E25: 55 | F25: 61.2 | G25: 61.6 | H25: 56.5 | I25: 3183487 | J25: 192601457.8 | K25: 2019-10-03 | L25: 13756 | M25: INE364U01010
A26: ADANIPORTS | B26: EQ | C26: 403.5 | D26: 406.2 | E26: 398.6 | F26: 403.9 | G26: 403.55 | H26: 404.05 | I26: 2619077 | J26: 1052764506 | K26: 2019-10-03 | L26: 47878 | M26: INE742F01042
A27: ADANIPOWER | B27: EQ | C27: 61.6 | D27: 62.1 | E27: 60.6 | F27: 61.3 | G27: 61.4 | H27: 61.75 | I27: 7901384 | J27: 484884211.4 | K27: 2019-10-03 | L27: 15918 | M27: INE814H01011
A28: ADANITRANS | B28: EQ | C28: 224.35 | D28: 227.65 | E28: 221 | F28: 222.15 | G28: 222 | H28: 224.35 | I28: 67034 | J28: 15013202.5 | K28: 2019-10-03 | L28: 1483 | M28: INE931S01010
A29: ADFFOODS | B29: EQ | C29: 263.2 | D29: 266.5 | E29: 260.75 | F29: 264.4 | G29: 266.5 | H29: 267.1 | I29: 9841 | J29: 2596489.1 | K29: 2019-10-03 | L29: 846 | M29: INE982B01019
A30: ADHUNIKIND | B30: EQ | C30: 104.8 | D30: 109.5 | E30: 100.5 | F30: 107.95 | G30: 109.5 | H30: 100.65 | I30: 171020 | J30: 18199839.6 | K30: 2019-10-03 | L30: 1029 | M30: INE452L01012
A31: ADLABS | B31: EQ | C31: 2.8 | D31: 2.95 | E31: 2.75 | F31: 2.9 | G31: 2.85 | H31: 2.85 | I31: 239685 | J31: 679142.05 | K31: 2019-10-03 | L31: 259 | M31: INE172N01012
A32: ADORWELD | B32: EQ | C32: 305.25 | D32: 307.85 | E32: 302 | F32: 304.45 | G32: 305.75 | H32: 307.25 | I32: 1917 | J32: 582793.9 | K32: 2019-10-03 | L32: 99 | M32: INE045A01017
A33: ADROITINFO | B33: BE | C33: 7.65 | D33: 7.65 | E33: 7.65 | F33: 7.65 | G33: 7.65 | H33: 7.75 | I33: 112 | J33: 856.8 | K33: 2019-10-03 | L33: 2 | M33: INE737B01033
A34: ADSL | B34: EQ | C34: 13.7 | D34: 13.7 | E34: 13.1 | F34: 13.4 | G34: 13.2 | H34: 13.1 | I34: 37239 | J34: 498425.55 | K34: 2019-10-03 | L34: 155 | M34: INE102I01027
A35: ADVANIHOTR | B35: EQ | C35: 54.1 | D35: 54.55 | E35: 52.25 | F35: 52.55 | G35: 52.75 | H35: 54.85 | I35: 8304 | J35: 441380.9 | K35: 2019-10-03 | L35: 198 | M35: INE199C01026
A36: ADVENZYMES | B36: EQ | C36: 149.15 | D36: 153 | E36: 148 | F36: 149.45 | G36: 148.5 | H36: 149.15 | I36: 44516 | J36: 6701327.95 | K36: 2019-10-03 | L36: 2976 | M36: INE837H01020
A37: AEGISCHEM | B37: EQ | C37: 174.75 | D37: 184.95 | E37: 172.5 | F37: 183.4 | G37: 184.2 | H37: 175.6 | I37: 125481 | J37: 22472027.7 | K37: 2019-10-03 | L37: 4299 | M37: INE208C01025
A38: AFFLE | B38: EQ | C38: 1073.85 | D38: 1138 | E38: 1035.25 | F38: 1075.05 | G38: 1070.05 | H38: 1079.65 | I38: 83171 | J38: 89697794.45 | K38: 2019-10-03 | L38: 5609 | M38: INE00WC01019
A39: AGARIND | B39: EQ | C39: 113 | D39: 116 | E39: 113 | F39: 114.7 | G39: 116 | H39: 115.9 | I39: 2159 | J39: 247572.5 | K39: 2019-10-03 | L39: 38 | M39: INE204E01012
A40: AGCNET | B40: BE | C40: 118.95 | D40: 119 | E40: 113.35 | F40: 118.35 | G40: 119 | H40: 116.55 | I40: 1329 | J40: 158001.9 | K40: 2019-10-03 | L40: 16 | M40: INE676A01019
A41: AGLSL | B41: EQ | C41: 49.95 | D41: 52.8 | E41: 47.1 | F41: 49.85 | G41: 47.55 | H41: 49.3 | I41: 3006 | J41: 152756.8 | K41: 2019-10-03 | L41: 97 | M41: INE517U01013
A42: AGRITECH | B42: EQ | C42: 46.45 | D42: 48.95 | E42: 45.5 | F42: 46.35 | G42: 47 | H42: 47.15 | I42: 7916 | J42: 368011.5 | K42: 2019-10-03 | L42: 233 | M42: INE449G01018
A43: AGROPHOS | B43: EQ | C43: 102.8 | D43: 104.05 | E43: 102.75 | F43: 104 | G43: 104 | H43: 102.7 | I43: 323878 | J43: 33486476.05 | K43: 2019-10-03 | L43: 5032 | M43: INE740V01019
A44: AHLEAST | B44: EQ | C44: 188.85 | D44: 188.9 | E44: 175.4 | F44: 177.15 | G44: 183.4 | H44: 178.1 | I44: 2215 | J44: 393328.25 | K44: 2019-10-03 | L44: 248 | M44: INE926K01017
A45: AHLUCONT | B45: EQ | C45: 277.45 | D45: 284 | E45: 276 | F45: 280.05 | G45: 280 | H45: 278.5 | I45: 89792 | J45: 25117764.55 | K45: 2019-10-03 | L45: 1480 | M45: INE758C01029
A46: AHLWEST | B46: EQ | C46: 304 | D46: 324.85 | E46: 292.15 | F46: 304.4 | G46: 316.95 | H46: 307.55 | I46: 586 | J46: 176727.05 | K46: 2019-10-03 | L46: 63 | M46: INE915K01010
A47: AIAENG | B47: EQ | C47: 1711.9 | D47: 1711.9 | E47: 1649 | F47: 1663.85 | G47: 1652.65 | H47: 1707.45 | I47: 22881 | J47: 38165467.6 | K47: 2019-10-03 | L47: 4282 | M47: INE212H01026
A48: AIONJSW | B48: EQ | C48: 10.05 | D48: 10.25 | E48: 9.7 | F48: 10 | G48: 10 | H48: 10.45 | I48: 94039 | J48: 937870 | K48: 2019-10-03 | L48: 254 | M48: INE743C01021
A49: AIRAN | B49: EQ | C49: 13.4 | D49: 13.4 | E49: 13 | F49: 13 | G49: 13 | H49: 13.45 | I49: 3467 | J49: 45694.5 | K49: 2019-10-03 | L49: 18 | M49: INE645W01026
A50: AJANTPHARM | B50: EQ | C50: 998 | D50: 1026 | E50: 962 | F50: 1017.1 | G50: 1020 | H50: 997 | I50: 106273 | J50: 105259640 | K50: 2019-10-03 | L50: 8370 | M50: INE031B01049
A51: AJMERA | B51: EQ | C51: 124.8 | D51: 125.5 | E51: 118.1 | F51: 121.45 | G51: 121 | H51: 124.8 | I51: 44543 | J51: 5440660.45 | K51: 2019-10-03 | L51: 1678 | M51: INE298G01027
A52: AKSHARCHEM | B52: EQ | C52: 217.35 | D52: 217.35 | E52: 196.05 | F52: 206.6 | G52: 210 | H52: 207.9 | I52: 1351 | J52: 277902.05 | K52: 2019-10-03 | L52: 267 | M52: INE542B01011
A53: AKSHOPTFBR | B53: EQ | C53: 7.15 | D53: 7.8 | E53: 7.1 | F53: 7.1 | G53: 7.1 | H53: 7.45 | I53: 137548 | J53: 989489.45 | K53: 2019-10-03 | L53: 339 | M53: INE523B01011
A54: AKZOINDIA | B54: EQ | C54: 1944.95 | D54: 1944.95 | E54: 1885.75 | F54: 1892.1 | G54: 1890.1 | H54: 1908.9 | I54: 28929 | J54: 54841272.25 | K54: 2019-10-03 | L54: 669 | M54: INE133A01011
A55: ALANKIT | B55: EQ | C55: 20.95 | D55: 20.95 | E55: 19.5 | F55: 19.85 | G55: 19.8 | H55: 20.4 | I55: 191518 | J55: 3810079.25 | K55: 2019-10-03 | L55: 580 | M55: INE914E01040
A56: ALBERTDAVD | B56: EQ | C56: 336.55 | D56: 345.95 | E56: 335.55 | F56: 338.6 | G56: 337.5 | H56: 339.15 | I56: 2191 | J56: 748355.55 | K56: 2019-10-03 | L56: 202 | M56: INE155C01010
A57: ALBK | B57: EQ | C57: 27.8 | D57: 28.15 | E57: 27.35 | F57: 27.6 | G57: 27.65 | H57: 27.8 | I57: 753175 | J57: 20896156.4 | K57: 2019-10-03 | L57: 3127 | M57: INE428A01015
A58: ALCHEM | B58: BE | C58: 1 | D58: 1 | E58: 1 | F58: 1 | G58: 1 | H58: 1.05 | I58: 500 | J58: 500 | K58: 2019-10-03 | L58: 2 | M58: INE964B01033
A59: ALEMBICLTD | B59: EQ | C59: 47 | D59: 47.2 | E59: 45.5 | F59: 46.6 | G59: 46.4 | H59: 47.5 | I59: 43309 | J59: 2008567.4 | K59: 2019-10-03 | L59: 460 | M59: INE426A01027
A60: ALICON | B60: EQ | C60: 342 | D60: 342 | E60: 311 | F60: 338.2 | G60: 335.05 | H60: 336.9 | I60: 1106 | J60: 367615.2 | K60: 2019-10-03 | L60: 115 | M60: INE062D01024
A61: ALKALI | B61: EQ | C61: 45.65 | D61: 47.8 | E61: 44.2 | F61: 45.25 | G61: 45.2 | H61: 46.25 | I61: 8292 | J61: 377896.65 | K61: 2019-10-03 | L61: 126 | M61: INE773I01017
A62: ALKEM | B62: EQ | C62: 1916 | D62: 1960 | E62: 1885 | F62: 1898.3 | G62: 1898.55 | H62: 1949.7 | I62: 35304 | J62: 67537880 | K62: 2019-10-03 | L62: 8660 | M62: INE540L01014
A63: ALKYLAMINE | B63: EQ | C63: 853.05 | D63: 879.9 | E63: 849 | F63: 855.35 | G63: 855 | H63: 874.15 | I63: 4218 | J63: 3632423.7 | K63: 2019-10-03 | L63: 411 | M63: INE150B01021
A64: ALLCARGO | B64: EQ | C64: 102.2 | D64: 109.7 | E64: 100.9 | F64: 108.35 | G64: 109.7 | H64: 103.65 | I64: 344024 | J64: 36116266.1 | K64: 2019-10-03 | L64: 4878 | M64: INE418H01029
A65: ALLSEC | B65: EQ | C65: 290 | D65: 307.8 | E65: 290 | F65: 304.1 | G65: 302 | H65: 301.55 | I65: 1704 | J65: 515474.2 | K65: 2019-10-03 | L65: 137 | M65: INE835G01018
A66: ALMONDZ | B66: EQ | C66: 10.35 | D66: 10.4 | E66: 10.1 | F66: 10.1 | G66: 10.1 | H66: 10.05 | I66: 175 | J66: 1771.4 | K66: 2019-10-03 | L66: 7 | M66: INE326B01027
A67: ALOKTEXT | B67: EQ | C67: 1.55 | D67: 1.55 | E67: 1.55 | F67: 1.55 | G67: 1.55 | H67: 1.6 | I67: 285069 | J67: 441856.95 | K67: 2019-10-03 | L67: 297 | M67: INE270A01011
A68: ALPA | B68: EQ | C68: 15.05 | D68: 15.45 | E68: 14.9 | F68: 15.25 | G68: 15.45 | H68: 15.25 | I68: 6125 | J68: 92692.5 | K68: 2019-10-03 | L68: 69 | M68: INE385I01010
A69: ALPHAGEO | B69: EQ | C69: 213.05 | D69: 213.3 | E69: 202.65 | F69: 202.65 | G69: 202.65 | H69: 213.3 | I69: 5305 | J69: 1089623.5 | K69: 2019-10-03 | L69: 269 | M69: INE137C01018
A70: ALPSINDUS | B70: BE | C70: 0.3 | D70: 0.35 | E70: 0.3 | F70: 0.3 | G70: 0.3 | H70: 0.35 | I70: 6238 | J70: 1873.65 | K70: 2019-10-03 | L70: 9 | M70: INE093B01015
A71: AMARAJABAT | B71: EQ | C71: 701.5 | D71: 716.9 | E71: 693.7 | F71: 711.9 | G71: 711.4 | H71: 703.3 | I71: 246954 | J71: 175037125.7 | K71: 2019-10-03 | L71: 8135 | M71: INE885A01032
A72: AMBER | B72: EQ | C72: 901 | D72: 905 | E72: 867.25 | F72: 874.5 | G72: 868.1 | H72: 904.6 | I72: 13062 | J72: 11497194.5 | K72: 2019-10-03 | L72: 1227 | M72: INE371P01015
A73: AMBIKCO | B73: EQ | C73: 926 | D73: 926 | E73: 902.4 | F73: 909.25 | G73: 907.3 | H73: 909.8 | I73: 2341 | J73: 2133514.45 | K73: 2019-10-03 | L73: 269 | M73: INE540G01014
A74: AMBUJACEM | B74: EQ | C74: 198.4 | D74: 201.25 | E74: 193.75 | F74: 196.35 | G74: 196.15 | H74: 199.85 | I74: 2884359 | J74: 569756754.9 | K74: 2019-10-03 | L74: 35864 | M74: INE079A01024
A75: AMDIND | B75: EQ | C75: 15.65 | D75: 16.45 | E75: 15.1 | F75: 15.45 | G75: 15.7 | H75: 16.05 | I75: 7798 | J75: 121104.65 | K75: 2019-10-03 | L75: 73 | M75: INE005I01014
A76: AMJLAND | B76: EQ | C76: 17.75 | D76: 17.75 | E76: 16.6 | F76: 17.05 | G76: 17 | H76: 17.45 | I76: 17216 | J76: 291854.85 | K76: 2019-10-03 | L76: 250 | M76: INE606A01024
A77: AMRUTANJAN | B77: EQ | C77: 354 | D77: 360.55 | E77: 342.1 | F77: 347.75 | G77: 347.5 | H77: 355.2 | I77: 22918 | J77: 8039153.2 | K77: 2019-10-03 | L77: 1708 | M77: INE098F01031
A78: ANANTRAJ | B78: EQ | C78: 32.2 | D78: 32.2 | E78: 30.2 | F78: 30.5 | G78: 30.55 | H78: 31.45 | I78: 101165 | J78: 3108302.75 | K78: 2019-10-03 | L78: 575 | M78: INE242C01024
A79: ANDHRABANK | B79: EQ | C79: 17 | D79: 17 | E79: 15.3 | F79: 16.65 | G79: 16.6 | H79: 16.7 | I79: 401354 | J79: 6636669.1 | K79: 2019-10-03 | L79: 1486 | M79: INE434A01013
A80: ANDHRACEMT | B80: BE | C80: 2.5 | D80: 2.5 | E80: 2.45 | F80: 2.45 | G80: 2.45 | H80: 2.55 | I80: 8097 | J80: 19893.15 | K80: 2019-10-03 | L80: 25 | M80: INE666E01012
A81: ANDHRSUGAR | B81: EQ | C81: 272.6 | D81: 278.8 | E81: 266.55 | F81: 270.9 | G81: 273.9 | H81: 273.6 | I81: 14759 | J81: 4029662.25 | K81: 2019-10-03 | L81: 1151 | M81: INE715B01013
A82: ANIKINDS | B82: EQ | C82: 8 | D82: 8 | E82: 7.1 | F82: 7.5 | G82: 7.5 | H82: 7.35 | I82: 2437 | J82: 18221.5 | K82: 2019-10-03 | L82: 15 | M82: INE087B01017
A83: ANKITMETAL | B83: BE | C83: 0.45 | D83: 0.5 | E83: 0.45 | F83: 0.45 | G83: 0.45 | H83: 0.45 | I83: 14896 | J83: 6703.5 | K83: 2019-10-03 | L83: 22 | M83: INE106I01010
A84: ANSALAPI | B84: EQ | C84: 4.6 | D84: 4.6 | E84: 4.6 | F84: 4.6 | G84: 4.6 | H84: 4.8 | I84: 9445 | J84: 43447 | K84: 2019-10-03 | L84: 26 | M84: INE436A01026
A85: ANSALHSG | B85: EQ | C85: 4.5 | D85: 4.75 | E85: 4.35 | F85: 4.6 | G85: 4.7 | H85: 4.65 | I85: 19758 | J85: 89071.55 | K85: 2019-10-03 | L85: 179 | M85: INE880B01015
A86: ANTGRAPHIC | B86: BE | C86: 0.7 | D86: 0.75 | E86: 0.7 | F86: 0.75 | G86: 0.75 | H86: 0.75 | I86: 3733 | J86: 2634.25 | K86: 2019-10-03 | L86: 12 | M86: INE414B01021
A87: ANUP | B87: EQ | C87: 460 | D87: 467.95 | E87: 451 | F87: 458.55 | G87: 459 | H87: 472.05 | I87: 5779 | J87: 2654627.85 | K87: 2019-10-03 | L87: 397 | M87: INE294Z01018
A88: APARINDS | B88: EQ | C88: 550.45 | D88: 554.2 | E88: 548.15 | F88: 548.95 | G88: 550.35 | H88: 553.7 | I88: 1452 | J88: 800383.25 | K88: 2019-10-03 | L88: 172 | M88: INE372A01015
A89: APCL | B89: EQ | C89: 141.6 | D89: 145.45 | E89: 138 | F89: 140 | G89: 141.9 | H89: 145.8 | I89: 2985 | J89: 423143.65 | K89: 2019-10-03 | L89: 96 | M89: INE071F01012
A90: APCOTEXIND | B90: EQ | C90: 191.05 | D90: 192 | E90: 184.55 | F90: 187.2 | G90: 187 | H90: 192.15 | I90: 27427 | J90: 5157427.6 | K90: 2019-10-03 | L90: 816 | M90: INE116A01032
A91: APEX | B91: EQ | C91: 231.5 | D91: 232 | E91: 217.05 | F91: 219.85 | G91: 220 | H91: 231.6 | I91: 41170 | J91: 9228989.15 | K91: 2019-10-03 | L91: 2338 | M91: INE346W01013
A92: APLAPOLLO | B92: EQ | C92: 1421.8 | D92: 1421.8 | E92: 1321 | F92: 1329.3 | G92: 1325.4 | H92: 1360.65 | I92: 39798 | J92: 53264657.4 | K92: 2019-10-03 | L92: 3510 | M92: INE702C01019
A93: APLLTD | B93: EQ | C93: 522 | D93: 532.3 | E93: 517 | F93: 525.9 | G93: 524 | H93: 517.15 | I93: 22307 | J93: 11689422.35 | K93: 2019-10-03 | L93: 1139 | M93: INE901L01018
A94: APOLLO | B94: EQ | C94: 74.5 | D94: 74.95 | E94: 71.5 | F94: 72.7 | G94: 73.2 | H94: 73 | I94: 12684 | J94: 922209.05 | K94: 2019-10-03 | L94: 566 | M94: INE713T01010
A95: APOLLOHOSP | B95: EQ | C95: 1355.65 | D95: 1383.85 | E95: 1348.55 | F95: 1379.1 | G95: 1378 | H95: 1369.25 | I95: 443258 | J95: 606684153.3 | K95: 2019-10-03 | L95: 28799 | M95: INE437A01024
A96: APOLLOTYRE | B96: EQ | C96: 169.1 | D96: 172.6 | E96: 167.2 | F96: 168.85 | G96: 168.75 | H96: 169.1 | I96: 2587269 | J96: 439296142.2 | K96: 2019-10-03 | L96: 27010 | M96: INE438A01022
A97: APOLSINHOT | B97: EQ | C97: 827.05 | D97: 828 | E97: 803 | F97: 810 | G97: 810 | H97: 825.15 | I97: 208 | J97: 169794.75 | K97: 2019-10-03 | L97: 26 | M97: INE451F01024
A98: APTECHT | B98: EQ | C98: 153.8 | D98: 157.3 | E98: 150 | F98: 151.9 | G98: 151.55 | H98: 153.9 | I98: 122016 | J98: 18721902.85 | K98: 2019-10-03 | L98: 3074 | M98: INE266F01018
A99: ARCHIDPLY | B99: EQ | C99: 26.2 | D99: 27.8 | E99: 26.1 | F99: 27 | G99: 27.5 | H99: 26.15 | I99: 5119 | J99: 138040.95 | K99: 2019-10-03 | L99: 126 | M99: INE877I01016
A100: ARCHIES | B100: BE | C100: 20.15 | D100: 20.15 | E100: 18.25 | F100: 18.75 | G100: 19.25 | H100: 19.2 | I100: 25344 | J100: 479671.1 | K100: 2019-10-03 | L100: 130 | M100: INE731A01020
A101: ARCOTECH | B101: BE | C101: 1.85 | D101: 1.95 | E101: 1.85 | F101: 1.85 | G101: 1.85 | H101: 1.9 | I101: 16202 | J101: 30430.6 | K101: 2019-10-03 | L101: 47 | M101: INE574I01035
A102: ARIES | B102: EQ | C102: 60.85 | D102: 61.9 | E102: 58.15 | F102: 59.65 | G102: 58.4 | H102: 60.8 | I102: 24730 | J102: 1490750.85 | K102: 2019-10-03 | L102: 382 | M102: INE298I01015
A103: ARIHANT | B103: EQ | C103: 18 | D103: 18 | E103: 17.1 | F103: 18 | G103: 18 | H103: 18.05 | I103: 580 | J103: 10075 | K103: 2019-10-03 | L103: 7 | M103: INE413D01011
A104: ARIHANTSUP | B104: BE | C104: 36 | D104: 36 | E104: 36 | F104: 36 | G104: 36 | H104: 37.85 | I104: 53 | J104: 1908 | K104: 2019-10-03 | L104: 3 | M104: INE643K01018
A105: ARMANFIN | B105: EQ | C105: 534.9 | D105: 535 | E105: 525 | F105: 529.95 | G105: 530 | H105: 530 | I105: 3650 | J105: 1942362.5 | K105: 2019-10-03 | L105: 150 | M105: INE109C01017
A106: AROGRANITE | B106: EQ | C106: 41.15 | D106: 41.25 | E106: 40.25 | F106: 40.4 | G106: 40.35 | H106: 41.2 | I106: 5376 | J106: 217714.15 | K106: 2019-10-03 | L106: 109 | M106: INE210C01013
A107: ARROWGREEN | B107: EQ | C107: 53.9 | D107: 53.9 | E107: 49.9 | F107: 51.8 | G107: 51.75 | H107: 51.75 | I107: 2290 | J107: 118424.6 | K107: 2019-10-03 | L107: 104 | M107: INE570D01018
A108: ARROWTEX | B108: EQ | C108: 9.6 | D108: 9.9 | E108: 9.4 | F108: 9.85 | G108: 9.85 | H108: 9.55 | I108: 4464 | J108: 43495.2 | K108: 2019-10-03 | L108: 30 | M108: INE933J01015
A109: ARSHIYA | B109: EQ | C109: 19.55 | D109: 21.35 | E109: 19.55 | F109: 21.35 | G109: 21.35 | H109: 20.35 | I109: 26864 | J109: 561755.15 | K109: 2019-10-03 | L109: 139 | M109: INE968D01022
A110: ARSSINFRA | B110: EQ | C110: 21 | D110: 22.35 | E110: 21 | F110: 21.75 | G110: 21.5 | H110: 21.85 | I110: 4238 | J110: 91429.55 | K110: 2019-10-03 | L110: 76 | M110: INE267I01010
A111: ARVIND | B111: EQ | C111: 46.75 | D111: 47 | E111: 45.45 | F111: 46.15 | G111: 45.9 | H111: 46.75 | I111: 1245775 | J111: 57735838.15 | K111: 2019-10-03 | L111: 5572 | M111: INE034A01011
A112: ARVINDFASN | B112: EQ | C112: 427.15 | D112: 430.6 | E112: 423.65 | F112: 424.6 | G112: 424.8 | H112: 427.15 | I112: 18249 | J112: 7776241.7 | K112: 2019-10-03 | L112: 1392 | M112: INE955V01021
A113: ARVSMART | B113: EQ | C113: 84.6 | D113: 87 | E113: 83.85 | F113: 85.4 | G113: 86.75 | H113: 85 | I113: 11110 | J113: 949025.2 | K113: 2019-10-03 | L113: 338 | M113: INE034S01021
A114: ASAHIINDIA | B114: EQ | C114: 180 | D114: 185 | E114: 179.75 | F114: 183.65 | G114: 185 | H114: 178.35 | I114: 13503 | J114: 2460175.4 | K114: 2019-10-03 | L114: 171 | M114: INE439A01020
A115: ASAHISONG | B115: EQ | C115: 129 | D115: 135.7 | E115: 126.5 | F115: 129.05 | G115: 126.8 | H115: 128.2 | I115: 2864 | J115: 375806.6 | K115: 2019-10-03 | L115: 153 | M115: INE228I01012
A116: ASAL | B116: EQ | C116: 34 | D116: 35 | E116: 32.1 | F116: 33.1 | G116: 33 | H116: 34.2 | I116: 2536 | J116: 84843.05 | K116: 2019-10-03 | L116: 58 | M116: INE900C01027
A117: ASHAPURMIN | B117: EQ | C117: 31 | D117: 32.15 | E117: 29.65 | F117: 31.65 | G117: 32 | H117: 30.65 | I117: 211141 | J117: 6653761.75 | K117: 2019-10-03 | L117: 946 | M117: INE348A01023
A118: ASHIANA | B118: EQ | C118: 103.5 | D118: 104.4 | E118: 100 | F118: 102.95 | G118: 103.9 | H118: 104.7 | I118: 92096 | J118: 9374002.9 | K118: 2019-10-03 | L118: 1659 | M118: INE365D01021
A119: ASHIMASYN | B119: EQ | C119: 7.95 | D119: 8.5 | E119: 7.95 | F119: 8.25 | G119: 8.2 | H119: 8.1 | I119: 18873 | J119: 157254 | K119: 2019-10-03 | L119: 91 | M119: INE440A01010
A120: ASHOKA | B120: EQ | C120: 97 | D120: 99.65 | E120: 95.15 | F120: 97.4 | G120: 97.5 | H120: 97.25 | I120: 100800 | J120: 9854419.45 | K120: 2019-10-03 | L120: 1347 | M120: INE442H01029
A121: ASHOKLEY | B121: EQ | C121: 65 | D121: 68.35 | E121: 64.35 | F121: 67.65 | G121: 67.75 | H121: 65.95 | I121: 34086758 | J121: 2270458963 | K121: 2019-10-03 | L121: 99313 | M121: INE208A01029
A122: ASIANHOTNR | B122: EQ | C122: 110.95 | D122: 110.95 | E122: 104 | F122: 104.9 | G122: 104 | H122: 106.7 | I122: 394 | J122: 41514.6 | K122: 2019-10-03 | L122: 36 | M122: INE363A01022
A123: ASIANPAINT | B123: EQ | C123: 1765 | D123: 1768.25 | E123: 1732.2 | F123: 1748.95 | G123: 1748 | H123: 1766.1 | I123: 1010826 | J123: 1764649312 | K123: 2019-10-03 | L123: 63631 | M123: INE021A01026
A124: ASIANTILES | B124: EQ | C124: 228.9 | D124: 237 | E124: 226 | F124: 230.1 | G124: 229.4 | H124: 228.9 | I124: 111651 | J124: 25846630.7 | K124: 2019-10-03 | L124: 3598 | M124: INE022I01019
A125: ASPINWALL | B125: EQ | C125: 127.05 | D125: 138.45 | E125: 121.5 | F125: 132.2 | G125: 132.2 | H125: 130.75 | I125: 1755 | J125: 234135.95 | K125: 2019-10-03 | L125: 22 | M125: INE991I01015
A126: ASSAMCO | B126: BE | C126: 0.55 | D126: 0.6 | E126: 0.55 | F126: 0.6 | G126: 0.6 | H126: 0.6 | I126: 120433 | J126: 70379.95 | K126: 2019-10-03 | L126: 60 | M126: INE442A01024
A127: ASTEC | B127: EQ | C127: 393 | D127: 404.05 | E127: 388.5 | F127: 393.55 | G127: 394 | H127: 395.5 | I127: 3792 | J127: 1489675.45 | K127: 2019-10-03 | L127: 199 | M127: INE563J01010
A128: ASTERDM | B128: EQ | C128: 113.2 | D128: 121 | E128: 113.2 | F128: 119.8 | G128: 120 | H128: 115.95 | I128: 43748 | J128: 5207199.9 | K128: 2019-10-03 | L128: 1377 | M128: INE914M01019
A129: ASTRAL | B129: EQ | C129: 1144.85 | D129: 1182 | E129: 1131.15 | F129: 1154.4 | G129: 1156.9 | H129: 1146.3 | I129: 54929 | J129: 64061830.4 | K129: 2019-10-03 | L129: 7815 | M129: INE006I01046
A130: ASTRAMICRO | B130: EQ | C130: 76.55 | D130: 79.95 | E130: 76.55 | F130: 79 | G130: 79 | H130: 78.05 | I130: 71395 | J130: 5617076.85 | K130: 2019-10-03 | L130: 528 | M130: INE386C01029
A131: ASTRAZEN | B131: EQ | C131: 2297.95 | D131: 2297.95 | E131: 2201 | F131: 2218.4 | G131: 2231.5 | H131: 2267.95 | I131: 9681 | J131: 21704305.2 | K131: 2019-10-03 | L131: 1514 | M131: INE203A01020
A132: ASTRON | B132: EQ | C132: 105 | D132: 108.3 | E132: 100.95 | F132: 106.15 | G132: 106.85 | H132: 106.05 | I132: 745887 | J132: 77975039.55 | K132: 2019-10-03 | L132: 4693 | M132: INE646X01014
A133: ATFL | B133: EQ | C133: 498 | D133: 498 | E133: 482.35 | F133: 487.45 | G133: 484.05 | H133: 484 | I133: 2157 | J133: 1049416.55 | K133: 2019-10-03 | L133: 187 | M133: INE209A01019
A134: ATLANTA | B134: BE | C134: 8.25 | D134: 8.25 | E134: 7.85 | F134: 7.85 | G134: 7.85 | H134: 8.25 | I134: 1412 | J134: 11164.2 | K134: 2019-10-03 | L134: 19 | M134: INE285H01022
A135: ATUL | B135: EQ | C135: 3976.55 | D135: 4025 | E135: 3953.55 | F135: 4015.55 | G135: 4020.05 | H135: 3975.6 | I135: 4317 | J135: 17251147.8 | K135: 2019-10-03 | L135: 1194 | M135: INE100A01010
A136: ATULAUTO | B136: EQ | C136: 234.15 | D136: 234.15 | E136: 227 | F136: 228.3 | G136: 228.4 | H136: 227.1 | I136: 29026 | J136: 6651793.4 | K136: 2019-10-03 | L136: 781 | M136: INE951D01028
A137: AUBANK | B137: EQ | C137: 650 | D137: 652.8 | E137: 642.65 | F137: 649.85 | G137: 648 | H137: 653.9 | I137: 179831 | J137: 116820338.9 | K137: 2019-10-03 | L137: 8350 | M137: INE949L01017
A138: AURIONPRO | B138: EQ | C138: 108.7 | D138: 108.7 | E138: 99.25 | F138: 100.75 | G138: 99.6 | H138: 106.15 | I138: 8472 | J138: 874061.2 | K138: 2019-10-03 | L138: 383 | M138: INE132H01018
A139: AUROPHARMA | B139: EQ | C139: 570 | D139: 583.7 | E139: 559.1 | F139: 579.65 | G139: 580.5 | H139: 576.2 | I139: 1673837 | J139: 959962419.1 | K139: 2019-10-03 | L139: 32699 | M139: INE406A01037
A140: AUSOMENT | B140: EQ | C140: 30.75 | D140: 30.85 | E140: 27.6 | F140: 30.2 | G140: 30.25 | H140: 30.3 | I140: 282 | J140: 8205.35 | K140: 2019-10-03 | L140: 25 | M140: INE218C01016
A141: AUTOAXLES | B141: EQ | C141: 925 | D141: 925 | E141: 882.05 | F141: 889.75 | G141: 894 | H141: 924.25 | I141: 5260 | J141: 4762810.6 | K141: 2019-10-03 | L141: 639 | M141: INE449A01011
A142: AUTOIND | B142: EQ | C142: 39.45 | D142: 39.45 | E142: 36.35 | F142: 38 | G142: 38.45 | H142: 38.5 | I142: 6837 | J142: 258132 | K142: 2019-10-03 | L142: 178 | M142: INE718H01014
A143: AUTOLITIND | B143: EQ | C143: 22.3 | D143: 22.9 | E143: 21.2 | F143: 21.2 | G143: 21.2 | H143: 22.3 | I143: 4171 | J143: 88478.8 | K143: 2019-10-03 | L143: 20 | M143: INE448A01013
A144: AVADHSUGAR | B144: EQ | C144: 273.5 | D144: 290.4 | E144: 268.45 | F144: 279.25 | G144: 281 | H144: 274.95 | I144: 106469 | J144: 29888330.6 | K144: 2019-10-03 | L144: 2975 | M144: INE349W01017
A145: AVANTIFEED | B145: EQ | C145: 356 | D145: 367.6 | E145: 351.1 | F145: 360.2 | G145: 360 | H145: 360.35 | I145: 146882 | J145: 52751185.2 | K145: 2019-10-03 | L145: 4837 | M145: INE871C01038
A146: AVTNPL | B146: EQ | C146: 22.45 | D146: 22.9 | E146: 22.25 | F146: 22.85 | G146: 22.85 | H146: 22.7 | I146: 15155 | J146: 343180.7 | K146: 2019-10-03 | L146: 79 | M146: INE488D01021
A147: AXISBANK | B147: EQ | C147: 675 | D147: 675.9 | E147: 646.7 | F147: 668.4 | G147: 667.15 | H147: 679.15 | I147: 17615854 | J147: 1.170666546e+10 | K147: 2019-10-03 | L147: 261635 | M147: INE238A01034
A148: AXISCADES | B148: EQ | C148: 80.5 | D148: 80.95 | E148: 78.3 | F148: 80.15 | G148: 80.95 | H148: 79.75 | I148: 34157 | J148: 2723026.65 | K148: 2019-10-03 | L148: 390 | M148: INE555B01013
A149: AXISGOLD | B149: EQ | C149: 3335.2 | D149: 3375 | E149: 3310.25 | F149: 3363.65 | G149: 3370 | H149: 3269.85 | I149: 579 | J149: 1938018 | K149: 2019-10-03 | L149: 94 | M149: INF846K01347
A150: AXISNIFTY | B150: EQ | C150: 1160 | D150: 1170.87 | E150: 1158.34 | F150: 1168.78 | G150: 1168.78 | H150: 1160 | I150: 70 | J150: 81427.74 | K150: 2019-10-03 | L150: 12 | M150: INF846K01ZL0
A151: AYMSYNTEX | B151: EQ | C151: 31 | D151: 31.95 | E151: 28.05 | F151: 28.5 | G151: 28.25 | H151: 30.05 | I151: 17909 | J151: 517645.9 | K151: 2019-10-03 | L151: 266 | M151: INE193B01039
A152: BAGFILMS | B152: EQ | C152: 1.55 | D152: 1.65 | E152: 1.55 | F152: 1.6 | G152: 1.6 | H152: 1.6 | I152: 284243 | J152: 453796.05 | K152: 2019-10-03 | L152: 185 | M152: INE116D01028
A153: BAJAJ-AUTO | B153: EQ | C153: 2915 | D153: 2939.7 | E153: 2882.5 | F153: 2897.9 | G153: 2883.8 | H153: 2910 | I153: 292132 | J153: 848960577.2 | K153: 2019-10-03 | L153: 47328 | M153: INE917I01010
A154: BAJAJCON | B154: EQ | C154: 244 | D154: 244 | E154: 240 | F154: 241.95 | G154: 241.9 | H154: 244.15 | I154: 141967 | J154: 34296053.05 | K154: 2019-10-03 | L154: 2159 | M154: INE933K01021
A155: BAJAJELEC | B155: EQ | C155: 385.1 | D155: 392 | E155: 380.5 | F155: 387.45 | G155: 389 | H155: 382.95 | I155: 58121 | J155: 22382270.65 | K155: 2019-10-03 | L155: 3468 | M155: INE193E01025
A156: BAJAJFINSV | B156: EQ | C156: 8433 | D156: 8485 | E156: 8320.45 | F156: 8446.45 | G156: 8420.1 | H156: 8458.35 | I156: 207759 | J156: 1750432228 | K156: 2019-10-03 | L156: 24262 | M156: INE918I01018
A157: BAJAJHIND | B157: EQ | C157: 6.45 | D157: 6.75 | E157: 6.2 | F157: 6.55 | G157: 6.65 | H157: 6.45 | I157: 641473 | J157: 4184976.05 | K157: 2019-10-03 | L157: 815 | M157: INE306A01021
A158: BAJAJHLDNG | B158: EQ | C158: 3590 | D158: 3664.35 | E158: 3489.55 | F158: 3525.25 | G158: 3512 | H158: 3588.65 | I158: 33716 | J158: 120738095.7 | K158: 2019-10-03 | L158: 4428 | M158: INE118A01012
A159: BAJFINANCE | B159: EQ | C159: 3985 | D159: 4004.95 | E159: 3931.85 | F159: 3959.8 | G159: 3959 | H159: 3992.4 | I159: 1245840 | J159: 4942166613 | K159: 2019-10-03 | L159: 105919 | M159: INE296A01024
A160: BALAJITELE | B160: EQ | C160: 51.5 | D160: 54 | E160: 51 | F160: 53.75 | G160: 53.3 | H160: 51.95 | I160: 17528 | J160: 930192.15 | K160: 2019-10-03 | L160: 268 | M160: INE794B01026
A161: BALAMINES | B161: EQ | C161: 320 | D161: 336.95 | E161: 300.55 | F161: 330.9 | G161: 333 | H161: 320.45 | I161: 30251 | J161: 9930625.5 | K161: 2019-10-03 | L161: 2126 | M161: INE050E01027
A162: BALAXI | B162: EQ | C162: 85.65 | D162: 85.65 | E162: 81.4 | F162: 81.4 | G162: 81.4 | H162: 85.65 | I162: 11 | J162: 899.65 | K162: 2019-10-03 | L162: 2 | M162: INE618N01014
A163: BALKRISHNA | B163: BE | C163: 28.25 | D163: 29.7 | E163: 28.25 | F163: 28.65 | G163: 28.85 | H163: 29.7 | I163: 5566 | J163: 159461.95 | K163: 2019-10-03 | L163: 54 | M163: INE875R01011
A164: BALKRISIND | B164: EQ | C164: 756 | D164: 771.5 | E164: 746.3 | F164: 761.55 | G164: 761.2 | H164: 757.8 | I164: 210570 | J164: 160425391.6 | K164: 2019-10-03 | L164: 5549 | M164: INE787D01026
A165: BALLARPUR | B165: EQ | C165: 0.45 | D165: 0.5 | E165: 0.4 | F165: 0.5 | G165: 0.5 | H165: 0.45 | I165: 1451576 | J165: 674092.35 | K165: 2019-10-03 | L165: 318 | M165: INE294A01037
A166: BALMLAWRIE | B166: EQ | C166: 165.7 | D166: 172.45 | E166: 164.25 | F166: 170.25 | G166: 169.35 | H166: 164.9 | I166: 155689 | J166: 26329323.85 | K166: 2019-10-03 | L166: 2791 | M166: INE164A01016
A167: BALPHARMA | B167: EQ | C167: 38.15 | D167: 38.75 | E167: 37.2 | F167: 38.35 | G167: 38.75 | H167: 38.25 | I167: 3436 | J167: 129761.45 | K167: 2019-10-03 | L167: 121 | M167: INE083D01012
A168: BALRAMCHIN | B168: EQ | C168: 159.85 | D168: 164.5 | E168: 157.95 | F168: 163.1 | G168: 162.5 | H168: 159.65 | I168: 1987937 | J168: 321303087.2 | K168: 2019-10-03 | L168: 21293 | M168: INE119A01028
A169: BANARBEADS | B169: EQ | C169: 40.75 | D169: 40.75 | E169: 36.1 | F169: 36.3 | G169: 36.3 | H169: 38.15 | I169: 6578 | J169: 239754.95 | K169: 2019-10-03 | L169: 45 | M169: INE655B01011
A170: BANARISUG | B170: EQ | C170: 1184.9 | D170: 1190.05 | E170: 1125.1 | F170: 1134.95 | G170: 1130 | H170: 1147.25 | I170: 406 | J170: 467852.15 | K170: 2019-10-03 | L170: 63 | M170: INE459A01010
A171: BANCOINDIA | B171: EQ | C171: 102.8 | D171: 102.8 | E171: 99.5 | F171: 100 | G171: 100.2 | H171: 101.4 | I171: 21927 | J171: 2206827.6 | K171: 2019-10-03 | L171: 740 | M171: INE213C01025
A172: BANDHANBNK | B172: EQ | C172: 471 | D172: 491.2 | E172: 464.6 | F172: 478.5 | G172: 479.6 | H172: 470.35 | I172: 475319 | J172: 227803261.2 | K172: 2019-10-03 | L172: 27634 | M172: INE545U01014
A173: BANG | B173: EQ | C173: 23.35 | D173: 23.35 | E173: 21 | F173: 22.05 | G173: 22.05 | H173: 23 | I173: 9328 | J173: 205095.5 | K173: 2019-10-03 | L173: 167 | M173: INE863I01016
A174: BANKBARODA | B174: EQ | C174: 90.75 | D174: 93.1 | E174: 89.4 | F174: 90.9 | G174: 90.9 | H174: 91.3 | I174: 32868099 | J174: 3001704743 | K174: 2019-10-03 | L174: 78416 | M174: INE028A01039
A175: BANKBEES | B175: EQ | C175: 2949.88 | D175: 2949.88 | E175: 2887 | F175: 2903.38 | G175: 2908.44 | H175: 2936.72 | I175: 21776 | J175: 63310614.77 | K175: 2019-10-03 | L175: 981 | M175: INF732E01078
A176: BANKINDIA | B176: EQ | C176: 60.9 | D176: 62.5 | E176: 59.45 | F176: 61.9 | G176: 61.75 | H176: 61.1 | I176: 9250868 | J176: 568408336.4 | K176: 2019-10-03 | L176: 20370 | M176: INE084A01016
A177: BANSWRAS | B177: EQ | C177: 70.2 | D177: 73.7 | E177: 70.2 | F177: 70.5 | G177: 70.5 | H177: 72 | I177: 3688 | J177: 261550.65 | K177: 2019-10-03 | L177: 56 | M177: INE629D01012
A178: BARTRONICS | B178: BE | C178: 2.1 | D178: 2.1 | E178: 1.9 | F178: 1.9 | G178: 1.9 | H178: 2 | I178: 17658 | J178: 33952.2 | K178: 2019-10-03 | L178: 36 | M178: INE855F01034
A179: BASF | B179: EQ | C179: 980 | D179: 1006.9 | E179: 979.1 | F179: 989.65 | G179: 988 | H179: 979.1 | I179: 5748 | J179: 5694819.3 | K179: 2019-10-03 | L179: 799 | M179: INE373A01013
A180: BASML | B180: EQ | C180: 132.1 | D180: 132.95 | E180: 125.2 | F180: 128.35 | G180: 130.75 | H180: 138.8 | I180: 4014 | J180: 517829.5 | K180: 2019-10-03 | L180: 99 | M180: INE186H01014
A181: BATAINDIA | B181: EQ | C181: 1719.55 | D181: 1738.55 | E181: 1676 | F181: 1688 | G181: 1686.2 | H181: 1736.95 | I181: 538283 | J181: 916712560.5 | K181: 2019-10-03 | L181: 26452 | M181: INE176A01028
A182: BAYERCROP | B182: EQ | C182: 3369.9 | D182: 3369.9 | E182: 3325 | F182: 3351.9 | G182: 3350 | H182: 3372.15 | I182: 2074 | J182: 6939699.7 | K182: 2019-10-03 | L182: 1048 | M182: INE462A01022
A183: BBL | B183: EQ | C183: 932 | D183: 944.75 | E183: 917.2 | F183: 924.6 | G183: 927 | H183: 931.5 | I183: 7054 | J183: 6530017.05 | K183: 2019-10-03 | L183: 515 | M183: INE464A01028
A184: BBTC | B184: EQ | C184: 1131.8 | D184: 1152 | E184: 1106.3 | F184: 1120.75 | G184: 1122 | H184: 1129.95 | I184: 82804 | J184: 93672636.05 | K184: 2019-10-03 | L184: 7060 | M184: INE050A01025
A185: BCG | B185: EQ | C185: 3.3 | D185: 3.3 | E185: 3.1 | F185: 3.2 | G185: 3.3 | H185: 3.15 | I185: 219712 | J185: 698446.45 | K185: 2019-10-03 | L185: 167 | M185: INE425B01027
A186: BCP | B186: EQ | C186: 10 | D186: 10.1 | E186: 9.8 | F186: 9.8 | G186: 9.8 | H186: 9.95 | I186: 91042 | J186: 909114.1 | K186: 2019-10-03 | L186: 167 | M186: INE905P01028
A187: BDL | B187: EQ | C187: 289.95 | D187: 295.95 | E187: 285.35 | F187: 293.75 | G187: 293.75 | H187: 290.05 | I187: 27374 | J187: 7999292.35 | K187: 2019-10-03 | L187: 1840 | M187: INE171Z01018
A188: BEARDSELL | B188: EQ | C188: 11.45 | D188: 12 | E188: 11.05 | F188: 11.4 | G188: 11.4 | H188: 11.15 | I188: 2179 | J188: 25985.4 | K188: 2019-10-03 | L188: 16 | M188: INE520H01022
A189: BEDMUTHA | B189: EQ | C189: 11.95 | D189: 12.55 | E189: 10.8 | F189: 11.05 | G189: 11 | H189: 11.95 | I189: 21254 | J189: 235219.45 | K189: 2019-10-03 | L189: 70 | M189: INE844K01012
A190: BEL | B190: EQ | C190: 106.2 | D190: 107.2 | E190: 104.3 | F190: 105.4 | G190: 105.3 | H190: 107.15 | I190: 6971659 | J190: 737383419 | K190: 2019-10-03 | L190: 23407 | M190: INE263A01024
A191: BEML | B191: EQ | C191: 949 | D191: 965 | E191: 931 | F191: 955.45 | G191: 956 | H191: 946.25 | I191: 630243 | J191: 599659128.4 | K191: 2019-10-03 | L191: 20695 | M191: INE258A01016
A192: BEPL | B192: EQ | C192: 55 | D192: 56.6 | E192: 53.1 | F192: 53.95 | G192: 53.65 | H192: 55.65 | I192: 323051 | J192: 17840895.1 | K192: 2019-10-03 | L192: 2881 | M192: INE922A01025
A193: BERGEPAINT | B193: EQ | C193: 432.05 | D193: 432.9 | E193: 423.3 | F193: 428.05 | G193: 428 | H193: 433.45 | I193: 1354552 | J193: 577964930.2 | K193: 2019-10-03 | L193: 80996 | M193: INE463A01038
A194: BFINVEST | B194: EQ | C194: 271.8 | D194: 278 | E194: 270.1 | F194: 275.5 | G194: 275.9 | H194: 275.25 | I194: 22385 | J194: 6152011.3 | K194: 2019-10-03 | L194: 816 | M194: INE878K01010
A195: BFUTILITIE | B195: EQ | C195: 173.8 | D195: 176.9 | E195: 171.55 | F195: 172.4 | G195: 172.7 | H195: 175.25 | I195: 216225 | J195: 37541842.45 | K195: 2019-10-03 | L195: 8081 | M195: INE243D01012
A196: BGLOBAL | B196: BE | C196: 1.6 | D196: 1.6 | E196: 1.55 | F196: 1.6 | G196: 1.6 | H196: 1.55 | I196: 1059 | J196: 1693.85 | K196: 2019-10-03 | L196: 5 | M196: INE224M01013
A197: BGRENERGY | B197: EQ | C197: 34 | D197: 34.7 | E197: 33.4 | F197: 33.7 | G197: 33.8 | H197: 34.25 | I197: 31896 | J197: 1080978.05 | K197: 2019-10-03 | L197: 592 | M197: INE661I01014
A198: BHAGERIA | B198: EQ | C198: 104.1 | D198: 108 | E198: 102.9 | F198: 106.6 | G198: 105.05 | H198: 107.25 | I198: 6424 | J198: 682737.35 | K198: 2019-10-03 | L198: 241 | M198: INE354C01027
A199: BHAGYANGR | B199: EQ | C199: 18.45 | D199: 19 | E199: 18 | F199: 18.9 | G199: 18.9 | H199: 18.85 | I199: 2664 | J199: 49666.45 | K199: 2019-10-03 | L199: 44 | M199: INE458B01036
A200: BHAGYAPROP | B200: EQ | C200: 20.5 | D200: 21 | E200: 20.25 | F200: 20.25 | G200: 20.25 | H200: 21.2 | I200: 979 | J200: 19948.2 | K200: 2019-10-03 | L200: 51 | M200: INE363W01018
... 1491 more rows

Sheet Sheet1 (hidden)

Sheet Sheet3 (hidden)

Sheet Sheet4 (hidden)

Sheet Sheet5 (hidden)
